Authority,Department,Spending Area,Expense Type,Posting Date,Reference,Amount,Supplier
OXFORDSHIRE CC,CHILDREN'S & EDUCATION,EYNSHAM,HARDWARE AND CROCKERY,26/04/2024,11559924993,4,B&Q LTD
OXFORDSHIRE CC,CUSTOMER AND CULTURE,SCHOOLS FM CATERING AREA 4,CATERING PROVISIONS,26/04/2024,11559924889,13.2,SAINSBURYS S/MKTS
OXFORDSHIRE CC,CHILDREN'S & EDUCATION,WITNEY,CATERING PROVISIONS,26/04/2024,11559924921,9.15,SAINSBURYS S/MKTS
OXFORDSHIRE CC,CHILDREN'S & EDUCATION,"	LAC PUPIL PREMIUM","SUPPLIES, STATIONERY AND MATERIALS",26/04/2024,11559924955,120,AMAZON.CO.UK H51Y71NJ4
OXFORDSHIRE CC,CUSTOMER AND CULTURE,HARD FM,PREMISES REPAIRS,26/04/2024,11559924973,1.94,B AND Q
OXFORDSHIRE CC,CUSTOMER AND CULTURE,SAMUELSON HOUSE,CATERING PROVISIONS,26/04/2024,11559924665,96.39,MILK AND MORE (RECUR
OXFORDSHIRE CC,CUSTOMER AND CULTURE,COUNTY HALL,CATERING PROVISIONS,26/04/2024,11559926265,7.25,SAINSBURYS S/MKTS
OXFORDSHIRE CC,CHILDREN'S & EDUCATION,WITNEY,CATERING PROVISIONS,26/04/2024,11559924913,9,MARKS&SPENCER PLC SACA
OXFORDSHIRE CC,CHILDREN'S & EDUCATION,WITNEY,MATERIALS,26/04/2024,11559924917,6.98,CARD FACTORY
OXFORDSHIRE CC,CUSTOMER AND CULTURE,HARD FM,PREMISES REPAIRS,26/04/2024,11559925089,203.47,WWW.SCREWFIX.COM
OXFORDSHIRE CC,CHILDREN'S & EDUCATION,THAME E&A HOME,CATERING PROVISIONS,26/04/2024,11559925121,8.41,WELCOME BREAK-OXFORD
OXFORDSHIRE CC,ADULTS,CSS - OXFORD,CATERING PROVISIONS,26/04/2024,11559924833,80.55,ALDI STORES 775-142
OXFORDSHIRE CC,CHILDREN'S & EDUCATION,"	RIVERSIDE CENTRE",VEHICLE FUEL,26/04/2024,11559924697,97.78,BP BROADWAY MOTORS
OXFORDSHIRE CC,CHILDREN'S & EDUCATION,PAUSE PROGRAMME,TELEPHONE - EQUIPMENT,26/04/2024,11559926451,5.99,AMAZON  204-3323469-96
OXFORDSHIRE CC,CHILDREN'S & EDUCATION,VIRTUAL SCHOOL POST 16 PPP,PURCHASE OF IT EQUIPMENT,26/04/2024,11559924961,"2,363.88",CURRYS BUSINESS
OXFORDSHIRE CC,ENVIRONMENT AND PLACE,NAT TRAILS GENERAL,CATERING PROVISIONS,26/04/2024,11559925147,111.83,SAINSBURYS S/MKT
OXFORDSHIRE CC,CUSTOMER AND CULTURE,COUNTY HALL,OTHER PREMISES RELATED COSTS,26/04/2024,11559926263,19.96,AMAZON  026-4117991-39
OXFORDSHIRE CC,RESOURCES,EYNSHAM,CATERING PROVISIONS,26/04/2024,11559926439,21.24,SPAR EYNSHAM
OXFORDSHIRE CC,CHILDREN'S & EDUCATION,"	SEN/ICT EQUIPMENT",PURCHASE OF IT EQUIPMENT,26/04/2024,11559926353,12.94,AMAZON  026-8161983-02
OXFORDSHIRE CC,ADULTS,CSS - OXFORD,CATERING PROVISIONS,26/04/2024,11559924827,5.35,ALDI STORES 775-142
OXFORDSHIRE CC,CHILDREN'S & EDUCATION,KINGFISHER,MATERIALS,26/04/2024,11559926361,60,REDLETTERDAYS 03456408
OXFORDSHIRE CC,CHILDREN'S & EDUCATION,PAUSE PROGRAMME,OTHER TRANSPORT ARRANGEMENTS,26/04/2024,11559926449,2.6,RINGGO PARKING
OXFORDSHIRE CC,ADULTS,CSS - BANBURY,VEHICLE FUEL,26/04/2024,11559926321,50.55,TESCO PAY AT PUMP 3920
OXFORDSHIRE CC,CHILDREN'S & EDUCATION,PAUSE PROGRAMME,CATERING,26/04/2024,11559926447,5.85,MAC KITTEN COFFEE SHOP
OXFORDSHIRE CC,CHILDREN'S & EDUCATION,CHILDREN IN CARE NON-STAFFING - CENTRL 2,PAYMENTS TO TRANSPORT OPERATORS,26/04/2024,11559924343,36.93,TRAINLINE
OXFORDSHIRE CC,CORPORATE CORE,,STATIONERY,26/04/2024,11559925821,9.02,LYRECO UK LTD
OXFORDSHIRE CC,CORPORATE CORE,,STATIONERY,26/04/2024,11559925837,39,LYRECO UK LTD
OXFORDSHIRE CC,CUSTOMER AND CULTURE,SCHOOLS FM CATERING AREA 1,CATERING PROVISIONS,26/04/2024,11559925977,9.65,CO-OPERATIVE FOOD
OXFORDSHIRE CC,CUSTOMER AND CULTURE,SCHOOLS FM CATERING AREA 1,CATERING PROVISIONS,26/04/2024,11559925981,7.85,CO-OPERATIVE FOOD
OXFORDSHIRE CC,CHILDREN'S & EDUCATION,"	LEAVING CARE CITY 2",OTHER EXPENSES,26/04/2024,11559924327,11.19,AMAZON  026-2088441-10
OXFORDSHIRE CC,CHILDREN'S & EDUCATION,CHILDREN IN CARE NON-STAFFING - NORTH,PAYMENTS TO TRANSPORT OPERATORS,26/04/2024,11559924355,124,BKG HOTEL AT BOOKING.C
OXFORDSHIRE CC,CHILDREN'S & EDUCATION,FAMILY SOLUTIONS PLUS NON-STAFF - NORTH,PAYMENTS TO TRANSPORT OPERATORS,26/04/2024,11559926153,48.8,WWW.GWR.COM
OXFORDSHIRE CC,CUSTOMER AND CULTURE,THAME LIBRARY,EQUIPMENT,26/04/2024,11559925727,69,SQ  MR MEND SHOE REPAI
OXFORDSHIRE CC,ENVIRONMENT AND PLACE,TVERC,PAYMENT TO GOVERNMENT DEPARTMENTS,26/04/2024,11559924233,3,LAND REGISTRY ECOM CCC
OXFORDSHIRE CC,CHILDREN'S & EDUCATION,"	LEAVING CARE CITY 2",CATERING,26/04/2024,11559925197,8.99,YUMMITOS
OXFORDSHIRE CC,CHILDREN'S & EDUCATION,"	LEAVING CARE CITY 2",OTHER TRANSPORT ARRANGEMENTS,26/04/2024,11559925213,2,STGCOACH/CTYLINK
OXFORDSHIRE CC,ADULTS,CSS WITNEY,CATERING PROVISIONS,26/04/2024,11559925487,71.4,MILK AND MORE (RECUR
OXFORDSHIRE CC,CHILDREN'S & EDUCATION,NTS UASC AGENCY,CLEANING MATERIALS,26/04/2024,11559926057,67.96,AMAZON  204-1412253-32
OXFORDSHIRE CC,CHILDREN'S & EDUCATION,CHILDREN IN CARE NON-STAFFING - SOUTH,PAYMENT TO GOVERNMENT DEPARTMENTS,26/04/2024,11559926139,57.5,HM PASSPORT OFFICE
OXFORDSHIRE CC,CHILDREN'S & EDUCATION,"	OCCG GRANT",ENTERTAINMENT EXPENSES,26/04/2024,11559926431,10.55,STARBUCKS COFFEE
OXFORDSHIRE CC,CHILDREN'S & EDUCATION,"	HOME SUPPORT",MATERIALS,26/04/2024,11559924539,85,WWW.ARGOS.CO.UK
OXFORDSHIRE CC,CHILDREN'S & EDUCATION,"	RIVERSIDE CENTRE",CATERING PROVISIONS,26/04/2024,11559924701,7.35,TESCO STORES 4377
OXFORDSHIRE CC,CHILDREN'S & EDUCATION,FSP NON-STAFFING - CENTRAL,OTHER SALES,26/04/2024,11559926329,91.75,ASDA GEORGE COM LEEDS
OXFORDSHIRE CC,CHILDREN'S & EDUCATION,"	LOOKED AFTER CITY 2",PAYMENT TO GOVERNMENT DEPARTMENTS,26/04/2024,11559924595,57.5,HM PASSPORT OFFICE
OXFORDSHIRE CC,CHILDREN'S & EDUCATION,"	C&I BASE LORD WILL'M","SUPPLIES, STATIONERY AND MATERIALS",26/04/2024,11559924575,5,AMAZON  205-9797130-94
OXFORDSHIRE CC,CHILDREN'S & EDUCATION,MANAGEMENT,CATERING PROVISIONS,26/04/2024,11559926241,39.8,TESCO STORES 2994
OXFORDSHIRE CC,CUSTOMER AND CULTURE,COUNTY HALL,OTHER PREMISES RELATED COSTS,26/04/2024,11559926261,19.99,AMAZON  026-4117991-39
OXFORDSHIRE CC,ENVIRONMENT AND PLACE,NAT TRAILS GENERAL,CATERING PROVISIONS,26/04/2024,11559926407,18.5,SAINSBURYS S/MKTS
OXFORDSHIRE CC,CHILDREN'S & EDUCATION,EYNSHAM,MATERIALS,26/04/2024,11559924597,11.99,WITNEY INSIDE SAINSBUR
OXFORDSHIRE CC,CHILDREN'S & EDUCATION,EYNSHAM,CATERING,26/04/2024,11559924631,30.33,MCDONALDS
OXFORDSHIRE CC,CUSTOMER AND CULTURE,THAME LIBRARY,"NEWSPAPERS, PERIODICALS AND PUBLICATIONS",26/04/2024,11559925733,5.8,SAINSBURYS S/MKTS
OXFORDSHIRE CC,CUSTOMER AND CULTURE,WALLINGFORD LIBRARY,CATERING PROVISIONS,26/04/2024,11559925889,1.55,WAITROSE 675
OXFORDSHIRE CC,CHILDREN'S & EDUCATION,OTFC TEAM,OTHER TRANSPORT ARRANGEMENTS,26/04/2024,11559925961,8.4,APCOA -READING STATION
OXFORDSHIRE CC,CUSTOMER AND CULTURE,OXFORDSHIRE MUSEUM,OTHER TRAINING COURSES AND QUALIFICATION,26/04/2024,11559926117,150,TBL  GEM - GROUP FOR E
OXFORDSHIRE CC,CHILDREN'S & EDUCATION,40 THE MOORS,CATERING PROVISIONS,26/04/2024,11559925585,26.61,TESCO STORES 2788
OXFORDSHIRE CC,CHILDREN'S & EDUCATION,OTFC TEAM,CATERING PROVISIONS,26/04/2024,11559925965,3.15,KRISPY KREME DOUGHNUTS
OXFORDSHIRE CC,CUSTOMER AND CULTURE,LEARNING & ACCESS,VEHICLES AND PLANT - REPAIRS AND MAIN,26/04/2024,11559926121,263.47,KERNAHAN SERVICE
OXFORDSHIRE CC,CUSTOMER AND CULTURE,MUSEUMS COLLECTIONS,CATERING PROVISIONS,26/04/2024,11559926123,6.91,MILK AND MORE (RECUR
OXFORDSHIRE CC,CHILDREN'S & EDUCATION,"	LEAVING CARE SOUTH",OTHER EXPENSES,26/04/2024,11559925663,99.99,AMAZON  206-5648752-32
OXFORDSHIRE CC,CUSTOMER AND CULTURE,THAME LIBRARY,EQUIPMENT,26/04/2024,11559925723,6.85,AMAZON  204-1952661-28
OXFORDSHIRE CC,ADULTS,CSS - OXFORD,ENTERTAINMENT EXPENSES,26/04/2024,11559925315,6.5,WWW.BETTER.ORG.UK
OXFORDSHIRE CC,CORPORATE CORE,,STATIONERY,26/04/2024,11559925825,28.56,LYRECO UK LTD
OXFORDSHIRE CC,CHILDREN'S & EDUCATION,FAMILY SOLUTIONS PLUS NON-STAFF - NORTH,PAYMENTS TO TRANSPORT OPERATORS,26/04/2024,11559925855,17.95,TRAINLINE
OXFORDSHIRE CC,ENVIRONMENT AND PLACE,TVERC,PAYMENT TO GOVERNMENT DEPARTMENTS,26/04/2024,11559924229,3,LAND REGISTRY ECOM CCC
OXFORDSHIRE CC,CHILDREN'S & EDUCATION,"	OCCG GRANT",MATERIALS,26/04/2024,11559926109,13.5,WWW.ARGOS.CO.UK
OXFORDSHIRE CC,CUSTOMER AND CULTURE,UASC 16&17,OTHER EXPENSES,26/04/2024,11559925801,200,ZETTLE_ CHATTABOX INTE
OXFORDSHIRE CC,CORPORATE CORE,,STATIONERY,26/04/2024,11559925829,121.92,LYRECO UK LTD
OXFORDSHIRE CC,ENVIRONMENT AND PLACE,TVERC,PAYMENT TO GOVERNMENT DEPARTMENTS,26/04/2024,11559924217,3,LAND REGISTRY ECOM CCC
OXFORDSHIRE CC,ENVIRONMENT AND PLACE,TVERC,PAYMENT TO GOVERNMENT DEPARTMENTS,26/04/2024,11559924239,3,LAND REGISTRY ECOM CCC
OXFORDSHIRE CC,CORPORATE CORE,,STATIONERY,26/04/2024,11559925817,49.46,LYRECO UK LTD
OXFORDSHIRE CC,CORPORATE CORE,,STATIONERY,26/04/2024,11559925833,34.08,LYRECO UK LTD
OXFORDSHIRE CC,ENVIRONMENT AND PLACE,TVERC,PAYMENT TO GOVERNMENT DEPARTMENTS,26/04/2024,11559924223,3,LAND REGISTRY ECOM CCC
OXFORDSHIRE CC,ENVIRONMENT AND PLACE,TVERC,PAYMENT TO GOVERNMENT DEPARTMENTS,26/04/2024,11559924243,3,LAND REGISTRY ECOM CCC
OXFORDSHIRE CC,CHILDREN'S & EDUCATION,"	LEAVING CARE CITY 2",CLOTHING AND UNIFORMS,26/04/2024,11559925201,39.99,DEICHMANN SHOES
OXFORDSHIRE CC,CHILDREN'S & EDUCATION,"	LEAVING CARE CITY 2",PAYMENTS TO TRANSPORT OPERATORS,26/04/2024,11559925215,-76.2,GWR OXFORD TO
OXFORDSHIRE CC,CUSTOMER AND CULTURE,TREE MAINT OPS,VEHICLE EQUIPMENT AND EXPENSES - OTHER,26/04/2024,11559926157,175.5,LESLIE JAMES CANNINGS
OXFORDSHIRE CC,ADULTS,CSS WITNEY,CATERING PROVISIONS,26/04/2024,11559925181,19.15,CO-OP GROUP 070582
OXFORDSHIRE CC,CHILDREN'S & EDUCATION,OTFC TEAM,CATERING,26/04/2024,11559925967,11.9,BUBBLE CITEA READING
OXFORDSHIRE CC,CHILDREN'S & EDUCATION,REACTIVE MAINTENANCE,PREMISES REPAIRS,26/04/2024,11559926185,5,WICKES BICESTER
OXFORDSHIRE CC,CHILDREN'S & EDUCATION,THAME E&A HOME,CATERING PROVISIONS,26/04/2024,11559926173,24.69,AMAZON  205-2589215-41
OXFORDSHIRE CC,CHILDREN'S & EDUCATION,"	LEAVING CARE CITY 2",PAYMENTS TO TRANSPORT OPERATORS,26/04/2024,11559925211,61.8,GWR OXFORD TO
OXFORDSHIRE CC,ADULTS,CSS - OXFORD,CATERING EQUIPMENT,26/04/2024,11559925313,55.98,AMAZON  026-4138459-62
OXFORDSHIRE CC,ADULTS,CSS BICESTER,OTHER SALES,26/04/2024,11559924389,23.93,WEBBS GARDEN CENTRES L
OXFORDSHIRE CC,CHILDREN'S & EDUCATION,THAME E&A HOME,CATERING PROVISIONS,26/04/2024,11559926177,12.74,THE GOOD BREAKFAST - O
OXFORDSHIRE CC,CUSTOMER AND CULTURE,HOLTON SITE,CATERING PROVISIONS,26/04/2024,11559924399,23.75,MILK AND MORE (RECUR
OXFORDSHIRE CC,CUSTOMER AND CULTURE,SCHOOLS FM CATERING AREA 4,CATERING PROVISIONS,26/04/2024,11559924311,6.15,CO-OPERATIVE FOOD
OXFORDSHIRE CC,CHILDREN'S & EDUCATION,CHILDREN IN CARE NON-STAFFING - CENTRL 1,PAYMENT TO GOVERNMENT DEPARTMENTS,26/04/2024,11559924349,33,OXFORDSHIRE CC WEB1
OXFORDSHIRE CC,ADULTS,CSS WITNEY,ENTERTAINMENT EXPENSES,26/04/2024,11559925179,9.9,WWW.BETTER.ORG.UK
OXFORDSHIRE CC,CHILDREN'S & EDUCATION,"	LEAVING CARE CITY 2",PAYMENTS TO TRANSPORT OPERATORS,26/04/2024,11559925207,76.2,GWR OXFORD TO
OXFORDSHIRE CC,CUSTOMER AND CULTURE,THAME LIBRARY,"NEWSPAPERS, PERIODICALS AND PUBLICATIONS",26/04/2024,11559925729,4.86,SAINSBURYS S/MKTS
OXFORDSHIRE CC,ADULTS,CSS - OXFORD,CATERING PROVISIONS,26/04/2024,11559924149,5.13,ALDI STORES 775-142
OXFORDSHIRE CC,CUSTOMER AND CULTURE,HARD FM,PREMISES REPAIRS,26/04/2024,11559924173,29.7,WICKES BICESTER
OXFORDSHIRE CC,CHILDREN'S & EDUCATION,FIELDWORK UASC,OTHER TRANSPORT ARRANGEMENTS,26/04/2024,11559925879,20,STAGECOACH SERVICES
OXFORDSHIRE CC,CHILDREN'S & EDUCATION,EYNSHAM,HARDWARE AND CROCKERY,26/04/2024,11559924275,54.72,OXFORD WOOD RECYCLING
OXFORDSHIRE CC,CHILDREN'S & EDUCATION,CHILDREN IN CARE NON-STAFFING - SOUTH,PAYMENT TO GOVERNMENT DEPARTMENTS,26/04/2024,11559924359,57.5,HM PASSPORT OFFICE
OXFORDSHIRE CC,CHILDREN'S & EDUCATION,DIDCOT MOVE-ON HOME,CATERING PROVISIONS,25/04/2024,11553599153,4.15,CO-OP FOOD
OXFORDSHIRE CC,CHILDREN'S & EDUCATION,THAME E&A HOME,CATERING PROVISIONS,25/04/2024,11553599057,11.09,SAINSBURYS S/MKTS
OXFORDSHIRE CC,CHILDREN'S & EDUCATION,DIDCOT MOVE-ON HOME,CATERING PROVISIONS,25/04/2024,11553599147,15.49,ALDI 99 775
OXFORDSHIRE CC,CHILDREN'S & EDUCATION,EYNSHAM,CATERING PROVISIONS,25/04/2024,11553599043,12.25,CO-OPERATIVE FOOD
OXFORDSHIRE CC,CHILDREN'S & EDUCATION,PAUSE PROGRAMME,OTHER TRANSPORT ARRANGEMENTS,25/04/2024,11553599007,2.2,CHERWELL
OXFORDSHIRE CC,CHILDREN'S & EDUCATION,EYNSHAM,HARDWARE AND CROCKERY,25/04/2024,11553599031,25.79,B & Q 1176
OXFORDSHIRE CC,CHILDREN'S & EDUCATION,PAUSE PROGRAMME,CATERING PROVISIONS,25/04/2024,11553599001,9.15,TESCO STORES 2064
OXFORDSHIRE CC,CHILDREN'S & EDUCATION,EYNSHAM,OTHER TRANSPORT ARRANGEMENTS,25/04/2024,11553599045,25.5,STGCOACH/CTYLINK
OXFORDSHIRE CC,ADULTS,ASC INCOME TEAM,PAYMENT TO GOVERNMENT DEPARTMENTS,25/04/2024,11553598961,11,OXFORDSHIRE CC WEB1
OXFORDSHIRE CC,RESOURCES,FRONTIER CAV EU PROJECT,OTHER TRANSPORT ARRANGEMENTS,25/04/2024,11553601287,37,OXFORDBUS.CO.UK
OXFORDSHIRE CC,CUSTOMER AND CULTURE,HARD FM,HARDWARE AND CROCKERY,25/04/2024,11553601251,44.19,B AND Q
OXFORDSHIRE CC,CHILDREN'S & EDUCATION,C&I BASE CHERWELL,"SUPPLIES, STATIONERY AND MATERIALS",25/04/2024,11553599589,24.9,AMAZON  026-3736326-01
OXFORDSHIRE CC,ADULTS,CSS WITNEY,ENTERTAINMENT EXPENSES,25/04/2024,11553599441,19.8,WWW.BETTER.ORG.UK
OXFORDSHIRE CC,ADULTS,CSS - OXFORD,CATERING EQUIPMENT,25/04/2024,11553599665,200,AMAZON  026-8984781-74
OXFORDSHIRE CC,CHILDREN'S & EDUCATION,THAME E&A HOME,MATERIALS,25/04/2024,11553599199,8.93,CARD FACTORY
OXFORDSHIRE CC,CHILDREN'S & EDUCATION,"	HOME SUPPORT",MATERIALS,25/04/2024,11553598161,70,COTSWOLD WILDLIFE PARK
OXFORDSHIRE CC,CHILDREN'S & EDUCATION,DIDCOT MOVE-ON HOME,CATERING PROVISIONS,25/04/2024,11553599161,21.38,SAINSBURYS S/MKTS
OXFORDSHIRE CC,PUBLIC HEALTH,CHILDREN IN CARE NON-STAFFING - SOUTH,NON-STAFF SUBSISTENCE AND EXPENSES,25/04/2024,11553599183,25,VOUCHER EXPRESS
OXFORDSHIRE CC,CHILDREN'S & EDUCATION,C&I BASE CHERWELL,"SUPPLIES, STATIONERY AND MATERIALS",25/04/2024,11553599601,6.85,AMAZON  026-4908650-49
OXFORDSHIRE CC,CHILDREN'S & EDUCATION,FIELDWORK UASC,OTHER EXPENSES,25/04/2024,11553597607,100,KINGDOM LA SUPPORT LIM
OXFORDSHIRE CC,ENVIRONMENT AND PLACE,TVERC,PAYMENT TO GOVERNMENT DEPARTMENTS,25/04/2024,11553597795,3,LAND REGISTRY ECOM CCC
OXFORDSHIRE CC,ENVIRONMENT AND PLACE,WASTE MNGMNT GEN,FURNITURE,25/04/2024,11553599641,8.25,AMAZON  202-7071897-04
OXFORDSHIRE CC,CUSTOMER AND CULTURE,DIDOCT LIBRARY,"NEWSPAPERS, PERIODICALS AND PUBLICATIONS",25/04/2024,11553598851,100.4,PPOINT_ AMIN NEWSAGENT
OXFORDSHIRE CC,ADULTS,CSS WANTAGE,MATERIALS,25/04/2024,11553599919,21.91,AMAZON  203-0769893-33
OXFORDSHIRE CC,RESOURCES,SOUTH OXFORDSHIRE TEAM,STAFF ADVERTISING - GENERAL,25/04/2024,11553598237,"2,223.00",GUARDIAN NEWS & MEDIA
OXFORDSHIRE CC,ADULTS,CSS WALLINGFORD,GENERAL MAINTENANCE,25/04/2024,11553597523,14.99,AMAZON  026-0602892-20
OXFORDSHIRE CC,ADULTS,CSS - OXFORD,CATERING PROVISIONS,25/04/2024,11553599673,344.4,TESCO STORES 2994
OXFORDSHIRE CC,RESOURCES,LEGAL SERVICES,PAYMENTS TO TRANSPORT OPERATORS,25/04/2024,11553599825,233.5,WWW.GWR.COM
OXFORDSHIRE CC,CHILDREN'S & EDUCATION,"	LEAVING CARE CITY 2",VEHICLE FUEL,25/04/2024,11553597951,28.01,TESCO PFS 4156
OXFORDSHIRE CC,CHILDREN'S & EDUCATION,CHILDREN IN CARE NON-STAFFING - CENTRL 1,PAYMENT TO GOVERNMENT DEPARTMENTS,25/04/2024,11553597969,22,OXFORDSHIRE CC WEB1
OXFORDSHIRE CC,CHILDREN'S & EDUCATION,"	LEAVING CARE CITY 2",OTHER EXPENSES,25/04/2024,11553597949,11.99,AMAZON  026-0808387-55
OXFORDSHIRE CC,CHILDREN'S & EDUCATION,40 THE MOORS,CATERING PROVISIONS,25/04/2024,11553600001,6.1,TESCO STORES 2788
OXFORDSHIRE CC,CHILDREN'S & EDUCATION,PAUSE PROGRAMME,CATERING,25/04/2024,11553601399,2.7,COSTA COFFEE ABINGDON
OXFORDSHIRE CC,CORPORATE CORE,,STATIONERY,25/04/2024,11553600349,307.48,LYRECO UK LTD
OXFORDSHIRE CC,ENVIRONMENT AND PLACE,TVERC,PAYMENT TO GOVERNMENT DEPARTMENTS,25/04/2024,11553597759,3,LAND REGISTRY ECOM CCC
OXFORDSHIRE CC,ENVIRONMENT AND PLACE,TVERC,PAYMENT TO GOVERNMENT DEPARTMENTS,25/04/2024,11553597779,3,LAND REGISTRY ECOM CCC
OXFORDSHIRE CC,ENVIRONMENT AND PLACE,TVERC,PAYMENT TO GOVERNMENT DEPARTMENTS,25/04/2024,11553597857,3,LAND REGISTRY ECOM CCC
OXFORDSHIRE CC,CHILDREN'S & EDUCATION,PAUSE PROGRAMME,OTHER TRANSPORT ARRANGEMENTS,25/04/2024,11553601407,2,VALE OF WH PARKING FEE
OXFORDSHIRE CC,CHILDREN'S & EDUCATION,"	MALTFIELD HOUSE",EQUIPMENT,25/04/2024,11553600311,52.69,AMAZON  206-9350170-21
OXFORDSHIRE CC,CHILDREN'S & EDUCATION,"	LEAVING CARE CITY 2",OTHER TRANSPORT ARRANGEMENTS,25/04/2024,11553599469,2,STGCOACH/CTYLINK
OXFORDSHIRE CC,CHILDREN'S & EDUCATION,OXFORDSHIRE,CATERING PROVISIONS,25/04/2024,11553598605,5.4,TESCO STORES 2008
OXFORDSHIRE CC,ENVIRONMENT AND PLACE,TVERC,PAYMENT TO GOVERNMENT DEPARTMENTS,25/04/2024,11553597763,3,LAND REGISTRY ECOM CCC
OXFORDSHIRE CC,ENVIRONMENT AND PLACE,TVERC,PAYMENT TO GOVERNMENT DEPARTMENTS,25/04/2024,11553597783,3,LAND REGISTRY ECOM CCC
OXFORDSHIRE CC,CORPORATE CORE,"MARKETING, COMMUNICATIONS & ENGAGEMENT",LICENCES,25/04/2024,11553601017,167.44,ADOBE   ADOBE
OXFORDSHIRE CC,CUSTOMER AND CULTURE,HARD FM,PREMISES REPAIRS,25/04/2024,11553601057,3,CHERWELL
OXFORDSHIRE CC,ENVIRONMENT AND PLACE,TVERC,PAYMENT TO GOVERNMENT DEPARTMENTS,25/04/2024,11553597825,3,LAND REGISTRY ECOM CCC
OXFORDSHIRE CC,ENVIRONMENT AND PLACE,TVERC,PAYMENT TO GOVERNMENT DEPARTMENTS,25/04/2024,11553597845,3,LAND REGISTRY ECOM CCC
OXFORDSHIRE CC,ENVIRONMENT AND PLACE,TVERC,PAYMENT TO GOVERNMENT DEPARTMENTS,25/04/2024,11553597865,3,LAND REGISTRY ECOM CCC
OXFORDSHIRE CC,CUSTOMER AND CULTURE,DIDOCT LIBRARY,"SUPPLIES, STATIONERY AND MATERIALS",25/04/2024,11553598825,13.98,AMZNMKTPLACE H53FD1CV4
OXFORDSHIRE CC,ADULTS,PAUSE PROGRAMME,OTHER TRANSPORT ARRANGEMENTS,25/04/2024,11553598319,8.2,WESTGATE OXFORD CAR PA
OXFORDSHIRE CC,ENVIRONMENT AND PLACE,TVERC,PAYMENT TO GOVERNMENT DEPARTMENTS,25/04/2024,11553597769,3,LAND REGISTRY ECOM CCC
OXFORDSHIRE CC,ENVIRONMENT AND PLACE,TVERC,PAYMENT TO GOVERNMENT DEPARTMENTS,25/04/2024,11553597791,3,LAND REGISTRY ECOM CCC
OXFORDSHIRE CC,ENVIRONMENT AND PLACE,TVERC,PAYMENT TO GOVERNMENT DEPARTMENTS,25/04/2024,11553597831,3,LAND REGISTRY ECOM CCC
OXFORDSHIRE CC,ENVIRONMENT AND PLACE,TVERC,PAYMENT TO GOVERNMENT DEPARTMENTS,25/04/2024,11553597851,3,LAND REGISTRY ECOM CCC
OXFORDSHIRE CC,CUSTOMER AND CULTURE,DIDOCT LIBRARY,"SUPPLIES, STATIONERY AND MATERIALS",25/04/2024,11553598841,3.99,AMZNMKTPLACE H52MX1FD4
OXFORDSHIRE CC,PUBLIC HEALTH,CHILDREN IN CARE NON-STAFFING - SOUTH,PAYMENTS TO TRANSPORT OPERATORS,25/04/2024,11553599167,12.45,TRAINLINE
OXFORDSHIRE CC,PUBLIC HEALTH,CHILDREN IN CARE NON-STAFFING - NORTH,HIRE OF ACCOMMODATION AND FACILITIES,25/04/2024,11553599193,17,BURLEY MANOR
OXFORDSHIRE CC,PUBLIC HEALTH,WITNEY,CATERING PROVISIONS,25/04/2024,11553597533,1.85,SAINSBURYS S/MKTS
OXFORDSHIRE CC,CORPORATE CORE,,STATIONERY,25/04/2024,11553600343,0.97,LYRECO UK LTD
OXFORDSHIRE CC,ADULTS,PAUSE PROGRAMME,CATERING PROVISIONS,25/04/2024,11553598327,9.65,SAINSBURYS S/MKTS
OXFORDSHIRE CC,CHILDREN'S & EDUCATION,C&I BASE CHERWELL,"SUPPLIES, STATIONERY AND MATERIALS",25/04/2024,11553599581,4.99,AMAZON  026-2424051-40
OXFORDSHIRE CC,ADULTS,CSS - OXFORD,MATERIALS,25/04/2024,11553598145,27.4,PETS AT HOME LTD
OXFORDSHIRE CC,CHILDREN'S & EDUCATION,FAMILY SOLUTIONS PLUS NON-STAFF - NORTH,PAYMENT TO GOVERNMENT DEPARTMENTS,25/04/2024,11553600373,14,GEN REGISTER OFFICE
OXFORDSHIRE CC,PUBLIC HEALTH,CHILDREN IN CARE NON-STAFFING - NORTH,HIRE OF ACCOMMODATION AND FACILITIES,25/04/2024,11553599171,98.1,BKG HOTEL AT BOOKING.C
OXFORDSHIRE CC,CHILDREN'S & EDUCATION,"	OCCG GRANT",CATERING PROVISIONS,25/04/2024,11553598367,9,TESCO STORES 2994
OXFORDSHIRE CC,ENVIRONMENT AND PLACE,TVERC,PAYMENT TO GOVERNMENT DEPARTMENTS,25/04/2024,11553597813,3,LAND REGISTRY ECOM CCC
OXFORDSHIRE CC,ADULTS,CSS - OXFORD,CATERING PROVISIONS,25/04/2024,11553598723,18.27,ALDI STORES 775-142
OXFORDSHIRE CC,CHILDREN'S & EDUCATION,EET SERVICE,EDUCATIONAL AND VOCATIONAL TRAINING ,25/04/2024,11553599777,19,WWW.OPLEXCAREERS.COM
OXFORDSHIRE CC,CUSTOMER AND CULTURE,HARD FM,PREMISES REPAIRS,25/04/2024,11553597699,66.49,B AND Q
OXFORDSHIRE CC,CHILDREN'S & EDUCATION,EYNSHAM,MATERIALS,25/04/2024,11553597911,138.99,CURRYS OXFORD
OXFORDSHIRE CC,CHILDREN'S & EDUCATION,FSP NON-STAFFING - CENTRAL,PAYMENT TO GOVERNMENT DEPARTMENTS,25/04/2024,11553600223,22,OXFORDSHIRE CC WEB1
OXFORDSHIRE CC,CHILDREN'S & EDUCATION,"	OCCG GRANT",ENTERTAINMENT EXPENSES,25/04/2024,11553601317,17.96,DOMINOS OXFORD HEADING
OXFORDSHIRE CC,CUSTOMER AND CULTURE,RFID PROJECT,POSTAGE AND DELIVERY,25/04/2024,11553600497,8.95,POST OFFICE COUNTER
OXFORDSHIRE CC,ADULTS,CSS WITNEY,CATERING PROVISIONS,25/04/2024,11553600645,23.4,MARKS&SPENCER PLC
OXFORDSHIRE CC,CHILDREN'S & EDUCATION,NTS UASC AGENCY,CLEANING MATERIALS,25/04/2024,11553600683,22.99,AMAZON.CO.UK H55ZN8L94
OXFORDSHIRE CC,ENVIRONMENT AND PLACE,TVERC,PAYMENT TO GOVERNMENT DEPARTMENTS,25/04/2024,11553597817,3,LAND REGISTRY ECOM CCC
OXFORDSHIRE CC,ADULTS,CSS - OXFORD,CATERING PROVISIONS,25/04/2024,11553597689,9.58,ALDI STORES 775-142
OXFORDSHIRE CC,CHILDREN'S & EDUCATION,FAMILY SOLUTIONS PLUS NON-STAFF - NORTH,PAYMENT TO GOVERNMENT DEPARTMENTS,25/04/2024,11553600905,29.99,CHERWELL DC
OXFORDSHIRE CC,CHILDREN'S & EDUCATION,"	LEAVING CARE SOUTH",FURNITURE,25/04/2024,11553600253,139.99,SHARKNINJA EUROPE
OXFORDSHIRE CC,CHILDREN'S & EDUCATION,PAUSE PROGRAMME,CATERING PROVISIONS,25/04/2024,11553601387,11.55,ASDA STORES 5123
OXFORDSHIRE CC,CORPORATE CORE,,STATIONERY,25/04/2024,11553600331,6.48,LYRECO UK LTD
OXFORDSHIRE CC,ENVIRONMENT AND PLACE,TVERC,PAYMENT TO GOVERNMENT DEPARTMENTS,25/04/2024,11553597801,3,LAND REGISTRY ECOM CCC
OXFORDSHIRE CC,ENVIRONMENT AND PLACE,TVERC,PAYMENT TO GOVERNMENT DEPARTMENTS,25/04/2024,11553597821,3,LAND REGISTRY ECOM CCC
OXFORDSHIRE CC,ENVIRONMENT AND PLACE,TVERC,PAYMENT TO GOVERNMENT DEPARTMENTS,25/04/2024,11553597837,3,LAND REGISTRY ECOM CCC
OXFORDSHIRE CC,ENVIRONMENT AND PLACE,TVERC,PAYMENT TO GOVERNMENT DEPARTMENTS,25/04/2024,11553597853,3,LAND REGISTRY ECOM CCC
OXFORDSHIRE CC,CHILDREN'S & EDUCATION,REACTIVE MAINTENANCE,PREMISES REPAIRS,25/04/2024,11553600943,67.53,A W MOBBS & CO LTD
OXFORDSHIRE CC,CHILDREN'S & EDUCATION,"	LEAVING CARE SOUTH",MATERIALS,25/04/2024,11553600241,45.48,EBAY O 15-11480-24045
OXFORDSHIRE CC,CHILDREN'S & EDUCATION,PAUSE PROGRAMME,CATERING PROVISIONS,25/04/2024,11553601395,6.5,TESCO STORES 2008
OXFORDSHIRE CC,CHILDREN'S & EDUCATION,NTS UASC AGENCY,DOMESTIC SUPPLIES,25/04/2024,11553600693,9.98,SAVERS HEALTH & BEAUTY
OXFORDSHIRE CC,ENVIRONMENT AND PLACE,TVERC,PAYMENT TO GOVERNMENT DEPARTMENTS,25/04/2024,11553597775,3,LAND REGISTRY ECOM CCC
OXFORDSHIRE CC,CHILDREN'S & EDUCATION,FAMILY SOLUTIONS PLUS NON-STAFF - NORTH,PAYMENTS TO TRANSPORT OPERATORS,25/04/2024,11553598637,38.85,WWW.GWR.COM
OXFORDSHIRE CC,ENVIRONMENT AND PLACE,TVERC,PAYMENT TO GOVERNMENT DEPARTMENTS,25/04/2024,11553597839,3,LAND REGISTRY ECOM CCC
OXFORDSHIRE CC,CHILDREN'S & EDUCATION,EYNSHAM,CATERING PROVISIONS,25/04/2024,11553597905,36.98,HOME BARGAINS
OXFORDSHIRE CC,CHILDREN'S & EDUCATION,THAME E&A HOME,OTHER TRANSPORT ARRANGEMENTS,25/04/2024,11553599207,1.5,TEMPLARS SQUARE
OXFORDSHIRE CC,ADULTS,CSS - BANBURY,ENTERTAINMENT EXPENSES,25/04/2024,11553600405,5.34,SPICEBALL LEISURE CENT
OXFORDSHIRE CC,CHILDREN'S & EDUCATION,DIDCOT MOVE-ON HOME,CATERING PROVISIONS,25/04/2024,11553599163,4.42,YOM YOUR OWN MARKET
OXFORDSHIRE CC,PUBLIC HEALTH,CHILDREN IN CARE NON-STAFFING - SOUTH,OTHER TRANSPORT ARRANGEMENTS,25/04/2024,11553599189,10,NEALE'S TAXIS LIMI
OXFORDSHIRE CC,ADULTS,CSS WANTAGE,MATERIALS,25/04/2024,11553597581,11.44,BARNARDS WAY POST OFFI
OXFORDSHIRE CC,CHILDREN'S & EDUCATION,C&I BASE CHERWELL,"SUPPLIES, STATIONERY AND MATERIALS",25/04/2024,11553599609,13.2,AMAZON  026-6386766-56
OXFORDSHIRE CC,RESOURCES,CENTRAL BUYING TEAM,PROFESSIONAL SUBSCRIPTIONS,25/04/2024,11553599679,223,WWW.CIPS.ORG
OXFORDSHIRE CC,CUSTOMER AND CULTURE,MUSEUMS COLLECTIONS,OTHER SERVICES,25/04/2024,11553599831,135,MUSEUMS ASCTN
OXFORDSHIRE CC,CHILDREN'S & EDUCATION,THAME E&A HOME,CATERING PROVISIONS,25/04/2024,11553599217,12,PEACOCK STORES
OXFORDSHIRE CC,CHILDREN'S & EDUCATION,HOUSE PROJECT,OTHER TRANSPORT ARRANGEMENTS,25/04/2024,11553600365,10.2,WESTGATE OXFORD CAR PA
OXFORDSHIRE CC,CHILDREN'S & EDUCATION,"	LOOKED AFTER NORTH",CATERING PROVISIONS,25/04/2024,11553600423,66.27,WELCOME BREAK
OXFORDSHIRE CC,CHILDREN'S & EDUCATION,FAMILY SOLUTIONS PLUS NON-STAFF � SOUTH,PAYMENT TO GOVERNMENT DEPARTMENTS,25/04/2024,11553600539,53.5,VALE OF WHITE HORSE DC
OXFORDSHIRE CC,CHILDREN'S & EDUCATION,C&I BASE CHERWELL,"SUPPLIES, STATIONERY AND MATERIALS",25/04/2024,11553599617,24.85,AMAZON  026-9732704-14
OXFORDSHIRE CC,CHILDREN'S & EDUCATION,SI EQUIPMENT,DISABILITY AIDS AND EQUIPMENT,25/04/2024,11553599623,16.44,UPS LTD
OXFORDSHIRE CC,CHILDREN'S & EDUCATION,PAUSE PROGRAMME,CATERING,25/04/2024,11553601383,3.5,GREGGS
OXFORDSHIRE CC,ADULTS,NRPF & HOMELESSNESS,HIRE OF ACCOMMODATION AND FACILITIES,25/04/2024,11553599337,834,PREMIER INN
OXFORDSHIRE CC,CHILDREN'S & EDUCATION,FAMILY SOLUTIONS PLUS NON-STAFF � SOUTH,PAYMENT TO GOVERNMENT DEPARTMENTS,25/04/2024,11553600555,44,OXFORDSHIRE CC WEB1
OXFORDSHIRE CC,ADULTS,CSS WANTAGE,CATERING PROVISIONS,25/04/2024,11553597593,5.94,AMAZON  203-3014134-12
OXFORDSHIRE CC,CHILDREN'S & EDUCATION,C&I BASE CHERWELL,"SUPPLIES, STATIONERY AND MATERIALS",25/04/2024,11553599629,2.85,AMAZON  026-5130832-14
OXFORDSHIRE CC,CHILDREN'S & EDUCATION,FAMILY SOLUTIONS PLUS NON-STAFF - NORTH,PAYMENT TO GOVERNMENT DEPARTMENTS,25/04/2024,11553600909,29.99,CHERWELL DC
OXFORDSHIRE CC,CHILDREN'S & EDUCATION,"	LEAVING CARE SOUTH",MATERIALS,25/04/2024,11553600233,79.99,EBAY O 15-11480-24044
OXFORDSHIRE CC,CHILDREN'S & EDUCATION,"	LEAVING CARE SOUTH",OTHER EXPENSES,25/04/2024,11553600257,3.3,SAVOIR FARE
OXFORDSHIRE CC,CHILDREN'S & EDUCATION,THAME E&A HOME,MATERIALS,25/04/2024,11553599201,4.99,CARD FACTORY
OXFORDSHIRE CC,CHILDREN'S & EDUCATION,WITNEY,CATERING PROVISIONS,25/04/2024,11553600509,30.04,SAINSBURYS S/MKTS
OXFORDSHIRE CC,ENVIRONMENT AND PLACE,NAT TRAILS GENERAL,CATERING PROVISIONS,25/04/2024,11553599365,4.2,CO OPERATIVE FOOD
OXFORDSHIRE CC,ENVIRONMENT AND PLACE,TVERC,PAYMENT TO GOVERNMENT DEPARTMENTS,25/04/2024,11553597809,3,LAND REGISTRY ECOM CCC
OXFORDSHIRE CC,CHILDREN'S & EDUCATION,FAMILY SOLUTIONS PLUS NON-STAFF - NORTH,OTHER TRANSPORT ARRANGEMENTS,25/04/2024,11553600895,53,STAGECOACH SERVICES
OXFORDSHIRE CC,CUSTOMER AND CULTURE,LITTLEMORE LIBRARY,EQUIPMENT,25/04/2024,11553600191,15.99,AMAZON  203-3548841-74
OXFORDSHIRE CC,ENVIRONMENT AND PLACE,WASTE MNGMNT GEN,CATERING PROVISIONS,25/04/2024,11553599649,9.99,AMAZON  202-6429069-12
OXFORDSHIRE CC,CHILDREN'S & EDUCATION,FAMILY SOLUTIONS PLUS NON-STAFF - NORTH,PAYMENTS TO TRANSPORT OPERATORS,25/04/2024,11553600901,78.45,TRAINLINE
OXFORDSHIRE CC,CUSTOMER AND CULTURE,COMMUNITY PARTNERSHIP TEAM,CATERING PROVISIONS,25/04/2024,11553598109,146.2,TESCO STORES 2008
OXFORDSHIRE CC,CHILDREN'S & EDUCATION,"	LEAVING CARE SOUTH",FURNITURE,25/04/2024,11553600245,58.31,WF  UK4238042984
OXFORDSHIRE CC,ENVIRONMENT AND PLACE,TVERC,PAYMENT TO GOVERNMENT DEPARTMENTS,24/04/2024,11547838821,3,LAND REGISTRY ECOM CCC
OXFORDSHIRE CC,ENVIRONMENT AND PLACE,TVERC,PAYMENT TO GOVERNMENT DEPARTMENTS,24/04/2024,11547838849,3,LAND REGISTRY ECOM CCC
OXFORDSHIRE CC,ENVIRONMENT AND PLACE,TVERC,PAYMENT TO GOVERNMENT DEPARTMENTS,24/04/2024,11547838863,3,LAND REGISTRY ECOM CCC
OXFORDSHIRE CC,CUSTOMER AND CULTURE,COWLEY LIBRARY,"SUPPLIES, STATIONERY AND MATERIALS",24/04/2024,11547839233,3.76,AMAZON  204-9581237-93
OXFORDSHIRE CC,RESOURCES,FRONTIER CAV EU PROJECT,MATERIALS,24/04/2024,11547839279,397,REMARKABLE
OXFORDSHIRE CC,CHILDREN'S & EDUCATION,THAME E&A HOME,CATERING PROVISIONS,24/04/2024,11547839759,7.7,WELCOME BREAK-OXFORD S
OXFORDSHIRE CC,ADULTS,FIELDWORK UASC,PAYMENTS TO TRANSPORT OPERATORS,24/04/2024,11547839819,8.47,TRAINLINE
OXFORDSHIRE CC,ENVIRONMENT AND PLACE,TVERC,PAYMENT TO GOVERNMENT DEPARTMENTS,24/04/2024,11547838779,3,LAND REGISTRY ECOM CCC
OXFORDSHIRE CC,ENVIRONMENT AND PLACE,ENV & RES EFF STAFF,EQUIPMENT,24/04/2024,11547839039,73.98,AMAZON  205-5153270-96
OXFORDSHIRE CC,ENVIRONMENT AND PLACE,ENV & RES EFF STAFF,EQUIPMENT,24/04/2024,11547839065,39.9,AMAZON  205-6563995-45
OXFORDSHIRE CC,CHILDREN'S & EDUCATION,FAMILY HELP SOUTH,MATERIALS,24/04/2024,11547839183,5.99,AMZNMKTPLACE HD9JI7UJ4
OXFORDSHIRE CC,CHILDREN'S & EDUCATION,DIDCOT MOVE-ON HOME,CATERING,24/04/2024,11547841437,10.1,COSTA TEMPLARS
OXFORDSHIRE CC,ADULTS,CSS - OXFORD,CATERING PROVISIONS,24/04/2024,11547838909,6.05,ALDI STORES 775-142
OXFORDSHIRE CC,CHILDREN'S & EDUCATION,EYNSHAM,MATERIALS,24/04/2024,11547839647,100,ARGOS LTD
OXFORDSHIRE CC,CHILDREN'S & EDUCATION,"	LEAVING CARE NORTH",CLOTHING AND UNIFORMS,24/04/2024,11547841261,120,JD SPORTS FASHION PLC
OXFORDSHIRE CC,CHILDREN'S & EDUCATION,"	THRIVING FAMILY SOTH",PAYMENTS TO TRANSPORT OPERATORS,24/04/2024,11547840211,85.3,CHILTERN RAILWAYS
OXFORDSHIRE CC,CUSTOMER AND CULTURE,COUNTY HALL,OTHER PREMISES RELATED COSTS,24/04/2024,11547840519,9.97,EXTRA ELECTRICAL AND H
OXFORDSHIRE CC,CHILDREN'S & EDUCATION,"	OCCG GRANT",ENTERTAINMENT EXPENSES,24/04/2024,11547842167,16.1,WELCOME BREAK-PEARTREE
OXFORDSHIRE CC,ADULTS,CSS WALLINGFORD,CATERING PROVISIONS,24/04/2024,11547838487,4.65,WAITROSE 675
OXFORDSHIRE CC,ENTERPRISEVC,,CAR LEASING - PRIVATE RENTALS,24/04/2024,11547841193,209.78,ENTERPRISE RENT-A-CAR
OXFORDSHIRE CC,ENVIRONMENT AND PLACE,TVERC,PAYMENT TO GOVERNMENT DEPARTMENTS,24/04/2024,11547838813,3,LAND REGISTRY ECOM CCC
OXFORDSHIRE CC,ENVIRONMENT AND PLACE,TVERC,PAYMENT TO GOVERNMENT DEPARTMENTS,24/04/2024,11547838845,3,LAND REGISTRY ECOM CCC
OXFORDSHIRE CC,ADULTS,CSS BICESTER,MATERIALS,24/04/2024,11547839223,16.97,AMAZON  202-9067637-75
OXFORDSHIRE CC,CHILDREN'S & EDUCATION,"	DISABILITIES TEAM-C",MATERIALS,24/04/2024,11547838917,271.95,WWW.ARGOS.CO.UK
OXFORDSHIRE CC,CHILDREN'S & EDUCATION,"	MALTFIELD HOUSE",TELEPHONE - EQUIPMENT,24/04/2024,11547841115,5.88,AMAZON  204-8076538-20
OXFORDSHIRE CC,CHILDREN'S & EDUCATION,"	OCCG GRANT",CATERING PROVISIONS,24/04/2024,11547841627,3.19,SPAR
OXFORDSHIRE CC,CHILDREN'S & EDUCATION,"	LEAVING CARE SOUTH",RESIDENTIAL ACTIVITIES,24/04/2024,11547839919,14.6,HOLLYWOOD BOWL
OXFORDSHIRE CC,CHILDREN'S & EDUCATION,PAUSE PROGRAMME,CATERING,24/04/2024,11547840189,14.55,COSTA TEMPLARS
OXFORDSHIRE CC,CUSTOMER AND CULTURE,HARD FM,PREMISES REPAIRS,24/04/2024,11547840105,11,WICKES OXFORD
OXFORDSHIRE CC,RESOURCES,FRONTIER CAV EU PROJECT,HIRE OF ACCOMMODATION AND FACILITIES,24/04/2024,11547842171,7,LEONARDO HTL HINCKLEY
OXFORDSHIRE CC,CHILDREN'S & EDUCATION,PAUSE PROGRAMME,OTHER TRANSPORT ARRANGEMENTS,24/04/2024,11547842201,2.6,RINGGO PARKING
OXFORDSHIRE CC,ADULTS,CSS WALLINGFORD,CATERING PROVISIONS,24/04/2024,11547838499,2.5,WAITROSE 675
OXFORDSHIRE CC,ENTERPRISEVC,,CAR LEASING - PRIVATE RENTALS,24/04/2024,11547841213,139.08,ENTERPRISE RENT-A-CAR
OXFORDSHIRE CC,CHILDREN'S & EDUCATION,FAMILY SOLUTIONS PLUS NON-STAFF - NORTH,PAYMENTS TO TRANSPORT OPERATORS,24/04/2024,11547841241,19.49,TRAINLINE
OXFORDSHIRE CC,ENVIRONMENT AND PLACE,MAINTENANCE STAFF,EQUIPMENT,24/04/2024,11547839079,39.9,AMAZON  205-6563995-45
OXFORDSHIRE CC,ENTERPRISEVC,,CAR LEASING - PRIVATE RENTALS,24/04/2024,11547841165,142.01,ENTERPRISE RENT-A-CAR
OXFORDSHIRE CC,ENTERPRISEVC,,CAR LEASING - PRIVATE RENTALS,24/04/2024,11547841181,106.01,ENTERPRISE RENT-A-CAR
OXFORDSHIRE CC,ADULTS,CSS WANTAGE,ENTERTAINMENT EXPENSES,24/04/2024,11547840693,14.6,HOLLYWOOD BOWL
OXFORDSHIRE CC,CUSTOMER AND CULTURE,HARD FM,PREMISES REPAIRS,24/04/2024,11547838697,20,B & Q 1176
OXFORDSHIRE CC,ENVIRONMENT AND PLACE,TVERC,PAYMENT TO GOVERNMENT DEPARTMENTS,24/04/2024,11547838765,3,LAND REGISTRY ECOM CCC
OXFORDSHIRE CC,ENVIRONMENT AND PLACE,TVERC,PAYMENT TO GOVERNMENT DEPARTMENTS,24/04/2024,11547838789,3,LAND REGISTRY ECOM CCC
OXFORDSHIRE CC,ENVIRONMENT AND PLACE,ENV & RES EFF STAFF,EQUIPMENT,24/04/2024,11547839053,17.32,AMAZON  205-6102111-61
OXFORDSHIRE CC,CHILDREN'S & EDUCATION,FAMILY SOLUTIONS PLUS NON-STAFF � SOUTH,MATERIALS,24/04/2024,11547839163,5.79,AMZNMKTPLACE HD2D48WA4
OXFORDSHIRE CC,CUSTOMER AND CULTURE,SCHOOLS FM CATERING AREA 1,MATERIALS,24/04/2024,11547841387,68.83,AMAZON.CO.UK HD5VZ4Y74
OXFORDSHIRE CC,ADULTS,CSS BICESTER,MATERIALS,24/04/2024,11547838929,7.99,TESCO SUBSCRIPTION
OXFORDSHIRE CC,CHILDREN'S & EDUCATION,EYNSHAM,CATERING,24/04/2024,11547838563,159.93,TESCO STORES 2008
OXFORDSHIRE CC,CHILDREN'S & EDUCATION,"	LEAVING CARE SOUTH",OTHER EXPENSES,24/04/2024,11547840913,13.2,SUMUP   MISSING BEAN L
OXFORDSHIRE CC,ENVIRONMENT AND PLACE,TVERC,PAYMENT TO GOVERNMENT DEPARTMENTS,24/04/2024,11547838771,3,LAND REGISTRY ECOM CCC
OXFORDSHIRE CC,CHILDREN'S & EDUCATION,FAMILY HELP SOUTH,MATERIALS,24/04/2024,11547839175,22.97,AMZNMKTPLACE HD8B11IX4
OXFORDSHIRE CC,CUSTOMER AND CULTURE,THAME LIBRARY,"NEWSPAPERS, PERIODICALS AND PUBLICATIONS",24/04/2024,11547841043,5.8,SAINSBURYS S/MKTS
OXFORDSHIRE CC,CHILDREN'S & EDUCATION,"	MALTFIELD HOUSE",STATIONERY,24/04/2024,11547841121,26.39,AMAZON  204-9627404-87
OXFORDSHIRE CC,CHILDREN'S & EDUCATION,40 THE MOORS,VEHICLE EQUIPMENT AND EXPENSES - OTHER,24/04/2024,11547839491,2.4,ALLSTAR COLLECTIONS
OXFORDSHIRE CC,CHILDREN'S & EDUCATION,FAMILY HELP NORTH,MATERIALS,24/04/2024,11547841753,9.99,AMAZON.CO.UK HD3JJ5Y34
OXFORDSHIRE CC,CHILDREN'S & EDUCATION,"	ADOPTION",OTHER TRAINING COURSES AND QUALIFICATION,24/04/2024,11547841845,127.95,THE BELAY FOUNDATION
OXFORDSHIRE CC,CHILDREN'S & EDUCATION,"	LEAVING CARE SOUTH",OTHER EXPENSES,24/04/2024,11547840921,22.5,BANBURY FISH BAR AND R
OXFORDSHIRE CC,RESOURCES,FRONTIER CAV EU PROJECT,OTHER TRANSPORT ARRANGEMENTS,24/04/2024,11547842109,23,OXFORDBUS.CO.UK
OXFORDSHIRE CC,ENVIRONMENT AND PLACE,ENV & RES EFF STAFF,EQUIPMENT,24/04/2024,11547839031,43.38,AMAZON  205-3138097-40
OXFORDSHIRE CC,ENVIRONMENT AND PLACE,ENV & RES EFF STAFF,EQUIPMENT,24/04/2024,11547839059,94.08,AMAZON  205-6563995-45
OXFORDSHIRE CC,CHILDREN'S & EDUCATION,DIDCOT MOVE-ON HOME,CATERING,24/04/2024,11547841421,4.2,COSTA COFFEE 43011690
OXFORDSHIRE CC,CHILDREN'S & EDUCATION,WITNEY,CATERING PROVISIONS,24/04/2024,11547839959,9.73,SAINSBURYS S/MKTS
OXFORDSHIRE CC,PUBLIC HEALTH,CHILDREN IN CARE NON-STAFFING - CENTRL 1,PAYMENT TO GOVERNMENT DEPARTMENTS,24/04/2024,11547840197,11,OXFORDSHIRE CC WEB1
OXFORDSHIRE CC,SOCIAL AND COMMUNITY SERVICES,CSS - ABINGDON,CATERING PROVISIONS,24/04/2024,11547838573,49.95,AMAZON  203-3882940-66
OXFORDSHIRE CC,ENVIRONMENT AND PLACE,TVERC,PAYMENT TO GOVERNMENT DEPARTMENTS,24/04/2024,11547838751,3,LAND REGISTRY ECOM CCC
OXFORDSHIRE CC,ADULTS,LEAVING CARE CITY 2,CATERING PROVISIONS,24/04/2024,11547840307,9.5,LIDL GB  BICESTER
OXFORDSHIRE CC,ADULTS,CSS WANTAGE,MATERIALS,24/04/2024,11547841983,13.96,AMAZON  204-5352867-87
OXFORDSHIRE CC,CHILDREN'S & EDUCATION,"	LEAVING CARE CITY 2",OTHER TRANSPORT ARRANGEMENTS,24/04/2024,11547840437,4.5,STGCOACH/CTYLINK
OXFORDSHIRE CC,ADULTS,CSS WANTAGE,ENTERTAINMENT EXPENSES,24/04/2024,11547840707,14.6,HOLLYWOOD BOWL
OXFORDSHIRE CC,CHILDREN'S & EDUCATION,40 THE MOORS,CATERING,24/04/2024,11547841477,13.58,MCDONALDS
OXFORDSHIRE CC,ADULTS,CSS - OXFORD,MATERIALS,24/04/2024,11547839369,37.69,ALDI STORES 775-142
OXFORDSHIRE CC,CHILDREN'S & EDUCATION,"	LOOKED AFTER CITY 2",CATERING PROVISIONS,24/04/2024,11547839565,28.29,WELCOME BREAK
OXFORDSHIRE CC,CHILDREN'S & EDUCATION,40 THE MOORS,CATERING PROVISIONS,24/04/2024,11547839665,56.89,OXFORD PEARTREE KFC
OXFORDSHIRE CC,CHILDREN'S & EDUCATION,"	LEAVING CARE CITY 2",OTHER TRANSPORT ARRANGEMENTS,24/04/2024,11547840443,2,STGCOACH/CTYLINK
OXFORDSHIRE CC,CHILDREN'S & EDUCATION,"	LEAVING CARE SOUTH",OTHER TRANSPORT ARRANGEMENTS,24/04/2024,11547840931,2.2,BOLTON ROAD
OXFORDSHIRE CC,RESOURCES,FRONTIER CAV EU PROJECT,OTHER TRANSPORT ARRANGEMENTS,24/04/2024,11547842113,23,OXFORDBUS.CO.UK
OXFORDSHIRE CC,CHILDREN'S & EDUCATION,40 THE MOORS,CATERING PROVISIONS,24/04/2024,11547841481,10,TESCO STORES 2788
OXFORDSHIRE CC,CHILDREN'S & EDUCATION,"	LAC PUPIL PREMIUM",PURCHASE OF IT EQUIPMENT,24/04/2024,11547840039,-120,AMAZON.CO.UK
OXFORDSHIRE CC,RESOURCES,LEGAL SERVICES,CATERING PROVISIONS,24/04/2024,11547840629,24.25,AMAZON  026-6243951-74
OXFORDSHIRE CC,ADULTS,CSS - OXFORD,MATERIALS,24/04/2024,11547838673,20.77,AMAZON  204-6294155-97
OXFORDSHIRE CC,ENVIRONMENT AND PLACE,TVERC,PAYMENT TO GOVERNMENT DEPARTMENTS,24/04/2024,11547838759,3,LAND REGISTRY ECOM CCC
OXFORDSHIRE CC,ENVIRONMENT AND PLACE,MAINTENANCE STAFF,STATIONERY,24/04/2024,11547839025,3.45,AMAZON  205-1707761-06
OXFORDSHIRE CC,ENVIRONMENT AND PLACE,TVERC,PAYMENT TO GOVERNMENT DEPARTMENTS,24/04/2024,11547838783,3,LAND REGISTRY ECOM CCC
OXFORDSHIRE CC,ENVIRONMENT AND PLACE,ENV & RES EFF STAFF,EQUIPMENT,24/04/2024,11547839045,17.32,AMAZON  205-6102111-61
OXFORDSHIRE CC,ENVIRONMENT AND PLACE,ENV & RES EFF STAFF,EQUIPMENT,24/04/2024,11547839069,54.18,AMAZON  205-6563995-45
OXFORDSHIRE CC,CHILDREN'S & EDUCATION,UASC 16&17,OTHER TRANSPORT ARRANGEMENTS,24/04/2024,11547841345,10.6,ROYAL CARS
OXFORDSHIRE CC,CHILDREN'S & EDUCATION,"	HOME SUPPORT",MATERIALS,24/04/2024,11547839391,24,RUNA NETWORK LIMITED
OXFORDSHIRE CC,ADULTS,ASC INCOME TEAM,PAYMENT TO GOVERNMENT DEPARTMENTS,24/04/2024,11547839467,11,OXFORDSHIRE CC WEB1
OXFORDSHIRE CC,CHILDREN'S & EDUCATION,THAME E&A HOME,DAY ACTIVITIES,24/04/2024,11547840095,1.6,MARTIN MCCOLL
OXFORDSHIRE CC,ENVIRONMENT AND PLACE,TVERC,PAYMENT TO GOVERNMENT DEPARTMENTS,24/04/2024,11547838805,3,LAND REGISTRY ECOM CCC
OXFORDSHIRE CC,ENVIRONMENT AND PLACE,TVERC,PAYMENT TO GOVERNMENT DEPARTMENTS,24/04/2024,11547838839,3,LAND REGISTRY ECOM CCC
OXFORDSHIRE CC,ENVIRONMENT AND PLACE,TVERC,PAYMENT TO GOVERNMENT DEPARTMENTS,24/04/2024,11547838859,3,LAND REGISTRY ECOM CCC
OXFORDSHIRE CC,ADULTS,CSS - OXFORD,CATERING PROVISIONS,24/04/2024,11547838905,5.89,ALDI STORES 775-142
OXFORDSHIRE CC,CHILDREN'S & EDUCATION,"	MALTFIELD HOUSE",CATERING PROVISIONS,24/04/2024,11547841111,21.44,AMAZON  204-8076538-20
OXFORDSHIRE CC,CHILDREN'S & EDUCATION,QUALITY ASSURANCE NORTH TEAM,HIRE OF ACCOMMODATION AND FACILITIES,24/04/2024,11547841803,54.01,TRAVELODGE
OXFORDSHIRE CC,CHILDREN'S & EDUCATION,"	SEN/ICT EQUIPMENT",PURCHASE OF IT EQUIPMENT,24/04/2024,11547841963,17.08,AMAZON  203-6262023-44
OXFORDSHIRE CC,ENTERPRISEVC,,CAR LEASING - PRIVATE RENTALS,24/04/2024,11547841207,77.98,ENTERPRISE RENT-A-CAR
OXFORDSHIRE CC,ENTERPRISEVC,,CAR LEASING - PRIVATE RENTALS,24/04/2024,11547841231,41.98,ENTERPRISE RENT-A-CAR
OXFORDSHIRE CC,CORPORATE CORE,,STATIONERY,24/04/2024,11547841151,27.84,LYRECO UK LTD
OXFORDSHIRE CC,ENTERPRISEVC,,CAR LEASING - PRIVATE RENTALS,24/04/2024,11547841177,59.98,ENTERPRISE RENT-A-CAR
OXFORDSHIRE CC,RESOURCES,GREENLOG,OTHER TRANSPORT ARRANGEMENTS,24/04/2024,11547839273,46.82,TAXIS ON BOOKING
OXFORDSHIRE CC,CHILDREN'S & EDUCATION,CHILDREN IN CARE COUNCIL,MATERIALS,24/04/2024,11547839303,80,HIGH STREET VOUCHERS
OXFORDSHIRE CC,CHILDREN'S & EDUCATION,"	SEN/ICT EQUIPMENT",PURCHASE OF IT EQUIPMENT,24/04/2024,11547841969,29.98,AMAZON  203-0725305-74
OXFORDSHIRE CC,ENVIRONMENT AND PLACE,NAT TRAILS GENERAL,CATERING PROVISIONS,24/04/2024,11547840347,2.65,CO OPERATIVE FOOD
OXFORDSHIRE CC,CHILDREN'S & EDUCATION,"	LEAVING CARE CITY 2",OTHER TRANSPORT ARRANGEMENTS,24/04/2024,11547840449,2,STGCOACH/CTYLINK
OXFORDSHIRE CC,CHILDREN'S & EDUCATION,FAMILY SOLUTIONS PLUS NON-STAFF - NORTH,PAYMENTS TO TRANSPORT OPERATORS,24/04/2024,11547841251,35.29,TRAINLINE
OXFORDSHIRE CC,CORPORATE CORE,"MARKETING, COMMUNICATIONS & ENGAGEMENT",OTHER SERVICES,24/04/2024,11547841815,75,TESCO STORES 2994
OXFORDSHIRE CC,CHILDREN'S & EDUCATION,"	LEAVING CARE CITY 2",CATERING PROVISIONS,24/04/2024,11547840433,15.89,SAINSBURYS S/MKTS
OXFORDSHIRE CC,CUSTOMER AND CULTURE,ABINGDON LIBRARY,"NEWSPAPERS, PERIODICALS AND PUBLICATIONS",24/04/2024,11547840889,64.99,GUARDIAN NEWS & MEDIA
OXFORDSHIRE CC,CHILDREN'S & EDUCATION,"	RIVERSIDE CENTRE",CATERING PROVISIONS,24/04/2024,11547839737,25.35,AMAZON  202-5141565-53
OXFORDSHIRE CC,ADULTS,CSS WITNEY,CATERING PROVISIONS,24/04/2024,11547841791,21.65,CO-OP GROUP 070582
OXFORDSHIRE CC,CORPORATE CORE,"MARKETING, COMMUNICATIONS & ENGAGEMENT",OTHER SERVICES,24/04/2024,11547841819,75,TESCO STORES 2994
OXFORDSHIRE CC,CHILDREN'S & EDUCATION,"	SEN/ICT EQUIPMENT",PURCHASE OF IT EQUIPMENT,24/04/2024,11547841973,11.19,AMAZON  203-8502903-60
OXFORDSHIRE CC,ADULTS,CSS - OXFORD,CATERING PROVISIONS,24/04/2024,11547839365,27.39,ALDI STORES 775-142
OXFORDSHIRE CC,CHILDREN'S & EDUCATION,EYNSHAM,HARDWARE AND CROCKERY,24/04/2024,11547841545,28,B AND Q
OXFORDSHIRE CC,RESOURCES,ICT OPERATIONS & MAI,OTHER COMMUNICATIONS,24/04/2024,11547841637,25,EE TOPUP  VESTA
OXFORDSHIRE CC,CHILDREN'S & EDUCATION,WITNEY,CATERING PROVISIONS,24/04/2024,11547841305,18.56,LIDL GB WITNEY
OXFORDSHIRE CC,CHILDREN'S & EDUCATION,40 THE MOORS,CATERING PROVISIONS,24/04/2024,11547841699,165.28,SAINSBURYS.CO.UK
OXFORDSHIRE CC,CHILDREN'S & EDUCATION,BANBURY CC,CATERING PROVISIONS,24/04/2024,11547841747,7.25,ALDI 10 775
OXFORDSHIRE CC,CUSTOMER AND CULTURE,HARD FM,PREMISES REPAIRS,24/04/2024,11547840111,51.18,B AND Q
OXFORDSHIRE CC,CHILDREN'S & EDUCATION,THAME E&A HOME,CATERING PROVISIONS,24/04/2024,11547840303,5,B&M 515 - ABINGDON
OXFORDSHIRE CC,ADULTS,CSS WALLINGFORD,MATERIALS,24/04/2024,11547838509,2.58,KP STATIONERS
OXFORDSHIRE CC,ENTERPRISEVC,,CAR LEASING - PRIVATE RENTALS,24/04/2024,11547841197,244.42,ENTERPRISE RENT-A-CAR
OXFORDSHIRE CC,ENTERPRISEVC,,CAR LEASING - PRIVATE RENTALS,24/04/2024,11547841217,209.88,ENTERPRISE RENT-A-CAR
OXFORDSHIRE CC,CORPORATE CORE,,STATIONERY,24/04/2024,11547841139,112.73,LYRECO UK LTD
OXFORDSHIRE CC,ENTERPRISEVC,,CAR LEASING - PRIVATE RENTALS,24/04/2024,11547841169,41.98,ENTERPRISE RENT-A-CAR
OXFORDSHIRE CC,ENTERPRISEVC,,CAR LEASING - PRIVATE RENTALS,24/04/2024,11547841185,125.82,ENTERPRISE RENT-A-CAR
OXFORDSHIRE CC,ENVIRONMENT AND PLACE,TVERC,PAYMENT TO GOVERNMENT DEPARTMENTS,24/04/2024,11547838867,3,LAND REGISTRY ECOM CCC
OXFORDSHIRE CC,RESOURCES,FRONTIER CAV EU PROJECT,MATERIALS,24/04/2024,11547839283,559.01,REMARKABLE
OXFORDSHIRE CC,CORPORATE CORE,,STATIONERY,24/04/2024,11547841131,225.88,LYRECO UK LTD
OXFORDSHIRE CC,RESOURCES,ICT OPERATIONS & MAI,IT SERVICES,24/04/2024,11547841295,837.26,IN  GEO JOBE GIS CONSU
OXFORDSHIRE CC,CHILDREN'S & EDUCATION,OTFC TEAM,ENTERTAINMENT EXPENSES,24/04/2024,11547841327,29.87,FAIRYTALE FARM
OXFORDSHIRE CC,CHILDREN'S & EDUCATION,"	LEAVING CARE SOUTH",RESIDENTIAL ACTIVITIES,24/04/2024,11547839929,8.7,HWB OXFORD
OXFORDSHIRE CC,RESOURCES,FRONTIER CAV EU PROJECT,PAYMENTS TO TRANSPORT OPERATORS,24/04/2024,11547842177,64.3,GWR OXFORD TO
OXFORDSHIRE CC,RESOURCES,FRONTIER CAV EU PROJECT,OTHER TRANSPORT ARRANGEMENTS,24/04/2024,11547842103,23,OXFORDBUS.CO.UK
OXFORDSHIRE CC,ENTERPRISEVC,,CAR LEASING - PRIVATE RENTALS,24/04/2024,11547841201,106.01,ENTERPRISE RENT-A-CAR
OXFORDSHIRE CC,ENTERPRISEVC,,CAR LEASING - PRIVATE RENTALS,24/04/2024,11547841225,177.01,ENTERPRISE RENT-A-CAR
OXFORDSHIRE CC,CORPORATE CORE,,STATIONERY,24/04/2024,11547841149,21.6,LYRECO UK LTD
OXFORDSHIRE CC,ENTERPRISEVC,,CAR LEASING - PRIVATE RENTALS,24/04/2024,11547841173,77.98,ENTERPRISE RENT-A-CAR
OXFORDSHIRE CC,ENTERPRISEVC,,CAR LEASING - PRIVATE RENTALS,24/04/2024,11547841191,113.5,ENTERPRISE RENT-A-CAR
OXFORDSHIRE CC,ENVIRONMENT AND PLACE,TVERC,PAYMENT TO GOVERNMENT DEPARTMENTS,24/04/2024,11547838797,3,LAND REGISTRY ECOM CCC
OXFORDSHIRE CC,ENVIRONMENT AND PLACE,TVERC,PAYMENT TO GOVERNMENT DEPARTMENTS,24/04/2024,11547838827,3,LAND REGISTRY ECOM CCC
OXFORDSHIRE CC,ENVIRONMENT AND PLACE,TVERC,PAYMENT TO GOVERNMENT DEPARTMENTS,24/04/2024,11547838855,3,LAND REGISTRY ECOM CCC
OXFORDSHIRE CC,CHILDREN'S & EDUCATION,OTFC TEAM,CATERING PROVISIONS,24/04/2024,11547841329,9.65,CO-OP GROUP 310626
OXFORDSHIRE CC,CHILDREN'S & EDUCATION,QUALITY ASSURANCE NORTH TEAM,HIRE OF ACCOMMODATION AND FACILITIES,24/04/2024,11547841795,69.01,TRAVELODGE
OXFORDSHIRE CC,ADULTS,ASC INCOME TEAM,PAYMENT TO GOVERNMENT DEPARTMENTS,24/04/2024,11547840151,11,OXFORDSHIRE CC WEB1
OXFORDSHIRE CC,ADULTS,CSS - ABINGDON,CATERING PROVISIONS,24/04/2024,11547842157,28.94,ALDI STORES
OXFORDSHIRE CC,ADULTS,CSS WALLINGFORD,FIXTURES & FITTINGS,24/04/2024,11547838473,16.7,AMAZON  026-6633583-32
OXFORDSHIRE CC,CHILDREN'S & EDUCATION,"	LOOKED AFTER CITY 2",OTHER TRANSPORT ARRANGEMENTS,23/04/2024,11542822871,2,STGCOACH/CTYLINK
OXFORDSHIRE CC,CHILDREN'S & EDUCATION,"	LEAVING CARE NORTH",MATERIALS,23/04/2024,11542823463,8.99,AMAZON PRIME HD2TR2SS4
OXFORDSHIRE CC,ADULTS,CSS - BANBURY,CATERING PROVISIONS,23/04/2024,11542823469,20.5,TEMU.COM
OXFORDSHIRE CC,CHILDREN'S & EDUCATION,THAME E&A HOME,CATERING PROVISIONS,23/04/2024,11542821873,280.25,TESCO STORES 2038
OXFORDSHIRE CC,CHILDREN'S & EDUCATION,"	DISABILITIES TEAM-C",CATERING PROVISIONS,23/04/2024,11542821683,25,TESCO GIFT CARD
OXFORDSHIRE CC,CHILDREN'S & EDUCATION,OTFC TEAM,CATERING,23/04/2024,11542823553,15.2,BOOST JUICE BARS
OXFORDSHIRE CC,CHILDREN'S & EDUCATION,THAME E&A HOME,CATERING PROVISIONS,23/04/2024,11542821729,37.79,SAINSBURYS S/MKTS
OXFORDSHIRE CC,CHILDREN'S & EDUCATION,"	LEAVING CARE NORTH",MATERIALS,23/04/2024,11542822063,491.95,WWW.ARGOS.CO.UK
OXFORDSHIRE CC,ADULTS,CSS WITNEY,ENTERTAINMENT EXPENSES,23/04/2024,11542822929,9.9,WWW.BETTER.ORG.UK
OXFORDSHIRE CC,CUSTOMER AND CULTURE,COMMUNICATIONS,"PUBLICITY, PROMOTIONS AND ADVERTISEMENT",23/04/2024,11542823155,500,GOOGLE ADS4896546035
OXFORDSHIRE CC,CHILDREN'S & EDUCATION,"	LEAVING CARE NORTH",CATERING PROVISIONS,23/04/2024,11542822067,30,TESCO GIFT CARD
OXFORDSHIRE CC,ADULTS,CSS WANTAGE,CATERING PROVISIONS,23/04/2024,11542821571,52.51,SAINSBURYS S/MKT
OXFORDSHIRE CC,SOCIAL AND COMMUNITY SERVICES,CSS - ABINGDON,CATERING PROVISIONS,23/04/2024,11542821577,35.38,TESCO STORES 2008
OXFORDSHIRE CC,CHILDREN'S & EDUCATION,EYNSHAM,EQUIPMENT,23/04/2024,11542822245,8.2,EVENLODE DIY
OXFORDSHIRE CC,CUSTOMER AND CULTURE,WALLINGFORD LIBRARY,"NEWSPAPERS, PERIODICALS AND PUBLICATIONS",23/04/2024,11542823511,50.22,BRIGHTONS NEWSAGEN
OXFORDSHIRE CC,CHILDREN'S & EDUCATION,OTFC TEAM,CATERING PROVISIONS,23/04/2024,11542823543,7.6,SAINSBURYS S/MKTS
OXFORDSHIRE CC,CHILDREN'S & EDUCATION,OTFC TEAM,OTHER TRANSPORT ARRANGEMENTS,23/04/2024,11542823545,5.3,OXPENS CAR PARK
OXFORDSHIRE CC,CHILDREN'S & EDUCATION,UASC 16&17,OTHER TRANSPORT ARRANGEMENTS,23/04/2024,11542821597,64,OXFORD BUS CO
OXFORDSHIRE CC,CUSTOMER AND CULTURE,LEARNING & ACCESS,"SUPPLIES, STATIONERY AND MATERIALS",23/04/2024,11542823709,29.99,AMAZON  202-3290699-32
OXFORDSHIRE CC,CHILDREN'S & EDUCATION,EYNSHAM,HARDWARE AND CROCKERY,23/04/2024,11542822117,20,B & Q 1176
OXFORDSHIRE CC,CHILDREN'S & EDUCATION,EYNSHAM,HARDWARE AND CROCKERY,23/04/2024,11542822121,86,B & Q 1176
OXFORDSHIRE CC,ADULTS,CSS WITNEY,CATERING PROVISIONS,23/04/2024,11542823967,24.72,LIDL GB WITNEY
OXFORDSHIRE CC,ADULTS,CSS WALLINGFORD,MATERIALS,23/04/2024,11542823889,2.6,AMAZON  026-0395105-58
OXFORDSHIRE CC,ADULTS,MALTFIELD HOUSE,CATERING PROVISIONS,23/04/2024,11542823913,16.22,SAINSBURYS S/MKTS
OXFORDSHIRE CC,CHILDREN'S & EDUCATION,"	MALTFIELD HOUSE",CATERING PROVISIONS,23/04/2024,11542822375,1.09,LIDL GB WITNEY
OXFORDSHIRE CC,ADULTS,CSS WALLINGFORD,MATERIALS,23/04/2024,11542823895,29.99,AMAZON  026-1422470-76
OXFORDSHIRE CC,ENVIRONMENT AND PLACE,BRIDGES GENERAL,PAYMENT TO GOVERNMENT DEPARTMENTS,23/04/2024,11542824209,-111.5,ENVIROMENT AGENCY
OXFORDSHIRE CC,CUSTOMER AND CULTURE,REGISTRAR,CATERING PROVISIONS,23/04/2024,11542822785,247.55,AMAZON  205-9850483-34
OXFORDSHIRE CC,ADULTS,CSS WALLINGFORD,MATERIALS,23/04/2024,11542823899,23.98,AMAZON  026-1191592-33
OXFORDSHIRE CC,ADULTS,CSS WITNEY,CATERING PROVISIONS,23/04/2024,11542823959,19.6,LIDL GB WITNEY
OXFORDSHIRE CC,CHILDREN'S & EDUCATION,THAME E&A HOME,CATERING PROVISIONS,23/04/2024,11542822441,3.25,B&M 515 - ABINGDON
OXFORDSHIRE CC,CHILDREN'S & EDUCATION,DIDCOT MOVE-ON HOME,CATERING PROVISIONS,23/04/2024,11542822397,6.09,SAINSBURYS S/MKTS
OXFORDSHIRE CC,CHILDREN'S & EDUCATION,"	LEAVING CARE NORTH",PAYMENT TO GOVERNMENT DEPARTMENTS,23/04/2024,11542822701,167,OXFORD291OFFICE
OXFORDSHIRE CC,CHILDREN'S & EDUCATION,40 THE MOORS,OTHER TRANSPORT ARRANGEMENTS,23/04/2024,11542823647,4,STGCOACH/CTYLINK
OXFORDSHIRE CC,CHILDREN'S & EDUCATION,EYNSHAM,CATERING PROVISIONS,23/04/2024,11542823679,19.65,HOME BARGAINS
OXFORDSHIRE CC,CHILDREN'S & EDUCATION,EYNSHAM,CATERING,23/04/2024,11542823683,12.65,LOOMSBURY UK LIMITED
OXFORDSHIRE CC,CHILDREN'S & EDUCATION,40 THE MOORS,CLOTHING AND UNIFORMS,23/04/2024,11542823639,133.05,NIKE BICESTER 2051
OXFORDSHIRE CC,CHILDREN'S & EDUCATION,EYNSHAM,HARDWARE AND CROCKERY,23/04/2024,11542823675,5.5,WICKES OXFORD
OXFORDSHIRE CC,CHILDREN'S & EDUCATION,40 THE MOORS,OTHER TRANSPORT ARRANGEMENTS,23/04/2024,11542823645,4,STGCOACH/CTYLINK
OXFORDSHIRE CC,CHILDREN'S & EDUCATION,EYNSHAM,HARDWARE AND CROCKERY,23/04/2024,11542823677,27,B AND Q
OXFORDSHIRE CC,CHILDREN'S & EDUCATION,OTFC TEAM,CATERING,23/04/2024,11542823561,9.85,COSTA TEMPLARS
OXFORDSHIRE CC,ADULTS,CSS BICESTER,CATERING PROVISIONS,23/04/2024,11542821689,116.04,TESCO STORES 2162
OXFORDSHIRE CC,CHILDREN'S & EDUCATION,THAME E&A HOME,TELEPHONE - EQUIPMENT,23/04/2024,11542822439,20,GIFFGAFF
OXFORDSHIRE CC,CHILDREN'S & EDUCATION,"	LOOKED AFTER CITY 2",OTHER TRANSPORT ARRANGEMENTS,23/04/2024,11542822865,2,OXFORD BUS COMPANY
OXFORDSHIRE CC,CHILDREN'S & EDUCATION,"	LEAVING CARE NORTH",CATERING,23/04/2024,11542823461,12.15,SQ  HUNTERS CAKE CAFE
OXFORDSHIRE CC,CORPORATE CORE,,STATIONERY,23/04/2024,11542823443,73.7,LYRECO UK LTD
OXFORDSHIRE CC,ADULTS,CSS WANTAGE,HARDWARE AND CROCKERY,23/04/2024,11542821569,12,HOMEBASE LTD
OXFORDSHIRE CC,CHILDREN'S & EDUCATION,UASC 16&17,RESIDENTIAL ACTIVITIES,23/04/2024,11542822501,22.99,THE GYM GROUP
OXFORDSHIRE CC,CHILDREN'S & EDUCATION,PAUSE PROGRAMME,CATERING,23/04/2024,11542822695,9.99,BURGER KING  BICESTER
OXFORDSHIRE CC,CHILDREN'S & EDUCATION,NTS UASC AGENCY,MATERIALS,23/04/2024,11542823623,30.95,WWW.ARGOS.CO.UK
OXFORDSHIRE CC,CHILDREN'S & EDUCATION,FAMILY SOLUTIONS PLUS NON-STAFF - NORTH,PAYMENTS TO TRANSPORT OPERATORS,23/04/2024,11542823601,17.95,TRAINLINE
OXFORDSHIRE CC,ADULTS,FIELDWORK UASC,PAYMENTS TO TRANSPORT OPERATORS,23/04/2024,11542822541,8.37,TRAINLINE
OXFORDSHIRE CC,ADULTS,CSS WANTAGE,MATERIALS,23/04/2024,11542824099,4.99,AMAZON  204-8375158-65
OXFORDSHIRE CC,CHILDREN'S & EDUCATION,PAUSE PROGRAMME,POSTAGE AND DELIVERY,23/04/2024,11542822689,3.69,POST OFFICE COUNTER
OXFORDSHIRE CC,CHILDREN'S & EDUCATION,"	MALTFIELD HOUSE",CATERING PROVISIONS,23/04/2024,11542823423,105.33,TESCO STORES 2279
OXFORDSHIRE CC,CORPORATE CORE,,STATIONERY,23/04/2024,11542823435,77.72,LYRECO UK LTD
OXFORDSHIRE CC,CHILDREN'S & EDUCATION,EYNSHAM,EQUIPMENT,23/04/2024,11542822123,16.4,EVENLODE DIY
OXFORDSHIRE CC,CHILDREN'S & EDUCATION,"	OCCG GRANT",CATERING,23/04/2024,11542822241,14.55,COSTA COFFEE 43011357
OXFORDSHIRE CC,ADULTS,CSS WALLINGFORD,CATERING PROVISIONS,23/04/2024,11542823903,15.99,AMAZON  026-8957395-92
OXFORDSHIRE CC,ADULTS,CSS WANTAGE,CATERING PROVISIONS,23/04/2024,11542824101,14.13,AMAZON  204-6095276-82
OXFORDSHIRE CC,ADULTS,CSS WANTAGE,MATERIALS,23/04/2024,11542824105,14.99,AMAZON  204-8375158-65
OXFORDSHIRE CC,RESOURCES,FRONTIER CAV EU PROJECT,OTHER TRANSPORT ARRANGEMENTS,23/04/2024,11542824153,38,OXFORDBUS.CO.UK
OXFORDSHIRE CC,CUSTOMER AND CULTURE,THAME LIBRARY,"NEWSPAPERS, PERIODICALS AND PUBLICATIONS",23/04/2024,11542823327,5.8,SAINSBURYS S/MKTS
OXFORDSHIRE CC,CHILDREN'S & EDUCATION,"	LEAVING CARE SOUTH",CATERING PROVISIONS,23/04/2024,11542823261,79.98,AMAZON  206-5731347-68
OXFORDSHIRE CC,CUSTOMER AND CULTURE,SAMUELSON HOUSE,OTHER PREMISES RELATED COSTS,23/04/2024,11542822277,8.3,WWW.GWR.COM
OXFORDSHIRE CC,ENVIRONMENT AND PLACE,FLEET OPERATIONS,CATERING PROVISIONS,23/04/2024,11542822279,-10,MILK AND MORE
OXFORDSHIRE CC,CHILDREN'S & EDUCATION,QUALITY ASSURANCE NORTH TEAM,PAYMENTS TO TRANSPORT OPERATORS,23/04/2024,11542824009,89.47,TRAINLINE
OXFORDSHIRE CC,ENVIRONMENT AND PLACE,FLEET OPERATIONS,CATERING PROVISIONS,23/04/2024,11542822281,-10,MILK AND MORE
OXFORDSHIRE CC,CHILDREN'S & EDUCATION,FSP NON-STAFFING - CENTRAL,CATERING PROVISIONS,23/04/2024,11542822315,5.55,TESCO STORES 2994
OXFORDSHIRE CC,ADULTS,CSS - OXFORD,DISABILITY AIDS AND EQUIPMENT,23/04/2024,11542822949,49.98,AMAZON  026-0002583-67
OXFORDSHIRE CC,CHILDREN'S & EDUCATION,CHILDREN IN CARE NON-STAFFING - SOUTH,MATERIALS,23/04/2024,11542821749,28.98,EUROFLORIST UK LTD
OXFORDSHIRE CC,CHILDREN'S & EDUCATION,CHILDREN IN CARE NON-STAFFING - SOUTH,PAYMENT TO GOVERNMENT DEPARTMENTS,23/04/2024,11542821753,62.5,HM PASSPORT OFFICE
OXFORDSHIRE CC,CHILDREN'S & EDUCATION,QUALITY ASSURANCE NORTH TEAM,PAYMENTS TO TRANSPORT OPERATORS,23/04/2024,11542824001,59.07,TRAINLINE
OXFORDSHIRE CC,ADULTS,CSS - OXFORD,MATERIALS,23/04/2024,11542822951,33.62,AMAZON  026-2121083-08
OXFORDSHIRE CC,ADULTS,CSS - BANBURY,CATERING PROVISIONS,23/04/2024,11542823801,78.21,SAINSBURYS.CO.UK
OXFORDSHIRE CC,CHILDREN'S & EDUCATION,THAME E&A HOME,OTHER EMPLOYEE EXPENSES,23/04/2024,11542823813,14.9,THAME BP SF CONNECT
OXFORDSHIRE CC,ADULTS,CSS - BANBURY,CATERING PROVISIONS,23/04/2024,11542823475,-20.5,TEMU.COM
OXFORDSHIRE CC,CHILDREN'S & EDUCATION,UASC 16&17,CLOTHING AND UNIFORMS,23/04/2024,11542823505,23.09,AMAZON  203-4040952-78
OXFORDSHIRE CC,CHILDREN'S & EDUCATION,OTFC TEAM,CATERING,23/04/2024,11542823549,11.78,"KFC OXFORD, TEMPLARS S"
OXFORDSHIRE CC,CUSTOMER AND CULTURE,HARD FM,MATERIALS,23/04/2024,11542821633,90.58,ACCESS LOCK KEY SERVIC
OXFORDSHIRE CC,CUSTOMER AND CULTURE,HARD FM,PREMISES REPAIRS,23/04/2024,11542821637,22.68,WICKES BANBURY
OXFORDSHIRE CC,CUSTOMER AND CULTURE,HARD FM,PREMISES REPAIRS,23/04/2024,11542821639,87.19,DULUX DECORATOR CENTRE
OXFORDSHIRE CC,CHILDREN'S & EDUCATION,EYNSHAM,HARDWARE AND CROCKERY,22/04/2024,11534330213,81,B&Q LTD
OXFORDSHIRE CC,CORPORATE CORE,,STATIONERY,22/04/2024,11534330251,8,LYRECO UK LTD
OXFORDSHIRE CC,CHILDREN'S & EDUCATION,"	LEAVING CARE NORTH",DISABILITY AIDS AND EQUIPMENT,22/04/2024,11534330281,19.39,AMAZON  204-0501042-74
OXFORDSHIRE CC,ADULTS,CSS - BANBURY,CATERING PROVISIONS,22/04/2024,11534330311,0.29,TEMU.COM
OXFORDSHIRE CC,ADULTS,CSS - OXFORD,CATERING PROVISIONS,22/04/2024,11534329181,0.99,ALDI STORES 775-142
OXFORDSHIRE CC,CHILDREN'S & EDUCATION,CHILDREN IN CARE NON-STAFFING - SOUTH,PAYMENT TO GOVERNMENT DEPARTMENTS,22/04/2024,11534330683,57.5,HM PASSPORT OFFICE
OXFORDSHIRE CC,CUSTOMER AND CULTURE,MUSEUMS COLLECTIONS,OTHER SERVICES,22/04/2024,11534329935,995,CLICK NETHERFIELD LTD
OXFORDSHIRE CC,ADULTS,CSS WANTAGE,ENTERTAINMENT EXPENSES,22/04/2024,11534329959,19.5,WWW.BETTER.ORG.UK
OXFORDSHIRE CC,CUSTOMER AND CULTURE,HARD FM,PREMISES REPAIRS,22/04/2024,11534328933,57.89,B & Q 1062
OXFORDSHIRE CC,CHILDREN'S & EDUCATION,THAME E&A HOME,CATERING PROVISIONS,22/04/2024,11534330727,11.5,MARTIN MCCOLL
OXFORDSHIRE CC,CUSTOMER AND CULTURE,HARD FM,PREMISES REPAIRS,22/04/2024,11534329623,22,WICKES OXFORD
OXFORDSHIRE CC,CHILDREN'S & EDUCATION,WITNEY,CATERING PROVISIONS,22/04/2024,11534329587,12.6,SAINSBURYS S/MKTS
OXFORDSHIRE CC,CHILDREN'S & EDUCATION,EYNSHAM,HARDWARE AND CROCKERY,22/04/2024,11534329645,16,B & Q 1176
OXFORDSHIRE CC,CHILDREN'S & EDUCATION,WITNEY,CATERING PROVISIONS,22/04/2024,11534329579,66.4,SAINSBURYS S/MKTS
OXFORDSHIRE CC,CHILDREN'S & EDUCATION,CHILDREN IN CARE NON-STAFFING - NORTH,VEHICLE FUEL,22/04/2024,11534330693,48.01,GULF FILLING STATION
OXFORDSHIRE CC,CHILDREN'S & EDUCATION,THAME E&A HOME,ENTERTAINMENT EXPENSES,22/04/2024,11534330715,8.67,VUE CINEMAS
OXFORDSHIRE CC,CHILDREN'S & EDUCATION,FIELDWORK UASC,EDUCATIONAL AND VOCATIONAL TRAINING ,22/04/2024,11534330751,397.1,DRIVE 321
OXFORDSHIRE CC,CHILDREN'S & EDUCATION,THAME E&A HOME,ENTERTAINMENT EXPENSES,22/04/2024,11534330695,35.96,VUE ENTERTAINMENT LTD
OXFORDSHIRE CC,CHILDREN'S & EDUCATION,THAME E&A HOME,CATERING PROVISIONS,22/04/2024,11534330721,21.56,TESCO STORES 2994
OXFORDSHIRE CC,CHILDREN'S & EDUCATION,THAME E&A HOME,ENTERTAINMENT EXPENSES,22/04/2024,11534330709,25.34,VUE CINEMAS
OXFORDSHIRE CC,CHILDREN'S & EDUCATION,THAME E&A HOME,CATERING PROVISIONS,22/04/2024,11534330733,5.2,SAINSBURYS S/MKTS
OXFORDSHIRE CC,CHILDREN'S & EDUCATION,THAME E&A HOME,POSTAGE AND DELIVERY,22/04/2024,11534330701,3.46,POST OFFICE COUNTER
OXFORDSHIRE CC,CHILDREN'S & EDUCATION,THAME E&A HOME,MATERIALS,22/04/2024,11534329499,12.98,ROBERT DYAS THAME
OXFORDSHIRE CC,CHILDREN'S & EDUCATION,UASC 16&17,SUBSCRIPTIONS,22/04/2024,11534330353,35.99,PUREGYM LIMITED
OXFORDSHIRE CC,CHILDREN'S & EDUCATION,"	LOOKED AFTER NORTH",PAYMENTS TO TRANSPORT OPERATORS,22/04/2024,11534330385,89.46,TRAINLINE
OXFORDSHIRE CC,CHILDREN'S & EDUCATION,"	HEARING IMPAIRMENT",HIRE OF ACCOMMODATION AND FACILITIES,22/04/2024,11534329833,614.92,HOLIDAY INNS
OXFORDSHIRE CC,CUSTOMER AND CULTURE,WATLINGTON HOARD PROJECT,OTHER SERVICES,22/04/2024,11534329941,985,CLICK NETHERFIELD LTD
OXFORDSHIRE CC,ADULTS,CSS - OXFORD,CATERING PROVISIONS,22/04/2024,11534328959,4,SAINSBURYS S/MKTS
OXFORDSHIRE CC,CUSTOMER AND CULTURE,THAME LIBRARY,"NEWSPAPERS, PERIODICALS AND PUBLICATIONS",22/04/2024,11534330241,5.8,SAINSBURYS S/MKTS
OXFORDSHIRE CC,CORPORATE CORE,,STATIONERY,22/04/2024,11534330255,64.12,LYRECO UK LTD
OXFORDSHIRE CC,CHILDREN'S & EDUCATION,UASC 16&17,MATERIALS,22/04/2024,11534329537,289.97,CYCLE KING
OXFORDSHIRE CC,CUSTOMER AND CULTURE,REGISTRAR,CATERING PROVISIONS,22/04/2024,11534329695,69.95,AMAZON  205-7895881-63
OXFORDSHIRE CC,CHILDREN'S & EDUCATION,EYNSHAM,CATERING,22/04/2024,11534328789,15,MAYFIELDEGGS
OXFORDSHIRE CC,PUBLIC HEALTH,WITNEY,MATERIALS,22/04/2024,11534328819,6.98,WH SMITH JOHN RADCLIFF
OXFORDSHIRE CC,ADULTS,CSS - OXFORD,CATERING PROVISIONS,22/04/2024,11534328961,55.36,ALDI STORES 775-142
OXFORDSHIRE CC,CHILDREN'S & EDUCATION,DIDCOT MOVE-ON HOME,CATERING PROVISIONS,22/04/2024,11534329485,2.24,SAINSBURYS S/MKTS
OXFORDSHIRE CC,SOCIAL AND COMMUNITY SERVICES,CSS - ABINGDON,EQUIPMENT,22/04/2024,11534328861,3.99,AMAZON  203-9695739-85
OXFORDSHIRE CC,CHILDREN'S & EDUCATION,CHILDREN IN CARE NON-STAFFING - SOUTH,HIRE OF ACCOMMODATION AND FACILITIES,22/04/2024,11534329027,133,PREMIER INN
OXFORDSHIRE CC,CHILDREN'S & EDUCATION,"	OCCG GRANT",MATERIALS,22/04/2024,11534330611,13.5,WWW.ARGOS.CO.UK
OXFORDSHIRE CC,RESOURCES,ICT OPERATIONS & MAI,PURCHASE OF IT EQUIPMENT,22/04/2024,11534330627,243.5,AMAZON.CO.UK HD38P3XY4
OXFORDSHIRE CC,RESOURCES,ICT OPERATIONS & MAI,PURCHASE OF IT EQUIPMENT,22/04/2024,11534330631,243.5,AMAZON.CO.UK HD59G5VQ4
OXFORDSHIRE CC,CHILDREN'S & EDUCATION,UASC 16&17,OTHER TRANSPORT ARRANGEMENTS,22/04/2024,11534330659,30,WWW.THEKEY.CO.UK
OXFORDSHIRE CC,CHILDREN'S & EDUCATION,"	LEAVING CARE CITY 1",OTHER EXPENSES,22/04/2024,11534330687,20,TESCO GIFT CARD
OXFORDSHIRE CC,CHILDREN'S & EDUCATION,"	MALTFIELD HOUSE",FURNITURE,22/04/2024,11534330915,28,DUNELM SOFT FURNISHIN
OXFORDSHIRE CC,CHILDREN'S & EDUCATION,"	OCCG GRANT",ENTERTAINMENT EXPENSES,22/04/2024,11534330937,4.95,STARBUCKS
OXFORDSHIRE CC,RESOURCES,EYNSHAM,CATERING PROVISIONS,22/04/2024,11534330957,7.69,SPAR EYNSHAM
OXFORDSHIRE CC,CHILDREN'S & EDUCATION,"	RIVERSIDE CENTRE",CATERING,22/04/2024,11534329927,7.8,COSTA TEMPLARS
OXFORDSHIRE CC,CHILDREN'S & EDUCATION,EYNSHAM,HARDWARE AND CROCKERY,22/04/2024,11534329005,6.75,B AND Q
OXFORDSHIRE CC,ADULTS,CSS BICESTER,EQUIPMENT,22/04/2024,11534329053,4.99,AMAZON  202-5163615-62
OXFORDSHIRE CC,CHILDREN'S & EDUCATION,"	LEAVING CARE SOUTH",OTHER EXPENSES,22/04/2024,11534330195,7.8,COSTA COFFEE ABINGDON
OXFORDSHIRE CC,ENVIRONMENT AND PLACE,FLEET OPERATIONS,"BOOKS, DVDS AND CDS",22/04/2024,11534329383,12.99,GOOGLE  YOUTUBEPREMIUM
OXFORDSHIRE CC,PUBLIC HEALTH,WITNEY,CATERING PROVISIONS,22/04/2024,11534328801,7.79,AMAZON  205-2634837-03
OXFORDSHIRE CC,ADULTS,CSS WANTAGE,ENTERTAINMENT EXPENSES,22/04/2024,11534329955,9.9,WWW.BETTER.ORG.UK
OXFORDSHIRE CC,CHILDREN'S & EDUCATION,40 THE MOORS,ENTERTAINMENT EXPENSES,22/04/2024,11534330045,16.57,VUE CINEMAS
OXFORDSHIRE CC,CHILDREN'S & EDUCATION,40 THE MOORS,ENTERTAINMENT EXPENSES,22/04/2024,11534330069,26.97,VUE CINEMAS
OXFORDSHIRE CC,CHILDREN'S & EDUCATION,"	RIVERSIDE CENTRE",CATERING PROVISIONS,22/04/2024,11534329395,62.99,AMAZON  202-2642286-94
OXFORDSHIRE CC,CHILDREN'S & EDUCATION,THAME E&A HOME,CATERING,22/04/2024,11534329503,0.98,"BOOTS,THAME"
OXFORDSHIRE CC,CHILDREN'S & EDUCATION,"	LEAVING CARE CITY 2",PAYMENTS TO VOLUNTARY BODIES,22/04/2024,11534329793,182,EMMAUS OXFORD
OXFORDSHIRE CC,CHILDREN'S & EDUCATION,"	LOOKED AFTER CITY 2",PAYMENTS TO TRANSPORT OPERATORS,22/04/2024,11534329753,123.3,TRAINLINE
OXFORDSHIRE CC,PUBLIC HEALTH,WITNEY,CATERING PROVISIONS,22/04/2024,11534328827,2.7,SIP CARS PARKS (1) LIM
OXFORDSHIRE CC,CUSTOMER AND CULTURE,CENTRAL LIBRARY,HEALTH AND SAFETY EQUIPMENT,22/04/2024,11534330157,29.75,AMAZON  203-5041320-92
OXFORDSHIRE CC,CHILDREN'S & EDUCATION,UASC 16&17,CATERING PROVISIONS,22/04/2024,11534328973,11,TESCO STORES 4480
OXFORDSHIRE CC,CHILDREN'S & EDUCATION,"	LOOKED AFTER NORTH",PAYMENTS TO TRANSPORT OPERATORS,22/04/2024,11534330379,108.6,TRAINLINE
OXFORDSHIRE CC,CHILDREN'S & EDUCATION,FSP NON-STAFFING - CENTRAL,CATERING PROVISIONS,22/04/2024,11534329403,5.3,CO-OPERATIVE FOOD
OXFORDSHIRE CC,CHILDREN'S & EDUCATION,EYNSHAM,CATERING,22/04/2024,11534329309,45.4,FRANKIE AND BENNYS
OXFORDSHIRE CC,ADULTS,PAUSE PROGRAMME,MATERIALS,22/04/2024,11534329343,4,THEWORKS.CO.UK
OXFORDSHIRE CC,CHILDREN'S & EDUCATION,"	OCCG GRANT",CATERING,22/04/2024,11534329355,12.77,MCDONALDS
OXFORDSHIRE CC,CHILDREN'S & EDUCATION,KINGFISHER,MATERIALS,22/04/2024,11534330891,60,VOUCHER EXPRESS
OXFORDSHIRE CC,CHILDREN'S & EDUCATION,EYNSHAM,CATERING PROVISIONS,22/04/2024,11534330917,8.1,CO-OPERATIVE FOOD
OXFORDSHIRE CC,CHILDREN'S & EDUCATION,"	HEARING IMPAIRMENT",DISABILITY AIDS AND EQUIPMENT,22/04/2024,11534329829,2.4,UPS LTD
OXFORDSHIRE CC,CUSTOMER AND CULTURE,CATERING MANAGEMENT SOFT FM,CATERING PROVISIONS,22/04/2024,11534328769,14.94,ALDI STORES
OXFORDSHIRE CC,CHILDREN'S & EDUCATION,40 THE MOORS,ENTERTAINMENT EXPENSES,22/04/2024,11534330051,17.98,VUE ENTERTAINMENT LTD
OXFORDSHIRE CC,CHILDREN'S & EDUCATION,40 THE MOORS,OTHER EXPENSES,22/04/2024,11534330075,39.15,NANDOS BICESTER
OXFORDSHIRE CC,CUSTOMER AND CULTURE,BOTLEY LIBRARY,EQUIPMENT,22/04/2024,11534330173,16.99,AMAZON.CO.UK HD8YC2644
OXFORDSHIRE CC,RESOURCES,ICT OPERATIONS & MAI,PURCHASE OF IT EQUIPMENT,22/04/2024,11534330625,243.5,AMAZON.CO.UK HD08C1X74
OXFORDSHIRE CC,CHILDREN'S & EDUCATION,EYNSHAM,HARDWARE AND CROCKERY,22/04/2024,11534329649,5.95,B AND Q
OXFORDSHIRE CC,CHILDREN'S & EDUCATION,"	LEAVING CARE CITY 2",OTHER TRANSPORT ARRANGEMENTS,22/04/2024,11534329681,4.8,OXFORD BUS COMPANY
OXFORDSHIRE CC,CUSTOMER AND CULTURE,SCHOOLS FM CATERING AREA 2,CATERING PROVISIONS,22/04/2024,11534329713,50.91,BOOKER LTD - 38584104
OXFORDSHIRE CC,CUSTOMER AND CULTURE,OPERATIONS,STATIONERY,22/04/2024,11534329843,3.99,AMAZON  203-1310494-36
OXFORDSHIRE CC,ADULTS,CSS - OXFORD,CATERING PROVISIONS,22/04/2024,11534329177,68.84,ALDI STORES 775-142
OXFORDSHIRE CC,ADULTS,CSS - OXFORD,CATERING PROVISIONS,22/04/2024,11534329187,15.66,ALDI STORES 775-142
OXFORDSHIRE CC,CHILDREN'S & EDUCATION,FAMILY SOLUTIONS PLUS NON-STAFF - NORTH,PAYMENTS TO TRANSPORT OPERATORS,22/04/2024,11534330421,36.88,TRAINLINE
OXFORDSHIRE CC,CUSTOMER AND CULTURE,SCHOOLS FM CATERING AREA 1,CATERING PROVISIONS,22/04/2024,11534330447,27.48,AMAZON  205-0816774-93
OXFORDSHIRE CC,CHILDREN'S & EDUCATION,DIDCOT MOVE-ON HOME,CATERING PROVISIONS,22/04/2024,11534330481,6.5,SAINSBURYS SMKT
OXFORDSHIRE CC,CUSTOMER AND CULTURE,DEPARTMENTAL MANAGE,HIRE OF ACCOMMODATION AND FACILITIES,22/04/2024,11534330539,227,HILTON
OXFORDSHIRE CC,CHILDREN'S & EDUCATION,PAUSE PROGRAMME,MATERIALS,22/04/2024,11534329661,8,THEWORKS
OXFORDSHIRE CC,CHILDREN'S & EDUCATION,"	LEAVING CARE CITY 2",CATERING,22/04/2024,11534329685,11.17,MCDONALDS
OXFORDSHIRE CC,CHILDREN'S & EDUCATION,"	LEAVING CARE CITY 2",MATERIALS,22/04/2024,11534329783,8.99,AMAZON PRIME HD87Z90V4
OXFORDSHIRE CC,ADULTS,CSS - OXFORD,CATERING PROVISIONS,22/04/2024,11534328957,3.78,LIDL GB
OXFORDSHIRE CC,CHILDREN'S & EDUCATION,FAMILY SOLUTIONS PLUS NON-STAFF - NORTH,PAYMENTS TO TRANSPORT OPERATORS,22/04/2024,11534330427,12.42,TRAINLINE
OXFORDSHIRE CC,RESOURCES,EYNSHAM,CLOTHING AND UNIFORMS,22/04/2024,11534330945,20.28,REDBUBBLE.COM
OXFORDSHIRE CC,ENVIRONMENT AND PLACE,BRIDGES GENERAL,PAYMENT TO GOVERNMENT DEPARTMENTS,22/04/2024,11534330967,50,WWW.COTSWOLD.GOV.UK/
OXFORDSHIRE CC,CHILDREN'S & EDUCATION,40 THE MOORS,CATERING,22/04/2024,11534330055,46.4,OXY ORIENTAL
OXFORDSHIRE CC,CHILDREN'S & EDUCATION,UASC 16&17,CLOTHING AND UNIFORMS,22/04/2024,11534328981,48,PRIMARK 440
OXFORDSHIRE CC,CHILDREN'S & EDUCATION,"	LEAVING CARE SOUTH",PAYMENT TO GOVERNMENT DEPARTMENTS,22/04/2024,11534330187,166.5,HM PASSPORT OFFICE
OXFORDSHIRE CC,CUSTOMER AND CULTURE,THAME LIBRARY,"NEWSPAPERS, PERIODICALS AND PUBLICATIONS",22/04/2024,11534330245,7.5,SAINSBURYS S/MKTS
OXFORDSHIRE CC,CHILDREN'S & EDUCATION,"	LEAVING CARE NORTH",DISABILITY AIDS AND EQUIPMENT,22/04/2024,11534330289,35.74,SPECSAVERS 00252000BAN
OXFORDSHIRE CC,ADULTS,CSS - BANBURY,CATERING PROVISIONS,22/04/2024,11534330315,-0.35,TEMU.COM
OXFORDSHIRE CC,RESOURCES,EYNSHAM,CATERING PROVISIONS,22/04/2024,11534330949,14.73,ETSY.COM FRAMESPLUSSHO
OXFORDSHIRE CC,RESOURCES,FRONTIER CAV EU PROJECT,CATERING,22/04/2024,11534330973,2.65,DUBLIN AIRPORT LEOPOLD
OXFORDSHIRE CC,ADULTS,CSS - OXFORD,DAY ACTIVITIES,22/04/2024,11534328921,25.25,ALDI STORES 775-142
OXFORDSHIRE CC,CORPORATE CORE,,STATIONERY,22/04/2024,11534330259,33.62,LYRECO UK LTD
OXFORDSHIRE CC,ADULTS,CSS - BANBURY,CATERING PROVISIONS,22/04/2024,11534330301,16.15,TEMU.COM
OXFORDSHIRE CC,RESOURCES,SCHOOLS FM CATERING AREA 2,CATERING PROVISIONS,22/04/2024,11534330323,13.05,TESCO STORES 2008
OXFORDSHIRE CC,CHILDREN'S & EDUCATION,UASC 16&17,AFTER SCHOOL ACTIVITIES,22/04/2024,11534330361,33.99,PUREGYM LIMITED
OXFORDSHIRE CC,CHILDREN'S & EDUCATION,"	LOOKED AFTER NORTH",PAYMENTS TO TRANSPORT OPERATORS,22/04/2024,11534330391,89.46,TRAINLINE
OXFORDSHIRE CC,CHILDREN'S & EDUCATION,THAME E&A HOME,CATERING PROVISIONS,22/04/2024,11534329165,226.44,TESCO STORES 2038
OXFORDSHIRE CC,CHILDREN'S & EDUCATION,"	LEAVING CARE CITY 1",OTHER EXPENSES,22/04/2024,11534330677,143,DUNELM SOFTFURNISHINGS
OXFORDSHIRE CC,CUSTOMER AND CULTURE,HARD FM,PREMISES REPAIRS,22/04/2024,11534330845,11.96,CURRYS OXFORD
OXFORDSHIRE CC,RESOURCES,LEGAL SERVICES,CATERING PROVISIONS,22/04/2024,11534329917,75.34,AMAZON  026-0066159-51
OXFORDSHIRE CC,CUSTOMER AND CULTURE,COMMUNITY PARTNERSHIP TEAM,CATERING PROVISIONS,22/04/2024,11534329159,20.47,ALDI 99 775
OXFORDSHIRE CC,PUBLIC HEALTH,CHILDREN IN CARE NON-STAFFING - NORTH,VEHICLE FUEL,22/04/2024,11534329237,49.11,TESCO PFS 4267
OXFORDSHIRE CC,CHILDREN'S & EDUCATION,DIDCOT MOVE-ON HOME,CATERING PROVISIONS,22/04/2024,11534330483,61.93,SAINSBURYS SMKT
OXFORDSHIRE CC,CHILDREN'S & EDUCATION,40 THE MOORS,MATERIALS,22/04/2024,11534330549,52.36,YARNTON NURSERIES
OXFORDSHIRE CC,CHILDREN'S & EDUCATION,FAMILY SOLUTIONS PLUS NON-STAFF - NORTH,PAYMENTS TO TRANSPORT OPERATORS,22/04/2024,11534330509,17.64,TRAINLINE
OXFORDSHIRE CC,CHILDREN'S & EDUCATION,"	LEAVING CARE CITY 2",CATERING PROVISIONS,22/04/2024,11534329797,40,ASDA STORE 4442
OXFORDSHIRE CC,CHILDREN'S & EDUCATION,"	LOOKED AFTER CITY 2",PAYMENTS TO TRANSPORT OPERATORS,22/04/2024,11534329755,22.37,TRAINLINE
OXFORDSHIRE CC,PUBLIC HEALTH,WITNEY,CATERING PROVISIONS,22/04/2024,11534328805,6.88,AMAZON  205-8967584-00
OXFORDSHIRE CC,CUSTOMER AND CULTURE,SCHOOLS FM CATERING AREA 1,CATERING PROVISIONS,22/04/2024,11534330433,17.63,AMAZON  205-4346477-97
OXFORDSHIRE CC,CHILDREN'S & EDUCATION,DIDCOT MOVE-ON HOME,CATERING PROVISIONS,22/04/2024,11534330467,6.35,SAINSBURYS S/MKTS
OXFORDSHIRE CC,CHILDREN'S & EDUCATION,DIDCOT MOVE-ON HOME,CATERING PROVISIONS,22/04/2024,11534330487,5.76,SAINSBURYS S/MKTS
OXFORDSHIRE CC,"COMMUNICATIONS, STRATEGY AND INSIGHT",LEADERSHIP TEAM,PROFESSIONAL SUBSCRIPTIONS,22/04/2024,11534330525,150,WWW.ADASS.ORG.UK
OXFORDSHIRE CC,ENVIRONMENT AND PLACE,NAT TRAILS GENERAL,CATERING,22/04/2024,11534330897,171,ZETTLE_ VELOLIFE BICYC
OXFORDSHIRE CC,CHILDREN'S & EDUCATION,THAME E&A HOME,CATERING PROVISIONS,22/04/2024,11534329743,5.46,HOME BARGAINS
OXFORDSHIRE CC,ENVIRONMENT AND PLACE,NAT TRAILS GENERAL,OTHER TRANSPORT ARRANGEMENTS,22/04/2024,11534329763,7.7,HENLEY TOWN COUNCIL
OXFORDSHIRE CC,CHILDREN'S & EDUCATION,"	LEAVING CARE CITY 2",OTHER TRANSPORT ARRANGEMENTS,22/04/2024,11534329787,4.5,STGCOACH/CTYLINK
OXFORDSHIRE CC,CHILDREN'S & EDUCATION,EYNSHAM,CATERING,22/04/2024,11534328779,203.37,TESCO STORES 2008
OXFORDSHIRE CC,PUBLIC HEALTH,WITNEY,CATERING PROVISIONS,22/04/2024,11534328811,15.99,AMAZON  205-8967584-00
OXFORDSHIRE CC,CUSTOMER AND CULTURE,"MARKETING, COMMUNICATIONS & ENGAGEMENT",SUBSCRIPTIONS,22/04/2024,11534330057,24.98,LINKEDIN PRE 101229063
OXFORDSHIRE CC,CHILDREN'S & EDUCATION,THAME E&A HOME,PAYMENTS TO TRANSPORT OPERATORS,22/04/2024,11534329493,19.4,HADDENHAM & THAME PARK
OXFORDSHIRE CC,CHILDREN'S & EDUCATION,NTS UASC AGENCY,CLEANING MATERIALS,22/04/2024,11534330909,28.8,AMAZON  026-6830191-65
OXFORDSHIRE CC,CHILDREN'S & EDUCATION,"	OCCG GRANT",ENTERTAINMENT EXPENSES,22/04/2024,11534330933,4.95,STARBUCKS
OXFORDSHIRE CC,RESOURCES,EYNSHAM,HARDWARE AND CROCKERY,22/04/2024,11534330953,37,B AND Q
OXFORDSHIRE CC,CUSTOMER AND CULTURE,HARD FM,PREMISES REPAIRS,22/04/2024,11534328925,162.74,IRONMONGERYDIRECT
OXFORDSHIRE CC,CORPORATE CORE,,STATIONERY,22/04/2024,11534330265,563.53,LYRECO UK LTD
OXFORDSHIRE CC,ADULTS,CSS - BANBURY,CATERING PROVISIONS,22/04/2024,11534330307,0.35,TEMU.COM
OXFORDSHIRE CC,CHILDREN'S & EDUCATION,UASC 16&17,AFTER SCHOOL ACTIVITIES,22/04/2024,11534330369,33.99,PUREGYM LIMITED
OXFORDSHIRE CC,CHILDREN'S & EDUCATION,WITNEY,MATERIALS,22/04/2024,11534330417,1.29,CARD FACTORY
OXFORDSHIRE CC,CUSTOMER AND CULTURE,SCHOOLS FM CATERING AREA 1,CATERING PROVISIONS,22/04/2024,11534330439,18.75,AMAZON  205-7394353-36
OXFORDSHIRE CC,CHILDREN'S & EDUCATION,DIDCOT MOVE-ON HOME,CATERING PROVISIONS,22/04/2024,11534330475,17.76,SAINSBURYS SMKT
OXFORDSHIRE CC,CHILDREN'S & EDUCATION,EYNSHAM,ADHOC SITE ANDGROUNDS MAINTENANCE COSTS,22/04/2024,11534330531,78.6,WWW.AWBSLTD.COM
OXFORDSHIRE CC,ENVIRONMENT AND PLACE,NATURAL ENVIRONMENT,PROFESSIONAL SUBSCRIPTIONS,22/04/2024,11534330557,300,OUTDOOR RECREATION NI
OXFORDSHIRE CC,RESOURCES,ICT OPERATIONS & MAI,PURCHASE OF IT EQUIPMENT,22/04/2024,11534330619,243.5,AMAZON.CO.UK HD1SF2X14
OXFORDSHIRE CC,CHILDREN'S & EDUCATION,"	LEAVING CARE CITY 2",MATERIALS,19/04/2024,11526158747,269,CURRYS ONLINE
OXFORDSHIRE CC,CHILDREN'S & EDUCATION,CHILDREN IN CARE NON-STAFFING - SOUTH,PAYMENT TO GOVERNMENT DEPARTMENTS,19/04/2024,11526159773,108.25,OXFORDSHIRE CC WEB1
OXFORDSHIRE CC,CHILDREN'S & EDUCATION,THAME E&A HOME,OTHER TRANSPORT ARRANGEMENTS,19/04/2024,11526159865,15.4,UNION STREET CAR PARK
OXFORDSHIRE CC,ENVIRONMENT AND PLACE,FLEET OPERATIONS,CATERING PROVISIONS,19/04/2024,11526158087,20,MILK AND MORE (RECUR
OXFORDSHIRE CC,CUSTOMER AND CULTURE,THAME LIBRARY,"NEWSPAPERS, PERIODICALS AND PUBLICATIONS",19/04/2024,11526159233,5.8,SAINSBURYS S/MKTS
OXFORDSHIRE CC,CUSTOMER AND CULTURE,MUSEUMS COLLECTIONS,CATERING PROVISIONS,19/04/2024,11526159727,4.62,MILK AND MORE (RECUR
OXFORDSHIRE CC,CHILDREN'S & EDUCATION,EYNSHAM,HARDWARE AND CROCKERY,19/04/2024,11526159601,113.25,B AND Q
OXFORDSHIRE CC,CHILDREN'S & EDUCATION,FSP NON-STAFFING - CENTRAL,OTHER TRANSPORT ARRANGEMENTS,19/04/2024,11526159541,60,STAGECOACH SERVICES
OXFORDSHIRE CC,ADULTS,FPT SOUTH/VALE,MATERIALS,19/04/2024,11526160131,247.45,WWW.ARGOS.CO.UK
OXFORDSHIRE CC,CHILDREN'S & EDUCATION,EYNSHAM,CATERING PROVISIONS,19/04/2024,11526159609,3.49,HOME BARGAINS
OXFORDSHIRE CC,ADULTS,CSS - BANBURY,CATERING PROVISIONS,19/04/2024,11526159363,12.53,TESCO STORES 2064
OXFORDSHIRE CC,CUSTOMER AND CULTURE,SCHOOLS FM CATERING AREA 1,CATERING PROVISIONS,19/04/2024,11526159481,28.42,ALDI 112 775
OXFORDSHIRE CC,ADULTS,MANAGEMENT,HIRE OF ACCOMMODATION AND FACILITIES,19/04/2024,11526160075,94.5,BKG HOTEL AT BOOKING.C
OXFORDSHIRE CC,CHILDREN'S & EDUCATION,"	LEAVING CARE SOUTH",OTHER TRANSPORT ARRANGEMENTS,19/04/2024,11526158339,120.99,PREMIER INN
OXFORDSHIRE CC,RESOURCES,FRONTIER CAV EU PROJECT,CATERING,19/04/2024,11526160147,29.09,HILTON INTERNATIONAL
OXFORDSHIRE CC,CHILDREN'S & EDUCATION,"	SEN/ICT EQUIPMENT",IT SOFTWARE,19/04/2024,11526160027,54,INCLUSIVE TECH
OXFORDSHIRE CC,ENVIRONMENT AND PLACE,TREE MAINT OPS,PAYMENTS TO TRANSPORT OPERATORS,19/04/2024,11526159345,184,WWW.GWR.COM
OXFORDSHIRE CC,CHILDREN'S & EDUCATION,NTS UASC AGENCY,CLEANING MATERIALS,19/04/2024,11526159371,18.99,AMAZON  203-6376855-26
OXFORDSHIRE CC,ADULTS,CSS WANTAGE,OTHER TRANSPORT ARRANGEMENTS,19/04/2024,11526160029,2,OXFORD BUS COMPANY
OXFORDSHIRE CC,CUSTOMER AND CULTURE,SCHOOLS FM CATERING AREA 1,CATERING PROVISIONS,19/04/2024,11526159487,56.92,AMAZON  205-6012471-77
OXFORDSHIRE CC,CHILDREN'S & EDUCATION,"	LEAVING CARE SOUTH",CATERING PROVISIONS,19/04/2024,11526158341,50,TESCO GIFT CARD
OXFORDSHIRE CC,CUSTOMER AND CULTURE,SCHOOLS FM CATERING AREA 1,CATERING PROVISIONS,19/04/2024,11526159491,32.27,AMAZON  205-6012471-77
OXFORDSHIRE CC,ENVIRONMENT AND PLACE,NAT TRAILS GENERAL,CATERING PROVISIONS,19/04/2024,11526160057,44.35,SAINSBURYS S/MKTS
OXFORDSHIRE CC,CHILDREN'S & EDUCATION,40 THE MOORS,CATERING PROVISIONS,19/04/2024,11526159765,185.59,SAINSBURYS.CO.UK
OXFORDSHIRE CC,ADULTS,CSS - BANBURY,MATERIALS,19/04/2024,11526159353,29.5,HOBBYCRAFT
OXFORDSHIRE CC,CUSTOMER AND CULTURE,COUNTY PRINT FINSHRS,CATERING PROVISIONS,19/04/2024,11526159911,29.99,AMAZON  204-4411802-76
OXFORDSHIRE CC,CHILDREN'S & EDUCATION,FAMILY SOLUTIONS PLUS NON-STAFF - NORTH,PAYMENTS TO TRANSPORT OPERATORS,19/04/2024,11526159791,48.8,WWW.GWR.COM
OXFORDSHIRE CC,CHILDREN'S & EDUCATION,THAME E&A HOME,CATERING PROVISIONS,19/04/2024,11526158503,11.99,AMAZON  206-1952799-41
OXFORDSHIRE CC,CHILDREN'S & EDUCATION,UASC 16&17,CATERING PROVISIONS,19/04/2024,11526157335,114.25,SAINSBURYS S/MKTS
OXFORDSHIRE CC,CHILDREN'S & EDUCATION,PAUSE PROGRAMME,CATERING PROVISIONS,19/04/2024,11526158527,10.96,ALDI 49 775
OXFORDSHIRE CC,ADULTS,CSS - OXFORD,CATERING PROVISIONS,19/04/2024,11526158261,68.47,ALDI STORES 775-142
OXFORDSHIRE CC,CHILDREN'S & EDUCATION,FAMILY SOLUTIONS PLUS NON-STAFF - NORTH,PAYMENT TO GOVERNMENT DEPARTMENTS,19/04/2024,11526159781,11,OXFORDSHIRE CC WEB1
OXFORDSHIRE CC,CUSTOMER AND CULTURE,BUSINESS INTELLECTUAL PROPERTY CENTRE,CATERING PROVISIONS,19/04/2024,11526158757,6.2,SAINSBURYS S/MKTS
OXFORDSHIRE CC,CHILDREN'S & EDUCATION,FAMILY SOLUTIONS PLUS NON-STAFF - NORTH,PAYMENTS TO TRANSPORT OPERATORS,19/04/2024,11526159787,78.35,TRAINLINE
OXFORDSHIRE CC,CHILDREN'S & EDUCATION,"	MALTFIELD HOUSE",CATERING PROVISIONS,19/04/2024,11526160115,3.44,ALDI 77 775
OXFORDSHIRE CC,CHILDREN'S & EDUCATION,NTS UASC AGENCY,CLEANING MATERIALS,19/04/2024,11526159379,6.95,AMAZON  203-5259074-35
OXFORDSHIRE CC,ADULTS,CSS WITNEY,CATERING PROVISIONS,19/04/2024,11526159861,34.74,CO-OP GROUP 070582
OXFORDSHIRE CC,CHILDREN'S & EDUCATION,OTFC TEAM,OTHER TRANSPORT ARRANGEMENTS,19/04/2024,11526159465,8.4,APCOA -READING STATION
OXFORDSHIRE CC,CUSTOMER AND CULTURE,SCHOOLS FM CATERING AREA 1,CATERING PROVISIONS,19/04/2024,11526159497,18.85,TESCO-STORES 2305
OXFORDSHIRE CC,ADULTS,CSS - BANBURY,CATERING PROVISIONS,19/04/2024,11526159359,10.38,AMAZON  204-3381943-99
OXFORDSHIRE CC,CHILDREN'S & EDUCATION,EYNSHAM,HARDWARE AND CROCKERY,19/04/2024,11526159593,30.7,WICKES OXFORD
OXFORDSHIRE CC,CUSTOMER AND CULTURE,WALLINGFORD LIBRARY,CATERING PROVISIONS,19/04/2024,11526159387,1.55,WAITROSE 675
OXFORDSHIRE CC,ENVIRONMENT AND PLACE,NAT TRAILS GENERAL,PAYMENTS TO TRANSPORT OPERATORS,19/04/2024,11526160063,56.95,TRAINLINE
OXFORDSHIRE CC,CUSTOMER AND CULTURE,SAMUELSON HOUSE,CATERING PROVISIONS,19/04/2024,11526158081,53.55,MILK AND MORE (RECUR
OXFORDSHIRE CC,ADULTS,CSS - OXFORD,CATERING PROVISIONS,19/04/2024,11526157225,7.88,ALDI STORES 775-142
OXFORDSHIRE CC,ENVIRONMENT AND PLACE,ELEC NPR ST LTG,OTHER TRANSPORT ARRANGEMENTS,19/04/2024,11526157049,15,TFL BUSINESS BOPS WEB
OXFORDSHIRE CC,ADULTS,CSS - OXFORD,CATERING PROVISIONS,19/04/2024,11526157229,3.1,ALDI STORES 775-142
OXFORDSHIRE CC,CHILDREN'S & EDUCATION,PAUSE PROGRAMME,MATERIALS,19/04/2024,11526158453,11.45,THEWORKS
OXFORDSHIRE CC,CUSTOMER AND CULTURE,HARD FM,PREMISES REPAIRS,19/04/2024,11526157233,23.48,WWW.SCREWFIX.COM
OXFORDSHIRE CC,ENVIRONMENT AND PLACE,TVERC,"SUPPLIES, STATIONERY AND MATERIALS",19/04/2024,11526157277,25,EB  NATURAL HISTORY ON
OXFORDSHIRE CC,ADULTS,ASC INCOME TEAM,PAYMENT TO GOVERNMENT DEPARTMENTS,19/04/2024,11526157785,11,OXFORDSHIRE CC WEB1
OXFORDSHIRE CC,CHILDREN'S & EDUCATION,40 THE MOORS,CATERING PROVISIONS,19/04/2024,11526157119,7.95,CO-OPERATIVE FOOD
OXFORDSHIRE CC,CUSTOMER AND CULTURE,BANBURY LIBRARY,MATERIALS,19/04/2024,11526158469,36,BANBURY SHOE REPAIRS
OXFORDSHIRE CC,CHILDREN'S & EDUCATION,"	LOOKED AFTER CITY 2",OTHER TRANSPORT ARRANGEMENTS,19/04/2024,11526158645,1.9,TFL TRAVEL CH
OXFORDSHIRE CC,PUBLIC HEALTH,ROW MAINT,EQUIPMENT,19/04/2024,11526158629,70.94,JEWSON LTD
OXFORDSHIRE CC,CHILDREN'S & EDUCATION,"	LEAVING CARE NORTH",PAYMENTS TO TRANSPORT OPERATORS,19/04/2024,11526159423,38.81,TRAINLINE
OXFORDSHIRE CC,CHILDREN'S & EDUCATION,CHILDREN IN CARE NON-STAFFING - NORTH,PAYMENT TO GOVERNMENT DEPARTMENTS,19/04/2024,11526159453,35,OXFORDSHIRE CC WEB1
OXFORDSHIRE CC,ADULTS,NRPF & HOMELESSNESS,HIRE OF ACCOMMODATION AND FACILITIES,19/04/2024,11526158635,848,PREMIER INN
OXFORDSHIRE CC,CHILDREN'S & EDUCATION,OTFC TEAM,CATERING,19/04/2024,11526159459,33.15,NANDOS CHICKENLAND
OXFORDSHIRE CC,CHILDREN'S & EDUCATION,PAUSE PROGRAMME,CATERING PROVISIONS,19/04/2024,11526158457,2.36,CO-OPERATIVE FOOD
OXFORDSHIRE CC,CHILDREN'S & EDUCATION,PAUSE PROGRAMME,CATERING PROVISIONS,19/04/2024,11526158457,2.34,CO-OPERATIVE FOOD
OXFORDSHIRE CC,CHILDREN'S & EDUCATION,"	LOOKED AFTER CITY 2",OTHER TRANSPORT ARRANGEMENTS,19/04/2024,11526158639,2,OXFORD BUS COMPANY
OXFORDSHIRE CC,CORPORATE CORE,,STATIONERY,19/04/2024,11526159307,31.06,LYRECO UK LTD
OXFORDSHIRE CC,CHILDREN'S & EDUCATION,"	LEAVING CARE SOUTH",EQUIPMENT,19/04/2024,11526159177,20,TESCO GIFT CARD
OXFORDSHIRE CC,CHILDREN'S & EDUCATION,"	LEAVING CARE SOUTH",STAFF USE OF PUBLIC TRANSPORT,19/04/2024,11526159183,7.05,ESSO THAME
OXFORDSHIRE CC,CUSTOMER AND CULTURE,HARD FM,PREMISES REPAIRS,19/04/2024,11526157239,1.95,NCP BANBURY MARLBOROUG
OXFORDSHIRE CC,ENVIRONMENT AND PLACE,TVERC,OTHER TRAINING COURSES AND QUALIFICATION,19/04/2024,11526157281,25,EB  SPECIES ID SKILLS
OXFORDSHIRE CC,PUBLIC HEALTH,WITNEY,CATERING PROVISIONS,19/04/2024,11526157129,3.48,AMAZON  205-6758962-02
OXFORDSHIRE CC,CHILDREN'S & EDUCATION,"	LEAVING CARE SOUTH",CATERING,19/04/2024,11526159171,3,GREGGS THAME
OXFORDSHIRE CC,ADULTS,CSS WITNEY,CATERING PROVISIONS,19/04/2024,11526158907,35.7,MILK AND MORE (RECUR
OXFORDSHIRE CC,CORPORATE CORE,,STATIONERY,19/04/2024,11526159315,154.88,LYRECO UK LTD
OXFORDSHIRE CC,CUSTOMER AND CULTURE,HARD FM,PREMISES REPAIRS,19/04/2024,11526158609,121.79,HUWSGRAYLTD2
OXFORDSHIRE CC,CORPORATE CORE,,STATIONERY,19/04/2024,11526159293,66.6,LYRECO UK LTD
OXFORDSHIRE CC,CUSTOMER AND CULTURE,HARD FM,PREMISES REPAIRS,19/04/2024,11526159331,1.6,WICKES OXFORD
OXFORDSHIRE CC,ADULTS,CSS - ABINGDON,MATERIALS,19/04/2024,11526157147,7.84,AMAZON.CO.UK HD0TU1JK4
OXFORDSHIRE CC,CUSTOMER AND CULTURE,HARD FM,PREMISES REPAIRS,19/04/2024,11526157245,42.69,TOOLSTATION LTD DROITW
OXFORDSHIRE CC,CHILDREN'S & EDUCATION,THAME E&A HOME,HARDWARE AND CROCKERY,19/04/2024,11526157765,2.79,BICESTER GARDEN CENTRE
OXFORDSHIRE CC,CHILDREN'S & EDUCATION,"	OCCG GRANT",BIRTHDAY ALLOWANCE,19/04/2024,11526157943,17.98,F HINDS
OXFORDSHIRE CC,CORPORATE CORE,,STATIONERY,19/04/2024,11526159301,34.08,LYRECO UK LTD
OXFORDSHIRE CC,CHILDREN'S & EDUCATION,FAMILY SOLUTIONS PLUS NON-STAFF - NORTH,PAYMENTS TO TRANSPORT OPERATORS,19/04/2024,11526159337,17.92,TRAINLINE
OXFORDSHIRE CC,CUSTOMER AND CULTURE,HARD FM,OTHER TRANSPORT ARRANGEMENTS,19/04/2024,11526157237,1.95,NCP BANBURY MARLBOROUG
OXFORDSHIRE CC,ENVIRONMENT AND PLACE,TVERC,OTHER TRAINING COURSES AND QUALIFICATION,19/04/2024,11526157287,25,EB  STATE OF THE UKS I
OXFORDSHIRE CC,PUBLIC HEALTH,WITNEY,CATERING PROVISIONS,19/04/2024,11526157133,15,TESCO STORES
OXFORDSHIRE CC,RESOURCES,FRONTIER CAV EU PROJECT,MATERIALS,19/04/2024,11526157513,84.8,AMAZON  203-8264913-10
OXFORDSHIRE CC,CHILDREN'S & EDUCATION,"	LOOKED AFTER NORTH",CATERING,19/04/2024,11526158037,5,COSTA COFFEE
OXFORDSHIRE CC,CHILDREN'S & EDUCATION,PAUSE PROGRAMME,HARDWARE AND CROCKERY,19/04/2024,11526158531,8.35,HADDENHAM GARDEN CEN L
OXFORDSHIRE CC,RESOURCES,FRONTIER CAV EU PROJECT,MATERIALS,19/04/2024,11526157515,308.32,AMAZON  203-5854368-04
OXFORDSHIRE CC,CHILDREN'S & EDUCATION,PAUSE PROGRAMME,CATERING,19/04/2024,11526158537,8.2,COSTA COFFEE 43011919
OXFORDSHIRE CC,CHILDREN'S & EDUCATION,THAME E&A HOME,DAY ACTIVITIES,19/04/2024,11526158441,8.05,SAINSBURYS S/MKTS
OXFORDSHIRE CC,CUSTOMER AND CULTURE,HARD FM,PREMISES REPAIRS,19/04/2024,11526158407,25,HOMEBASE LTD 091
OXFORDSHIRE CC,CUSTOMER AND CULTURE,KIDLINGTON LIBRARY,"SUPPLIES, STATIONERY AND MATERIALS",19/04/2024,11526159135,15.58,AMAZON.CO.UK HD4J39AC4
OXFORDSHIRE CC,CHILDREN'S & EDUCATION,UASC 16&17,MATERIALS,19/04/2024,11526157341,246,SPORTSDIRECT.COM
OXFORDSHIRE CC,CHILDREN'S & EDUCATION,THAME E&A HOME,ENTERTAINMENT EXPENSES,19/04/2024,11526157429,23.5,NATIONALWATERSPORT
OXFORDSHIRE CC,CUSTOMER AND CULTURE,HOLTON SITE,CATERING PROVISIONS,19/04/2024,11526157507,17.5,MILK AND MORE (RECUR
OXFORDSHIRE CC,CHILDREN'S & EDUCATION,EYNSHAM,EQUIPMENT,19/04/2024,11526157963,79.9,AMAZON  206-5994218-37
OXFORDSHIRE CC,CHILDREN'S & EDUCATION,"	MALTFIELD HOUSE",CATERING PROVISIONS,19/04/2024,11526158135,1.75,CO-OPERATIVE FOOD
OXFORDSHIRE CC,CHILDREN'S & EDUCATION,FSP NON-STAFFING - CENTRAL,PAYMENTS TO TRANSPORT OPERATORS,19/04/2024,11526159145,6.9,WWW.GWR.COM
OXFORDSHIRE CC,CHILDREN'S & EDUCATION,DIDCOT MOVE-ON HOME,CATERING PROVISIONS,19/04/2024,11526158151,11.11,SAINSBURYS S/MKTS
OXFORDSHIRE CC,CHILDREN'S & EDUCATION,UASC 16&17,MATERIALS,19/04/2024,11526157349,177.5,SPORTSDIRECT.COM
OXFORDSHIRE CC,CHILDREN'S & EDUCATION,THAME E&A HOME,CATERING PROVISIONS,19/04/2024,11526157439,20.44,TESCO STORES 2041
OXFORDSHIRE CC,CHILDREN'S & EDUCATION,EYNSHAM,CATERING,19/04/2024,11526157967,45.06,JUST EAT
OXFORDSHIRE CC,CHILDREN'S & EDUCATION,UASC 16&17,MATERIALS,19/04/2024,11526157357,108,SPORTSDIRECT.COM
OXFORDSHIRE CC,CHILDREN'S & EDUCATION,UASC POST 18,MATERIALS,19/04/2024,11526158167,37,SPORTSDIRECT 218
OXFORDSHIRE CC,CUSTOMER AND CULTURE,HARD FM,PREMISES REPAIRS,19/04/2024,11526157235,21.99,WWW.SCREWFIX.COM
OXFORDSHIRE CC,CHILDREN'S & EDUCATION,CHILDREN IN CARE NON-STAFFING - CENTRL 1,PAYMENT TO GOVERNMENT DEPARTMENTS,19/04/2024,11526157457,57.5,HM PASSPORT OFFICE
OXFORDSHIRE CC,CHILDREN'S & EDUCATION,UASC POST 18,PAYMENTS TO TRANSPORT OPERATORS,19/04/2024,11526158001,98.32,TRAINLINE
OXFORDSHIRE CC,ADULTS,CSS BICESTER,EQUIPMENT,19/04/2024,11526157501,25.92,AMAZON  202-1913734-29
OXFORDSHIRE CC,ADULTS,CSS - OXFORD,CATERING PROVISIONS,18/04/2024,11519600379,24.22,ALDI STORES 775-142
OXFORDSHIRE CC,CHILDREN'S & EDUCATION,PAUSE PROGRAMME,CATERING,18/04/2024,11519600571,8.49,BURGER KING  BICESTER
OXFORDSHIRE CC,CHILDREN'S & EDUCATION,DIDCOT MOVE-ON HOME,CATERING PROVISIONS,18/04/2024,11519600613,27.64,SAINSBURYS S/MKTS
OXFORDSHIRE CC,CUSTOMER AND CULTURE,LIB ICT SUPPRT&MAINT,EQUIPMENT,18/04/2024,11519600769,256.55,AMAZON.CO.UK HD4Y51474
OXFORDSHIRE CC,CHILDREN'S & EDUCATION,"	LOOKED AFTER CITY 2",PAYMENTS TO TRANSPORT OPERATORS,18/04/2024,11519600751,45.9,TRAINLINE
OXFORDSHIRE CC,ADULTS,CSS WITNEY,ENTERTAINMENT EXPENSES,18/04/2024,11519600821,19.8,WWW.BETTER.ORG.UK
OXFORDSHIRE CC,CHILDREN'S & EDUCATION,PAUSE PROGRAMME,CATERING,18/04/2024,11519602341,1.1,OXFORDSHIRE VENDING
OXFORDSHIRE CC,CUSTOMER AND CULTURE,LIB ICT SUPPRT&MAINT,MATERIALS,18/04/2024,11519600767,256.55,AMAZON.CO.UK HD4AX4424
OXFORDSHIRE CC,CUSTOMER AND CULTURE,LIB ICT SUPPRT&MAINT,EQUIPMENT,18/04/2024,11519600765,259.97,AMAZON  026-9467616-25
OXFORDSHIRE CC,CHILDREN'S & EDUCATION,CHILDREN IN CARE NON-STAFFING - NORTH,PAYMENTS TO TRANSPORT OPERATORS,18/04/2024,11519599695,160.08,BKG HOTEL AT BOOKING.C
OXFORDSHIRE CC,CHILDREN'S & EDUCATION,DIDCOT MOVE-ON HOME,CATERING PROVISIONS,18/04/2024,11519599963,109.69,TESCO STORES 2919
OXFORDSHIRE CC,ADULTS,CSS WALLINGFORD,CATERING PROVISIONS,18/04/2024,11519599551,39.27,AMAZON  026-0827562-71
OXFORDSHIRE CC,CHILDREN'S & EDUCATION,THAME E&A HOME,MATERIALS,18/04/2024,11519600333,4.3,HOBBYCRAFT
OXFORDSHIRE CC,CHILDREN'S & EDUCATION,CHILDREN IN CARE NON-STAFFING - NORTH,OTHER EXPENSES,18/04/2024,11519601979,72,BKG HOTEL AT BOOKING.C
OXFORDSHIRE CC,ADULTS,CSS WALLINGFORD,ENTERTAINMENT EXPENSES,18/04/2024,11519599559,3.3,WWW.BETTER.ORG.UK
OXFORDSHIRE CC,ADULTS,CSS WANTAGE,MATERIALS,18/04/2024,11519601259,4.09,AMAZON  203-9188881-12
OXFORDSHIRE CC,RESOURCES,FRONTIER CAV EU PROJECT,MATERIALS,18/04/2024,11519599717,798,REMARKABLE
OXFORDSHIRE CC,CHILDREN'S & EDUCATION,THAME E&A HOME,CATERING PROVISIONS,18/04/2024,11519600341,8.35,ICELAND FOODS LTD 1748
OXFORDSHIRE CC,CHILDREN'S & EDUCATION,THAME E&A HOME,CATERING PROVISIONS,18/04/2024,11519600549,19.25,AMAZON  206-5759177-77
OXFORDSHIRE CC,ADULTS,CSS WALLINGFORD,CATERING PROVISIONS,18/04/2024,11519599565,26,WAITROSE 675
OXFORDSHIRE CC,CHILDREN'S & EDUCATION,CHILDREN IN CARE NON-STAFFING - CENTRL 1,PAYMENT TO GOVERNMENT DEPARTMENTS,18/04/2024,11519599685,140,OXFORDSHIRE CC WEB1
OXFORDSHIRE CC,RESOURCES,FRONTIER CAV EU PROJECT,MATERIALS,18/04/2024,11519599725,185.66,AMAZON  203-5860895-31
OXFORDSHIRE CC,CUSTOMER AND CULTURE,TREE MAINT OPS,CLOTHING AND UNIFORMS,18/04/2024,11519601991,88.87,WORKWEAR EXPRESS
OXFORDSHIRE CC,CHILDREN'S & EDUCATION,THAME E&A HOME,CATERING PROVISIONS,18/04/2024,11519600557,56.01,AMAZON  206-8232178-69
OXFORDSHIRE CC,CHILDREN'S & EDUCATION,PAUSE PROGRAMME,CATERING,18/04/2024,11519600527,12.47,MCDONALDS
OXFORDSHIRE CC,CUSTOMER AND CULTURE,HARD FM,PREMISES REPAIRS,18/04/2024,11519600665,39.53,PAY.AMAZON.COM
OXFORDSHIRE CC,CHILDREN'S & EDUCATION,CHILDREN IN CARE NON-STAFFING - SOUTH,CATERING PROVISIONS,18/04/2024,11519601655,71.5,MARKS&SPENCER PLC
OXFORDSHIRE CC,CHILDREN'S & EDUCATION,"	MALTFIELD HOUSE",PAYMENTS TO TRANSPORT OPERATORS,18/04/2024,11519601523,20,HOLIDAY PAYMENT AVR
OXFORDSHIRE CC,CHILDREN'S & EDUCATION,WITNEY,CATERING PROVISIONS,18/04/2024,11519601663,25.31,SAINSBURYS S/MKTS
OXFORDSHIRE CC,CHILDREN'S & EDUCATION,EYNSHAM,CATERING PROVISIONS,18/04/2024,11519601789,3.4,TESCO PFS 3418
OXFORDSHIRE CC,CHILDREN'S & EDUCATION,THAME E&A HOME,CATERING PROVISIONS,18/04/2024,11519599935,95.7,B&M 515 - ABINGDON
OXFORDSHIRE CC,CHILDREN'S & EDUCATION,40 THE MOORS,CATERING PROVISIONS,18/04/2024,11519600027,9.23,TESCO STORES 2788
OXFORDSHIRE CC,CHILDREN'S & EDUCATION,"	MALTFIELD HOUSE","BOOKS, DVDS AND CDS",18/04/2024,11519600287,27.98,AMAZON  205-0383175-00
OXFORDSHIRE CC,CHILDREN'S & EDUCATION,"	LOOKED AFTER CITY 2",POSTAGE AND DELIVERY,18/04/2024,11519600733,7.95,POST OFFICE COUNTER
OXFORDSHIRE CC,CHILDREN'S & EDUCATION,PAUSE PROGRAMME,CATERING,18/04/2024,11519602335,3.99,BOOTS 2138
OXFORDSHIRE CC,ADULTS,CSS WALLINGFORD,CATERING PROVISIONS,18/04/2024,11519599569,3.1,WAITROSE 675
OXFORDSHIRE CC,SOCIAL AND COMMUNITY SERVICES,CSS - ABINGDON,EDUCATIONAL AND VOCATIONAL TRAINING ,18/04/2024,11519599599,53.88,TWINKL 10454283
OXFORDSHIRE CC,ENVIRONMENT AND PLACE,TVERC,IT SERVICES,18/04/2024,11519599645,71.99,CLOOK  CLOOK 445421
OXFORDSHIRE CC,CHILDREN'S & EDUCATION,OTFC TEAM,ENTERTAINMENT EXPENSES,18/04/2024,11519601673,25.9,REDKANGAROO READING
OXFORDSHIRE CC,CHILDREN'S & EDUCATION,FAMILY HELP NORTH,POSTAGE AND DELIVERY,18/04/2024,11519601557,33.6,POST OFFICE COUNTER
OXFORDSHIRE CC,RESOURCES,SCHOOLS FM CATERING AREA 2,CATERING PROVISIONS,18/04/2024,11519601597,6.2,TESCO STORES 4377
OXFORDSHIRE CC,ENVIRONMENT AND PLACE,WASTE REDUCTION GEN,"PUBLICITY, PROMOTIONS AND ADVERTISEMENT",18/04/2024,11519599951,139.62,CHEEKY / NAPPY GURUS
OXFORDSHIRE CC,CHILDREN'S & EDUCATION,"	LOOKED AFTER NORTH",OTHER TRANSPORT ARRANGEMENTS,18/04/2024,11519600175,8.9,M6 TOLL
OXFORDSHIRE CC,CHILDREN'S & EDUCATION,"	LOOKED AFTER CITY 2",OTHER TRANSPORT ARRANGEMENTS,18/04/2024,11519600741,2,OXFORD BUS COMPANY
OXFORDSHIRE CC,ENVIRONMENT AND PLACE,RESOURCES AND WASTE PARTNERSHIP,OTHER TRAINING COURSES AND QUALIFICATION,18/04/2024,11519599957,304.8,EXPO  NATIONAL LETSREC
OXFORDSHIRE CC,ENVIRONMENT AND PLACE,WASTE REDUCTION GEN,OTHER TRAINING COURSES AND QUALIFICATION,18/04/2024,11519599957,304.8,EXPO  NATIONAL LETSREC
OXFORDSHIRE CC,CHILDREN'S & EDUCATION,THAME E&A HOME,MATERIALS,18/04/2024,11519600309,56.53,SHEIN.COM
OXFORDSHIRE CC,CHILDREN'S & EDUCATION,OXFORDSHIRE,CATERING PROVISIONS,18/04/2024,11519600245,12.9,TESCO STORES 2008
OXFORDSHIRE CC,CHILDREN'S & EDUCATION,40 THE MOORS,CATERING,18/04/2024,11519601933,14.9,KASPA'S DESSERTS
OXFORDSHIRE CC,ADULTS,CSS - BANBURY,VEHICLE FUEL,18/04/2024,11519602005,75.41,TESCO PFS 3920
OXFORDSHIRE CC,ADULTS,CSS WALLINGFORD,HEALTH AND SAFETY EQUIPMENT,18/04/2024,11519599577,19,WAITROSE 675
OXFORDSHIRE CC,ADULTS,CSS - OXFORD,CATERING PROVISIONS,18/04/2024,11519599609,5.59,ALDI STORES 775-142
OXFORDSHIRE CC,ENVIRONMENT AND PLACE,TVERC,IT SERVICES,18/04/2024,11519599653,19.19,CLOOK  CLOOK 445537
OXFORDSHIRE CC,CUSTOMER AND CULTURE,OPERATIONS,STATIONERY,18/04/2024,11519601407,16.71,AMAZON  203-4845940-36
OXFORDSHIRE CC,CHILDREN'S & EDUCATION,"	MALTFIELD HOUSE",CATERING PROVISIONS,18/04/2024,11519601507,5.99,AMAZON  206-2780494-65
OXFORDSHIRE CC,CHILDREN'S & EDUCATION,THAME E&A HOME,CATERING PROVISIONS,18/04/2024,11519602023,11.1,WELCOME BREAK-OXFORD S
OXFORDSHIRE CC,RESOURCES,FUTURE FLIGHT AND LAND INFRASTRUCTURE,HIRE OF ACCOMMODATION AND FACILITIES,18/04/2024,11519602057,108,PREMIER INN
OXFORDSHIRE CC,CHILDREN'S & EDUCATION,QUALITY ASSURANCE NORTH TEAM,PAYMENTS TO TRANSPORT OPERATORS,18/04/2024,11519602089,173.42,TRAINLINE
OXFORDSHIRE CC,CHILDREN'S & EDUCATION,"	RIVERSIDE CENTRE",EDUCATIONAL AND VOCATIONAL TRAINING ,18/04/2024,11519601137,395,THE THERAPEUTIC FOREST
OXFORDSHIRE CC,ADULTS,CSS WALLINGFORD,EQUIPMENT,18/04/2024,11519599585,4.99,AMAZON  026-6595891-62
OXFORDSHIRE CC,CUSTOMER AND CULTURE,HARD FM,PREMISES REPAIRS,18/04/2024,11519599625,15.98,WWW.SCREWFIX.COM
OXFORDSHIRE CC,CHILDREN'S & EDUCATION,"	LEAVING CARE SOUTH",OTHER TRANSPORT ARRANGEMENTS,18/04/2024,11519601415,86.9,GWR OXFORD TO
OXFORDSHIRE CC,CHILDREN'S & EDUCATION,OTFC TEAM,VEHICLE FUEL,18/04/2024,11519601695,1.79,SHELL MAPLE RISE
OXFORDSHIRE CC,CHILDREN'S & EDUCATION,40 THE MOORS,CATERING PROVISIONS,18/04/2024,11519601565,8.24,TESCO STORES 2788
OXFORDSHIRE CC,CHILDREN'S & EDUCATION,"	LOOKED AFTER NORTH",VEHICLE FUEL,18/04/2024,11519601607,8.71,TESCO PFS 3878
OXFORDSHIRE CC,ADULTS,CSS WITNEY,CATERING PROVISIONS,18/04/2024,11519601757,24.58,MARKS&SPENCER PLC
OXFORDSHIRE CC,ENVIRONMENT AND PLACE,NAT TRAILS GENERAL,VEHICLE FUEL,18/04/2024,11519600583,30.42,SHELL BEACONSFIELD
OXFORDSHIRE CC,CHILDREN'S & EDUCATION,"	LEAVING CARE CITY 2",CATERING,18/04/2024,11519600635,7.75,STARBUCKS BICESTER
OXFORDSHIRE CC,CHILDREN'S & EDUCATION,"	LOOKED AFTER CITY 2",OTHER TRANSPORT ARRANGEMENTS,18/04/2024,11519600745,2,OXFORD BUS COMPANY
OXFORDSHIRE CC,RESOURCES,FRONTIER CAV EU PROJECT,CATERING,18/04/2024,11519602321,22.6,THE LINCOLNS INN
OXFORDSHIRE CC,CHILDREN'S & EDUCATION,THAME E&A HOME,CATERING PROVISIONS,18/04/2024,11519601425,22,WELCOME BREAK-OXFORD S
OXFORDSHIRE CC,CHILDREN'S & EDUCATION,WITNEY,CATERING PROVISIONS,18/04/2024,11519601773,4.79,YOM YOUR OWN MARKET
OXFORDSHIRE CC,CHILDREN'S & EDUCATION,THAME E&A HOME,TELEPHONE - EQUIPMENT,18/04/2024,11519600315,10,GIFFGAFF
OXFORDSHIRE CC,ADULTS,"ABINGDON CC, STRATTON WAY",CATERING PROVISIONS,18/04/2024,11519600725,3.1,TESCO STORES
OXFORDSHIRE CC,CHILDREN'S & EDUCATION,"	SEN/ICT EQUIPMENT",PURCHASE OF IT EQUIPMENT,18/04/2024,11519602257,37.99,AMAZON.CO.UK HD6BW44R4
OXFORDSHIRE CC,CHILDREN'S & EDUCATION,PAUSE PROGRAMME,CATERING PROVISIONS,18/04/2024,11519602327,2.99,TESCO STORES 2008
OXFORDSHIRE CC,CUSTOMER AND CULTURE,HARD FM,PREMISES REPAIRS,18/04/2024,11519602195,3,CHERWELL
OXFORDSHIRE CC,CHILDREN'S & EDUCATION,SI EQUIPMENT,DISABILITY AIDS AND EQUIPMENT,18/04/2024,11519600959,13.55,UPS LTD
OXFORDSHIRE CC,ADULTS,CSS BICESTER,STATIONERY,18/04/2024,11519602217,10.35,AMAZON  202-0744065-66
OXFORDSHIRE CC,CORPORATE CORE,,STATIONERY,18/04/2024,11519601537,58.08,LYRECO UK LTD
OXFORDSHIRE CC,CHILDREN'S & EDUCATION,THAME E&A HOME,CATERING PROVISIONS,18/04/2024,11519599945,16,TESCO STORES 2008
OXFORDSHIRE CC,CHILDREN'S & EDUCATION,THAME E&A HOME,MATERIALS,18/04/2024,11519600325,40.7,HOBBYCRAFT
OXFORDSHIRE CC,CHILDREN'S & EDUCATION,THAME E&A HOME,CATERING PROVISIONS,18/04/2024,11519602027,7,SAINSBURYS S/MKTS
OXFORDSHIRE CC,CHILDREN'S & EDUCATION,"	LEAVING CARE CITY 2",PAYMENTS TO OTHER ESTABLISHMENTS,18/04/2024,11519602097,40,CS MORRISONS GIFT CARD
OXFORDSHIRE CC,CHILDREN'S & EDUCATION,"	MALTFIELD HOUSE",MATERIALS,18/04/2024,11519602169,59.08,B&M 515 - ABINGDON
OXFORDSHIRE CC,CHILDREN'S & EDUCATION,PAUSE PROGRAMME,CATERING PROVISIONS,18/04/2024,11519600531,4.6,CO-OPERATIVE FOOD
OXFORDSHIRE CC,CHILDREN'S & EDUCATION,"	MALTFIELD HOUSE",STATIONERY,18/04/2024,11519601515,20.77,AMAZON  206-4049200-05
OXFORDSHIRE CC,CUSTOMER AND CULTURE,HOLTON SITE,MATERIALS,18/04/2024,11519599711,564,M & M SKIP HIRE
OXFORDSHIRE CC,CHILDREN'S & EDUCATION,OTFC TEAM,ENTERTAINMENT EXPENSES,18/04/2024,11519601679,2.95,REDKANGAROO READING
OXFORDSHIRE CC,CUSTOMER AND CULTURE,COMMUNITY PARTNERSHIP TEAM,CATERING PROVISIONS,18/04/2024,11519599925,103.68,TESCO STORES 2008
OXFORDSHIRE CC,CHILDREN'S & EDUCATION,UASC 16&17,SUBSCRIPTIONS,18/04/2024,11519602037,35.99,PUREGYM LIMITED
OXFORDSHIRE CC,CHILDREN'S & EDUCATION,PAUSE PROGRAMME,MATERIALS,18/04/2024,11519600537,6.28,CARD FACTORY
OXFORDSHIRE CC,ENVIRONMENT AND PLACE,ELEC NPR ST LTG,OTHER TRANSPORT ARRANGEMENTS,18/04/2024,11519599593,10.87,YOURPARKINGSPACE.CO.UK
OXFORDSHIRE CC,CHILDREN'S & EDUCATION,OTFC TEAM,ENTERTAINMENT EXPENSES,18/04/2024,11519601685,8.05,REDKANGAROO READING
OXFORDSHIRE CC,CHILDREN'S & EDUCATION,QUALITY ASSURANCE NORTH TEAM,PAYMENTS TO TRANSPORT OPERATORS,18/04/2024,11519602085,49.51,EXPEDIA EXPEDIA 728080
OXFORDSHIRE CC,ADULTS,FIELDWORK UASC,CATERING PROVISIONS,18/04/2024,11519600395,3.7,TESCO STORES 2990
OXFORDSHIRE CC,CHILDREN'S & EDUCATION,"	LEAVING CARE NORTH",MATERIALS,18/04/2024,11519602205,30,VOUCHER EXPRESS
OXFORDSHIRE CC,ADULTS,CSS - BANBURY,CATERING PROVISIONS,18/04/2024,11519601573,-6.25,AMAZON  204-1739977-24
OXFORDSHIRE CC,CHILDREN'S & EDUCATION,OTFC TEAM,CATERING PROVISIONS,18/04/2024,11519601689,3.9,CO-OP GROUP 310626
OXFORDSHIRE CC,CORPORATE CORE,,STATIONERY,18/04/2024,11519601547,14.64,LYRECO UK LTD
OXFORDSHIRE CC,CHILDREN'S & EDUCATION,NTS UASC AGENCY,CLEANING MATERIALS,18/04/2024,11519601587,21.99,AMAZON  203-3051127-59
OXFORDSHIRE CC,CHILDREN'S & EDUCATION,THAME E&A HOME,CATERING PROVISIONS,18/04/2024,11519599941,8.48,B&M 515 - ABINGDON
OXFORDSHIRE CC,CUSTOMER AND CULTURE,HARD FM,PREMISES REPAIRS,17/04/2024,11513583719,7.49,HALFORDS 0480
OXFORDSHIRE CC,CHILDREN'S & EDUCATION,EYNSHAM,POCKET MONEY (PAID TO CHILDREN),17/04/2024,11513585727,80,TESCO STORES 2008
OXFORDSHIRE CC,CHILDREN'S & EDUCATION,40 THE MOORS,PRINTING,17/04/2024,11513585767,32.28,PHOTOBOX LIMITED
OXFORDSHIRE CC,CHILDREN'S & EDUCATION,EYNSHAM,EQUIPMENT,17/04/2024,11513585785,8.2,EVENLODE DIY
OXFORDSHIRE CC,CUSTOMER AND CULTURE,HARD FM,PREMISES REPAIRS,17/04/2024,11513584597,11.08,BES LTD
OXFORDSHIRE CC,ADULTS,NRPF & HOMELESSNESS,HIRE OF ACCOMMODATION AND FACILITIES,17/04/2024,11513584637,266,PREMIER INN
OXFORDSHIRE CC,CHILDREN'S & EDUCATION,"	LOOKED AFTER CITY 2",OTHER TRANSPORT ARRANGEMENTS,17/04/2024,11513584641,2,OXFORD BUS COMPANY
OXFORDSHIRE CC,CHILDREN'S & EDUCATION,EYNSHAM,CATERING PROVISIONS,17/04/2024,11513585777,57.23,OXFORD PEARTREE KFC
OXFORDSHIRE CC,CUSTOMER AND CULTURE,DEPARTMENTAL MANAGE,CATERING PROVISIONS,17/04/2024,11513585759,11.98,AMAZON  204-0560791-59
OXFORDSHIRE CC,CHILDREN'S & EDUCATION,"	LOOKED AFTER CITY 2",OTHER TRANSPORT ARRANGEMENTS,17/04/2024,11513584649,2,OXFORD BUS COMPANY
OXFORDSHIRE CC,ENVIRONMENT AND PLACE,FLEET OPERATIONS,HARDWARE AND CROCKERY,17/04/2024,11513584259,399.92,B&Q MARKETPLACE
OXFORDSHIRE CC,ADULTS,FIELDWORK UASC,CATERING PROVISIONS,17/04/2024,11513584333,5.25,TESCO STORES 2990
OXFORDSHIRE CC,CHILDREN'S & EDUCATION,WITNEY,CATERING PROVISIONS,17/04/2024,11513584377,114.31,WM MORRISONS STORE PIC
OXFORDSHIRE CC,CHILDREN'S & EDUCATION,DIDCOT MOVE-ON HOME,MATERIALS,17/04/2024,11513585751,65.82,MIELE MOTO SHOP
OXFORDSHIRE CC,ADULTS,NRPF & HOMELESSNESS,HIRE OF ACCOMMODATION AND FACILITIES,17/04/2024,11513584631,296,PREMIER INN
OXFORDSHIRE CC,CHILDREN'S & EDUCATION,"	LOOKED AFTER CITY 2",OTHER TRANSPORT ARRANGEMENTS,17/04/2024,11513584655,2,OXFORD BUS COMPANY
OXFORDSHIRE CC,CUSTOMER AND CULTURE,MUSEUMS COLLECTIONS,EQUIPMENT,17/04/2024,11513585847,104.9,SCREWFIX DIRECT
OXFORDSHIRE CC,ADULTS,PAUSE PROGRAMME,CATERING PROVISIONS,17/04/2024,11513584189,35.3,MARKS&SPENCER PLC
OXFORDSHIRE CC,ADULTS,CSS WANTAGE,ENTERTAINMENT EXPENSES,17/04/2024,11513585067,14.6,HOLLYWOOD BOWL
OXFORDSHIRE CC,CHILDREN'S & EDUCATION,"	LEAVING CARE CITY 2",CATERING,17/04/2024,11513584559,17.4,NANDOS TELFORD
OXFORDSHIRE CC,CHILDREN'S & EDUCATION,"	LEAVING CARE CITY 2",CATERING,17/04/2024,11513584565,9.45,CREAMS.
OXFORDSHIRE CC,CUSTOMER AND CULTURE,HARD FM,PREMISES REPAIRS,17/04/2024,11513584483,25.18,B & Q 1156
OXFORDSHIRE CC,CHILDREN'S & EDUCATION,DIDCOT MOVE-ON HOME,CATERING PROVISIONS,17/04/2024,11513584327,7.7,SAINSBURYS S/MKTS
OXFORDSHIRE CC,ADULTS,CSS WANTAGE,ENTERTAINMENT EXPENSES,17/04/2024,11513585063,14.6,HOLLYWOOD BOWL
OXFORDSHIRE CC,CHILDREN'S & EDUCATION,THAME E&A HOME,DAY ACTIVITIES,17/04/2024,11513584471,23.97,DECATHLON
OXFORDSHIRE CC,CHILDREN'S & EDUCATION,THAME E&A HOME,CATERING PROVISIONS,17/04/2024,11513584513,11.56,AMAZON  206-0263608-28
OXFORDSHIRE CC,ADULTS,CSS WANTAGE,PAYMENTS TO HEALTH AUTHORITIES,17/04/2024,11513585081,26,ZETTLE_ JANET LYNN FOO
OXFORDSHIRE CC,CHILDREN'S & EDUCATION,"	LEAVING CARE CITY 2",OTHER TRANSPORT ARRANGEMENTS,17/04/2024,11513584549,20.5,OXFORDBUS.CO.UK
OXFORDSHIRE CC,CHILDREN'S & EDUCATION,THAME E&A HOME,CATERING PROVISIONS,17/04/2024,11513584575,9.8,SAINSBURYS S/MKTS
OXFORDSHIRE CC,CHILDREN'S & EDUCATION,VULNERABLE LEARNERS,EDUCATIONAL AND VOCATIONAL TRAINING ,17/04/2024,11513584231,306,EARLY EXCELLENCE LTD
OXFORDSHIRE CC,CHILDREN'S & EDUCATION,"	LEAVING CARE CITY 1",CATERING PROVISIONS,17/04/2024,11513584269,40.38,AMAZON  204-2755725-55
OXFORDSHIRE CC,CHILDREN'S & EDUCATION,"	LEAVING CARE SOUTH",CATERING,17/04/2024,11513584357,9.48,MCDONALDS
OXFORDSHIRE CC,CHILDREN'S & EDUCATION,FAMILY SOLUTIONS PLUS NON-STAFF - NORTH,PAYMENTS TO TRANSPORT OPERATORS,17/04/2024,11513585895,48.8,WWW.GWR.COM
OXFORDSHIRE CC,CHILDREN'S & EDUCATION,CHILDREN IN CARE NON-STAFFING - NORTH,OTHER EXPENSES,17/04/2024,11513585881,23.95,DUNELM SOFTFURNISHINGS
OXFORDSHIRE CC,CHILDREN'S & EDUCATION,"	OCCG GRANT",BIRTHDAY ALLOWANCE,17/04/2024,11513584213,15,SPORTSDIRECT 218
OXFORDSHIRE CC,ADULTS,CSS WANTAGE,MATERIALS,17/04/2024,11513585083,22.73,AMAZON  203-8512494-59
OXFORDSHIRE CC,CHILDREN'S & EDUCATION,EYNSHAM,CATERING,17/04/2024,11513583597,157.77,TESCO STORES 2008
OXFORDSHIRE CC,CHILDREN'S & EDUCATION,UASC 16&17,PAYMENT TO GOVERNMENT DEPARTMENTS,17/04/2024,11513583655,143,SOPRA STERIA LIMITED U
OXFORDSHIRE CC,CHILDREN'S & EDUCATION,"	LOOKED AFTER NORTH",OTHER TRANSPORT ARRANGEMENTS,17/04/2024,11513584221,7.4,M6 TOLL
OXFORDSHIRE CC,CHILDREN'S & EDUCATION,BANBURY CC,CATERING PROVISIONS,17/04/2024,11513585887,7.25,ALDI 10 775
OXFORDSHIRE CC,CHILDREN'S & EDUCATION,"	LEAVING CARE CITY 2",PAYMENTS TO TRANSPORT OPERATORS,17/04/2024,11513584557,83.48,BKG HOTEL AT BOOKING.C
OXFORDSHIRE CC,CUSTOMER AND CULTURE,HARD FM,PREMISES REPAIRS,17/04/2024,11513584457,263.2,WICKES OXFORD
OXFORDSHIRE CC,ADULTS,CSS WANTAGE,MATERIALS,17/04/2024,11513585073,4,AMAZON  203-2606991-73
OXFORDSHIRE CC,ADULTS,CSS - BANBURY,CATERING PROVISIONS,17/04/2024,11513585903,10.8,TESCO STORES 2064
OXFORDSHIRE CC,CHILDREN'S & EDUCATION,OTFC TEAM,ENTERTAINMENT EXPENSES,17/04/2024,11513585639,10.2,CARTERTON LEISURE CENT
OXFORDSHIRE CC,CHILDREN'S & EDUCATION,FAMILY SOLUTIONS PLUS NON-STAFF - NORTH,PAYMENTS TO TRANSPORT OPERATORS,17/04/2024,11513585645,26.99,TRAINLINE
OXFORDSHIRE CC,ADULTS,CSS - BANBURY,CATERING PROVISIONS,17/04/2024,11513585905,3.22,TESCO STORES 2064
OXFORDSHIRE CC,CHILDREN'S & EDUCATION,FAMILY SOLUTIONS PLUS NON-STAFF - NORTH,PAYMENT TO GOVERNMENT DEPARTMENTS,17/04/2024,11513585713,123.31,UKVI 3A00044365269
OXFORDSHIRE CC,CHILDREN'S & EDUCATION,HOUSE PROJECT,PAYMENT TO GOVERNMENT DEPARTMENTS,17/04/2024,11513585957,341,WWW.OXFORD.GOV.UK
OXFORDSHIRE CC,ADULTS,CSS WALLINGFORD,CATERING PROVISIONS,17/04/2024,11513583577,38.19,AMAZON  026-6289189-62
OXFORDSHIRE CC,ADULTS,CSS - ABINGDON,MATERIALS,17/04/2024,11513583611,339.08,POTTERYCRAFTS LIMITED
OXFORDSHIRE CC,ADULTS,CSS WANTAGE,CATERING PROVISIONS,17/04/2024,11513583639,6.99,AMAZON  203-3580174-21
OXFORDSHIRE CC,RESOURCES,FUTURE FLIGHT AND LAND INFRASTRUCTURE,HIRE OF ACCOMMODATION AND FACILITIES,17/04/2024,11513585911,57.13,BKG HOTEL AT BOOKING.C
OXFORDSHIRE CC,CHILDREN'S & EDUCATION,OTFC TEAM,ENTERTAINMENT EXPENSES,17/04/2024,11513585641,1.5,CARTERTON LEISURE CENT
OXFORDSHIRE CC,CHILDREN'S & EDUCATION,FAMILY SOLUTIONS PLUS NON-STAFF - NORTH,PAYMENT TO GOVERNMENT DEPARTMENTS,17/04/2024,11513585719,123.31,UKVI 3030044364998
OXFORDSHIRE CC,CUSTOMER AND CULTURE,SCHOOLS FM CATERING AREA 1,CATERING PROVISIONS,17/04/2024,11513585667,62.73,LIDL GB WITNEY
OXFORDSHIRE CC,ADULTS,CSS WITNEY,CATERING PROVISIONS,17/04/2024,11513585695,10.13,CO-OP GROUP 070582
OXFORDSHIRE CC,CUSTOMER AND CULTURE,THAME LIBRARY,"NEWSPAPERS, PERIODICALS AND PUBLICATIONS",17/04/2024,11513585387,5.8,SAINSBURYS S/MKTS
OXFORDSHIRE CC,CORPORATE CORE,,STATIONERY,17/04/2024,11513585445,-19.01,LYRECO UK LTD
OXFORDSHIRE CC,ENTERPRISEVC,,CAR LEASING - PRIVATE RENTALS,17/04/2024,11513585517,77.98,ENTERPRISE RENT-A-CAR
OXFORDSHIRE CC,ENTERPRISEVC,,CAR LEASING - PRIVATE RENTALS,17/04/2024,11513585537,77.98,ENTERPRISE RENT-A-CAR
OXFORDSHIRE CC,ENTERPRISEVC,,CAR LEASING - PRIVATE RENTALS,17/04/2024,11513585557,129.1,ENTERPRISE RENT-A-CAR
OXFORDSHIRE CC,ENTERPRISEVC,,CAR LEASING - PRIVATE RENTALS,17/04/2024,11513585521,83.95,ENTERPRISE RENT-A-CAR
OXFORDSHIRE CC,ENTERPRISEVC,,CAR LEASING - PRIVATE RENTALS,17/04/2024,11513585541,97.85,ENTERPRISE RENT-A-CAR
OXFORDSHIRE CC,CHILDREN'S & EDUCATION,"	LEAVING CARE NORTH",CATERING,17/04/2024,11513586107,9.18,STARBUCKS COFFEE
OXFORDSHIRE CC,ENTERPRISEVC,,CAR LEASING - PRIVATE RENTALS,17/04/2024,11513585561,41.98,ENTERPRISE RENT-A-CAR
OXFORDSHIRE CC,CHILDREN'S & EDUCATION,WITNEY,MATERIALS,17/04/2024,11513585615,32,WWW.ARGOS.CO.UK
OXFORDSHIRE CC,CHILDREN'S & EDUCATION,"	DIRECTOR'S OFFICE",CATERING PROVISIONS,17/04/2024,11513583959,7.6,SAINSBURYS S/MKTS
OXFORDSHIRE CC,CHILDREN'S & EDUCATION,CHILDREN IN CARE COUNCIL,CATERING PROVISIONS,17/04/2024,11513583819,28.1,MARKS&SPENCER PLC
OXFORDSHIRE CC,CHILDREN'S & EDUCATION,PAUSE PROGRAMME,OTHER TRANSPORT ARRANGEMENTS,17/04/2024,11513586243,3.1,RINGGO PARKING
OXFORDSHIRE CC,CHILDREN'S & EDUCATION,EYNSHAM,CATERING PROVISIONS,17/04/2024,11513583741,3.5,CO-OPERATIVE FOOD
OXFORDSHIRE CC,CHILDREN'S & EDUCATION,FSP NON-STAFFING - CENTRAL,PAYMENT TO GOVERNMENT DEPARTMENTS,17/04/2024,11513586083,11,GEN REGISTER OFFICE
OXFORDSHIRE CC,CHILDREN'S & EDUCATION,SI EQUIPMENT,IT SOFTWARE,17/04/2024,11513586143,384,TECHNO-VISION SYSTEMS
OXFORDSHIRE CC,ENTERPRISEVC,,CAR LEASING - PRIVATE RENTALS,17/04/2024,11513585501,199.32,ENTERPRISE RENT-A-CAR
OXFORDSHIRE CC,ADULTS,CSS - BANBURY,EDUCATIONAL AND VOCATIONAL TRAINING ,17/04/2024,11513585567,168,WWW.ZOOLABUK.COM
OXFORDSHIRE CC,CHILDREN'S & EDUCATION,THAME E&A HOME,CATERING,17/04/2024,11513585345,10.5,GREGGS PLC
OXFORDSHIRE CC,CHILDREN'S & EDUCATION,EYNSHAM,OTHER TRANSPORT ARRANGEMENTS,17/04/2024,11513583745,25.5,STGCOACH/CTYLINK
OXFORDSHIRE CC,CHILDREN'S & EDUCATION,"	MALTFIELD HOUSE",EQUIPMENT,17/04/2024,11513585413,6.99,AMAZON  206-0189639-16
OXFORDSHIRE CC,ENTERPRISEVC,,CAR LEASING - PRIVATE RENTALS,17/04/2024,11513585507,89,ENTERPRISE RENT-A-CAR
OXFORDSHIRE CC,ENTERPRISEVC,,CAR LEASING - PRIVATE RENTALS,17/04/2024,11513585525,41.98,ENTERPRISE RENT-A-CAR
OXFORDSHIRE CC,ENTERPRISEVC,,CAR LEASING - PRIVATE RENTALS,17/04/2024,11513585547,131.52,ENTERPRISE RENT-A-CAR
OXFORDSHIRE CC,ADULTS,CSS BICESTER,STATIONERY,17/04/2024,11513586117,26.94,AMAZON  202-4058084-44
OXFORDSHIRE CC,CHILDREN'S & EDUCATION,WITNEY,CATERING PROVISIONS,17/04/2024,11513585619,3.67,LIDL GB WITNEY
OXFORDSHIRE CC,ADULTS,CSS - ABINGDON,CATERING PROVISIONS,17/04/2024,11513586209,37.52,ALDI STORES
OXFORDSHIRE CC,CHILDREN'S & EDUCATION,PAUSE PROGRAMME,CATERING,17/04/2024,11513586251,6.05,TESCO PFS 3418
OXFORDSHIRE CC,CUSTOMER AND CULTURE,WANTAGE LIBRARY,"NEWSPAPERS, PERIODICALS AND PUBLICATIONS",17/04/2024,11513584119,117.3,ROWES NEWSMARKET
OXFORDSHIRE CC,CUSTOMER AND CULTURE,COUNTY PRINT FINSHRS,CATERING PROVISIONS,17/04/2024,11513586043,120,WAITROSE 581
OXFORDSHIRE CC,CHILDREN'S & EDUCATION,"	LEAVING CARE NORTH",CATERING,17/04/2024,11513586093,10.7,STARBUCKS TOWCESTER
OXFORDSHIRE CC,RESOURCES,FRONTIER CAV EU PROJECT,MATERIALS,17/04/2024,11513583795,84.78,AMAZON  203-8948654-27
OXFORDSHIRE CC,CHILDREN'S & EDUCATION,SI EQUIPMENT,IT SOFTWARE,17/04/2024,11513586151,384,TECHNO-VISION SYSTEMS
OXFORDSHIRE CC,ADULTS,CSS - BANBURY,ENTERTAINMENT EXPENSES,17/04/2024,11513585573,5.34,SPICEBALL LEISURE CENT
OXFORDSHIRE CC,CHILDREN'S & EDUCATION,CHILDREN IN CARE NON-STAFFING - SOUTH,VEHICLE FUEL,17/04/2024,11513585597,30,MFG NEWBRIDGE
OXFORDSHIRE CC,CHILDREN'S & EDUCATION,OTFC TEAM,ENTERTAINMENT EXPENSES,17/04/2024,11513585635,7.2,CARTERTON LEISURE CENT
OXFORDSHIRE CC,CHILDREN'S & EDUCATION,40 THE MOORS,CATERING PROVISIONS,17/04/2024,11513585251,20,CO-OPERATIVE FOOD
OXFORDSHIRE CC,CHILDREN'S & EDUCATION,THAME E&A HOME,OTHER TRANSPORT ARRANGEMENTS,17/04/2024,11513585331,2,REDLINE BUSES LTD
OXFORDSHIRE CC,ADULTS,CSS - ABINGDON,MATERIALS,17/04/2024,11513586219,30,ARGOS LTD
OXFORDSHIRE CC,CUSTOMER AND CULTURE,HARD FM,PREMISES REPAIRS,17/04/2024,11513583717,47.39,ACCESS LOCK KEY SERVIC
OXFORDSHIRE CC,ADULTS,CSS WANTAGE,CATERING PROVISIONS,17/04/2024,11513586161,19.81,SAINSBURYS S/MKTS
OXFORDSHIRE CC,CUSTOMER AND CULTURE,OCCG GRANT,CATERING PROVISIONS,17/04/2024,11513586185,8.09,AMAZON  206-0894728-53
OXFORDSHIRE CC,CHILDREN'S & EDUCATION,UASC 16&17,PAYMENTS TO TRANSPORT OPERATORS,17/04/2024,11513585601,9.06,TRAINLINE
OXFORDSHIRE CC,CHILDREN'S & EDUCATION,"	LEAVING CARE NORTH",CATERING,17/04/2024,11513586097,5.58,STARBUCKS COFFEE
OXFORDSHIRE CC,CHILDREN'S & EDUCATION,THAME E&A HOME,OTHER TRANSPORT ARRANGEMENTS,17/04/2024,11513585339,2,ARRIVA THE SHIRES LIMI
OXFORDSHIRE CC,CORPORATE CORE,,STATIONERY,17/04/2024,11513585433,118.37,LYRECO UK LTD
OXFORDSHIRE CC,ENTERPRISEVC,,CAR LEASING - PRIVATE RENTALS,17/04/2024,11513585509,53,ENTERPRISE RENT-A-CAR
OXFORDSHIRE CC,ADULTS,CSS - OXFORD,MATERIALS,17/04/2024,11513583947,53.83,ALDI STORES 775-142
OXFORDSHIRE CC,ENTERPRISEVC,,CAR LEASING - PRIVATE RENTALS,17/04/2024,11513585531,142.01,ENTERPRISE RENT-A-CAR
OXFORDSHIRE CC,ENTERPRISEVC,,CAR LEASING - PRIVATE RENTALS,17/04/2024,11513585553,77.98,ENTERPRISE RENT-A-CAR
OXFORDSHIRE CC,CORPORATE CORE,,STATIONERY,16/04/2024,11508351579,132.36,LYRECO UK LTD
OXFORDSHIRE CC,ENVIRONMENT AND PLACE,TREE MAINT OPS,"BOOKS, DVDS AND CDS",16/04/2024,11508351591,33.62,AMAZON.CO.UK HP3B18UU4
OXFORDSHIRE CC,CUSTOMER AND CULTURE,WALLINGFORD LIBRARY,MATERIALS,16/04/2024,11508351603,15.54,AMAZON.CO.UK HP6256UK4
OXFORDSHIRE CC,CHILDREN'S & EDUCATION,FAMILY SOLUTIONS PLUS NON-STAFF - NORTH,PAYMENTS TO TRANSPORT OPERATORS,16/04/2024,11508351707,12.42,TRAINLINE
OXFORDSHIRE CC,CHILDREN'S & EDUCATION,FAMILY SOLUTIONS PLUS NON-STAFF - NORTH,PAYMENTS TO TRANSPORT OPERATORS,16/04/2024,11508351767,17.92,TRAINLINE
OXFORDSHIRE CC,CHILDREN'S & EDUCATION,EYNSHAM,CATERING PROVISIONS,16/04/2024,11508349931,4.98,SPAR EYNSHAM
OXFORDSHIRE CC,CORPORATE CORE,,STATIONERY,16/04/2024,11508351581,165.46,LYRECO UK LTD
OXFORDSHIRE CC,CUSTOMER AND CULTURE,CENTRAL LIBRARY,CATERING PROVISIONS,16/04/2024,11508351859,10.99,AMAZON  202-9886784-09
OXFORDSHIRE CC,CUSTOMER AND CULTURE,HARD FM,PREMISES REPAIRS,16/04/2024,11508348875,16.75,SNOB & LOCK
OXFORDSHIRE CC,CHILDREN'S & EDUCATION,EYNSHAM,OTHER COMMUNICATIONS,16/04/2024,11508348661,10.99,NETFLIX
OXFORDSHIRE CC,ADULTS,CSS BICESTER,EDUCATIONAL AND VOCATIONAL TRAINING ,16/04/2024,11508349225,50,WWW.PECS.ORG.UK
OXFORDSHIRE CC,CHILDREN'S & EDUCATION,THAME E&A HOME,CATERING PROVISIONS,16/04/2024,11508351351,3.95,SAINSBURYS SUPERMA
OXFORDSHIRE CC,PUBLIC HEALTH,WITNEY,CATERING PROVISIONS,16/04/2024,11508348711,1.59,LIDL GB WITNEY
OXFORDSHIRE CC,ENVIRONMENT AND PLACE,HWAYS NETWORK MGT,EQUIPMENT,16/04/2024,11508349265,414,SP HUDSONS-UK
OXFORDSHIRE CC,CUSTOMER AND CULTURE,HARD FM,PREMISES REPAIRS,16/04/2024,11508348869,55.14,TOOLSTATION LTD
OXFORDSHIRE CC,ADULTS,CSS WANTAGE,CATERING PROVISIONS,16/04/2024,11508348779,32.99,SAINSBURYS S/MKTS
OXFORDSHIRE CC,CHILDREN'S & EDUCATION,CHILDREN IN CARE NON-STAFFING - CENTRL 2,PAYMENTS TO TRANSPORT OPERATORS,16/04/2024,11508349113,38.41,TRAINLINE
OXFORDSHIRE CC,CHILDREN'S & EDUCATION,FAMILY SOLUTIONS PLUS NON-STAFF - NORTH,CATERING,16/04/2024,11508351587,62.1,WETHERSPOON HOTEL
OXFORDSHIRE CC,CHILDREN'S & EDUCATION,CHILDREN IN CARE NON-STAFFING - CENTRL 2,PAYMENT TO GOVERNMENT DEPARTMENTS,16/04/2024,11508349115,57.5,HM PASSPORT OFFICE
OXFORDSHIRE CC,CHILDREN'S & EDUCATION,"	LEAVING CARE NORTH",CLOTHING AND UNIFORMS,16/04/2024,11508349707,98.99,BOOHOO.COM UK LTD
OXFORDSHIRE CC,ADULTS,PAUSE PROGRAMME,CATERING PROVISIONS,16/04/2024,11508349823,2.07,LIDL GB OXFORD
OXFORDSHIRE CC,CHILDREN'S & EDUCATION,40 THE MOORS,CATERING PROVISIONS,16/04/2024,11508351997,31.06,TESCO STORES 2788
OXFORDSHIRE CC,CORPORATE CORE,,STATIONERY,16/04/2024,11508351583,18.84,LYRECO UK LTD
OXFORDSHIRE CC,CHILDREN'S & EDUCATION,WITNEY,CATERING PROVISIONS,16/04/2024,11508351681,3.88,LIDL GB WITNEY
OXFORDSHIRE CC,CHILDREN'S & EDUCATION,DIDCOT MOVE-ON HOME,CATERING PROVISIONS,16/04/2024,11508351719,6.25,SAINSBURYS S/MKTS
OXFORDSHIRE CC,CUSTOMER AND CULTURE,HARD FM,PREMISES REPAIRS,16/04/2024,11508350283,261.94,REYNOLDS BLINDS
OXFORDSHIRE CC,CUSTOMER AND CULTURE,HARD FM,FURNITURE,16/04/2024,11508350285,-261.94,REYNOLDS BLINDS
OXFORDSHIRE CC,RESOURCES,LEGAL SERVICES,EDUCATIONAL AND VOCATIONAL TRAINING ,16/04/2024,11508350823,367,CHARTERED INSTITUTE OF
OXFORDSHIRE CC,CUSTOMER AND CULTURE,HARD FM,PREMISES REPAIRS,16/04/2024,11508350269,33.75,WICKES OXFORD
OXFORDSHIRE CC,CUSTOMER AND CULTURE,MUSEUM CAFE,MATERIALS,16/04/2024,11508350927,150,SP PARTY PACKS
OXFORDSHIRE CC,ADULTS,THAME E&A HOME,OTHER MISC INC,16/04/2024,11508351011,33.5,B AND Q
OXFORDSHIRE CC,CHILDREN'S & EDUCATION,"	LEAVING CARE NORTH",CATERING PROVISIONS,16/04/2024,11508352255,15.25,WAITROSE 682
OXFORDSHIRE CC,CHILDREN'S & EDUCATION,"	OCCG GRANT",FURNITURE,16/04/2024,11508350861,63.49,AMAZON  203-8408625-14
OXFORDSHIRE CC,ADULTS,THAME E&A HOME,DOMESTIC SUPPLIES,16/04/2024,11508351007,28,DUNELM SOFT FURNISHIN
OXFORDSHIRE CC,CHILDREN'S & EDUCATION,THAME E&A HOME,CATERING PROVISIONS,16/04/2024,11508349455,186.8,TESCO STORES 2038
OXFORDSHIRE CC,ADULTS,CSS WITNEY,CATERING PROVISIONS,16/04/2024,11508351717,25.3,CO-OP GROUP 070582
OXFORDSHIRE CC,CHILDREN'S & EDUCATION,FAMILY SOLUTIONS PLUS NON-STAFF - NORTH,HIRE OF ACCOMMODATION AND FACILITIES,16/04/2024,11508351779,128.86,BKG HOTEL AT BOOKING.C
OXFORDSHIRE CC,CHILDREN'S & EDUCATION,FSP NON-STAFFING - CENTRAL,"SUPPLIES, STATIONERY AND MATERIALS",16/04/2024,11508351821,22.97,AMAZON  204-2453404-52
OXFORDSHIRE CC,CHILDREN'S & EDUCATION,"	LEAVING CARE NORTH",CATERING,16/04/2024,11508351635,9.5,COSTA CARTERTON
OXFORDSHIRE CC,CHILDREN'S & EDUCATION,FAMILY HELP NORTH,MATERIALS,16/04/2024,11508351783,175.95,WWW.ARGOS.CO.UK
OXFORDSHIRE CC,PUBLIC HEALTH,WITNEY,CATERING,16/04/2024,11508348707,7.4,COSTA COFFEE 43011689
OXFORDSHIRE CC,RESOURCES,CORPORATE FINANCE,PROFESSIONAL SUBSCRIPTIONS,16/04/2024,11508351315,-780,WWW.CIPFA.ORG.UK/PFMCO
OXFORDSHIRE CC,RESOURCES,CORPORATE FINANCE,PROFESSIONAL SUBSCRIPTIONS,16/04/2024,11508351315,-624,WWW.CIPFA.ORG.UK/PFMCO
OXFORDSHIRE CC,RESOURCES,CORPORATE FINANCE,PROFESSIONAL SUBSCRIPTIONS,16/04/2024,11508351315,"-1,835.00",WWW.CIPFA.ORG.UK/PFMCO
OXFORDSHIRE CC,CUSTOMER AND CULTURE,HARD FM,PREMISES REPAIRS,16/04/2024,11508348863,10.99,WWW.SCREWFIX.COM
OXFORDSHIRE CC,"COMMUNICATIONS, STRATEGY AND INSIGHT",STRATEGIC LEADERSHIP TEAM,PAYMENTS TO TRANSPORT OPERATORS,16/04/2024,11508351853,114,WWW.GWR.COM
OXFORDSHIRE CC,CHILDREN'S & EDUCATION,NTS UASC AGENCY,"SUPPLIES, STATIONERY AND MATERIALS",16/04/2024,11508351655,9.98,AMAZON  204-6710275-27
OXFORDSHIRE CC,CHILDREN'S & EDUCATION,FAMILY SOLUTIONS PLUS NON-STAFF - NORTH,CATERING PROVISIONS,16/04/2024,11508351715,3.6,TESCO STORES 3143
OXFORDSHIRE CC,CHILDREN'S & EDUCATION,FAMILY SOLUTIONS PLUS NON-STAFF - NORTH,PAYMENTS TO TRANSPORT OPERATORS,16/04/2024,11508351773,176.38,TRAINLINE
OXFORDSHIRE CC,ADULTS,CSS - ABINGDON,CATERING PROVISIONS,16/04/2024,11508352109,34.89,TESCO STORES 2008
OXFORDSHIRE CC,ADULTS,MALTFIELD HOUSE,CATERING PROVISIONS,16/04/2024,11508352145,29.71,SAINSBURYS S/MKTS
OXFORDSHIRE CC,CUSTOMER AND CULTURE,SCHOOLS FM CATERING AREA 4,MATERIALS,16/04/2024,11508350233,41.98,AMZNMKTPLACE HP1A73KU4
OXFORDSHIRE CC,CHILDREN'S & EDUCATION,"	SEN/ICT EQUIPMENT",PURCHASE OF IT EQUIPMENT,16/04/2024,11508352291,29.98,AMAZON  203-9548655-88
OXFORDSHIRE CC,ENVIRONMENT AND PLACE,NAT TRAILS GENERAL,"SUPPLIES, STATIONERY AND MATERIALS",16/04/2024,11508352321,40.79,AMAZON  203-1605937-08
OXFORDSHIRE CC,CHILDREN'S & EDUCATION,FAMILY SOLUTIONS PLUS NON-STAFF - NORTH,PAYMENTS TO TRANSPORT OPERATORS,16/04/2024,11508352071,-44.5,WWW.GWR.COM
OXFORDSHIRE CC,CHILDREN'S & EDUCATION,FAMILY SOLUTIONS PLUS NON-STAFF - NORTH,PAYMENTS TO TRANSPORT OPERATORS,16/04/2024,11508352075,-4.3,WWW.GWR.COM
OXFORDSHIRE CC,ADULTS,FIELDWORK UASC,PAYMENTS TO TRANSPORT OPERATORS,16/04/2024,11508350189,58.99,TRAINLINE
OXFORDSHIRE CC,RESOURCES,CORPORATE FINANCE,EDUCATIONAL AND VOCATIONAL TRAINING ,16/04/2024,11508350217,"1,381.25",FIRST INTUITION (READI
OXFORDSHIRE CC,ENVIRONMENT AND PLACE,WASTE MNGMNT GEN,PRINTING,16/04/2024,11508350683,235,EMAP PUBLISHING LTD
OXFORDSHIRE CC,CHILDREN'S & EDUCATION,FAMILY HELP NORTH,CATERING PROVISIONS,16/04/2024,11508352043,100,TESCO STORES 2064
OXFORDSHIRE CC,CUSTOMER AND CULTURE,THAME LIBRARY,"NEWSPAPERS, PERIODICALS AND PUBLICATIONS",16/04/2024,11508351397,5.8,SAINSBURYS S/MKTS
OXFORDSHIRE CC,CUSTOMER AND CULTURE,HARD FM,PREMISES REPAIRS,16/04/2024,11508348879,24.67,B AND Q
OXFORDSHIRE CC,CHILDREN'S & EDUCATION,FAMILY HELP NORTH,CATERING PROVISIONS,16/04/2024,11508352049,100,TESCO STORES 2064
OXFORDSHIRE CC,CHILDREN'S & EDUCATION,CHILDREN IN CARE NON-STAFFING - SOUTH,PAYMENT TO GOVERNMENT DEPARTMENTS,16/04/2024,11508352029,38.25,OXFORDSHIRE CC WEB1
OXFORDSHIRE CC,ADULTS,CSS BICESTER,CATERING PROVISIONS,16/04/2024,11508349045,116.84,TESCO STORES 2162
OXFORDSHIRE CC,ADULTS,CSS - OXFORD,HOSPITALITY EXPENSES,16/04/2024,11508349499,160,HOOK NORTON BREWERY
OXFORDSHIRE CC,CHILDREN'S & EDUCATION,FAMILY HELP NORTH,CATERING PROVISIONS,16/04/2024,11508352055,100,TESCO STORES 2064
OXFORDSHIRE CC,CHILDREN'S & EDUCATION,FAMILY HELP NORTH,ENTERTAINMENT EXPENSES,16/04/2024,11508352039,500,THE LIGHT CINEMAS BANB
OXFORDSHIRE CC,CHILDREN'S & EDUCATION,"	RESIDENTIAL STRATEGY",PAYMENT TO GOVERNMENT DEPARTMENTS,16/04/2024,11508350689,"4,112.00",OFSTED INTERNET
OXFORDSHIRE CC,CHILDREN'S & EDUCATION,"	LOOKED AFTER CITY 2",PAYMENTS TO TRANSPORT OPERATORS,16/04/2024,11508350521,-3.25,TRAINLINE
OXFORDSHIRE CC,ADULTS,THAME E&A HOME,OTHER MISC INC,16/04/2024,11508351013,54.82,HOME BARGAINS
OXFORDSHIRE CC,CUSTOMER AND CULTURE,HARD FM,GROUNDS MAINTENANCE CONTRACTS,16/04/2024,11508350279,36.8,B AND Q
OXFORDSHIRE CC,CUSTOMER AND CULTURE,OPERATIONS,STATIONERY,16/04/2024,11508350677,21.98,AMAZON  203-9320399-68
OXFORDSHIRE CC,CHILDREN'S & EDUCATION,DIDCOT MOVE-ON HOME,CATERING PROVISIONS,16/04/2024,11508350063,1.75,SAINSBURYS S/MKTS
OXFORDSHIRE CC,CUSTOMER AND CULTURE,SCHOOLS FM CATERING AREA 2,CATERING PROVISIONS,16/04/2024,11508350505,21.68,TESCO STORES 2994
OXFORDSHIRE CC,CUSTOMER AND CULTURE,SCHOOLS FM CATERING AREA 4,MATERIALS,16/04/2024,11508350235,102.85,AMZNMKTPLACE HP4OP0US4
OXFORDSHIRE CC,"COMMUNICATIONS, STRATEGY AND INSIGHT",CHAIRMANS ALLOWANCE,CATERING PROVISIONS,16/04/2024,11508350259,12.5,SAINSBURYS S/MKTS
OXFORDSHIRE CC,CHILDREN'S & EDUCATION,PAUSE PROGRAMME,CATERING,16/04/2024,11508350359,5.2,COSTA COFFEE 43010951
OXFORDSHIRE CC,CHILDREN'S & EDUCATION,PAUSE PROGRAMME,CATERING,16/04/2024,11508350359,3,COSTA COFFEE 43010951
OXFORDSHIRE CC,CHILDREN'S & EDUCATION,PAUSE PROGRAMME,CATERING,16/04/2024,11508350355,5.1,CHERWELL VALLEY COSTA
OXFORDSHIRE CC,CHILDREN'S & EDUCATION,THAME E&A HOME,CATERING PROVISIONS,16/04/2024,11508350393,27.99,ASDA SUPERSTORE
OXFORDSHIRE CC,CHILDREN'S & EDUCATION,FAMILY HELP NORTH,CATERING PROVISIONS,16/04/2024,11508352067,100,TESCO STORES 2064
OXFORDSHIRE CC,RESOURCES,FRONTIER CAV EU PROJECT,CATERING,16/04/2024,11508352405,21.75,HILTON INTERNATIONAL
OXFORDSHIRE CC,CHILDREN'S & EDUCATION,FAMILY HELP NORTH,CATERING PROVISIONS,16/04/2024,11508352059,100,TESCO STORES 2064
OXFORDSHIRE CC,ADULTS,CSS - BANBURY,CATERING PROVISIONS,16/04/2024,11508352099,79.78,SAINSBURYS.CO.UK
OXFORDSHIRE CC,RESOURCES,FRONTIER CAV EU PROJECT,PAYMENTS TO TRANSPORT OPERATORS,16/04/2024,11508352401,1.59,IRISH RAIL BOOKING OFF
OXFORDSHIRE CC,RESOURCES,FRONTIER CAV EU PROJECT,CATERING,15/04/2024,11499526631,35.86,ZETTLE_ ART CAFE
OXFORDSHIRE CC,ENVIRONMENT AND PLACE,NATURAL ENVIRONMENT,PROFESSIONAL SUBSCRIPTIONS,15/04/2024,11499526497,-91,IPROW.CO.UK
OXFORDSHIRE CC,CHILDREN'S & EDUCATION,PAUSE PROGRAMME,CATERING,15/04/2024,11499526645,8.4,GOURMET COFFEE BAR & K
OXFORDSHIRE CC,CUSTOMER AND CULTURE,DIDOCT LIBRARY,EQUIPMENT,15/04/2024,11499525247,59.99,AMAZON  204-4159102-61
OXFORDSHIRE CC,ADULTS,CSS - OXFORD,CATERING PROVISIONS,15/04/2024,11499524835,5.98,ALDI STORES 775-142
OXFORDSHIRE CC,RESOURCES,FRONTIER CAV EU PROJECT,CATERING,15/04/2024,11499526637,29.81,THE ADDRESS CONNOLLY
OXFORDSHIRE CC,CUSTOMER AND CULTURE,BICESTER LIBRARY,EQUIPMENT,15/04/2024,11499525231,56.2,BICESTER SHOE REPAIRS
OXFORDSHIRE CC,CHILDREN'S & EDUCATION,WITNEY,CATERING PROVISIONS,15/04/2024,11499525267,46.45,LIDL GB WITNEY
OXFORDSHIRE CC,CHILDREN'S & EDUCATION,THAME E&A HOME,DAY ACTIVITIES,15/04/2024,11499525317,27.96,VUE ENTERTAINMENT LTD
OXFORDSHIRE CC,CHILDREN'S & EDUCATION,DIDCOT MOVE-ON HOME,CATERING PROVISIONS,15/04/2024,11499525347,3.07,ALDI 99 775
OXFORDSHIRE CC,ENVIRONMENT AND PLACE,FLEET OPERATIONS,CATERING PROVISIONS,15/04/2024,11499525125,360,AMAZON  204-9230728-20
OXFORDSHIRE CC,ADULTS,CSS - OXFORD,CATERING PROVISIONS,15/04/2024,11499524841,82.87,ALDI STORES 775-142
OXFORDSHIRE CC,CHILDREN'S & EDUCATION,THAME E&A HOME,DAY ACTIVITIES,15/04/2024,11499525323,9.7,CO-OPERATIVE FOOD
OXFORDSHIRE CC,CHILDREN'S & EDUCATION,"	LOOKED AFTER CITY 2",OTHER TRANSPORT ARRANGEMENTS,15/04/2024,11499525377,2,OXFORD BUS COMPANY
OXFORDSHIRE CC,CHILDREN'S & EDUCATION,EYNSHAM,OTHER TRANSPORT ARRANGEMENTS,15/04/2024,11499526463,22,STGCOACH/CTYLINK
OXFORDSHIRE CC,CHILDREN'S & EDUCATION,EYNSHAM,CATERING,15/04/2024,11499526477,12.65,MCDONALDS
OXFORDSHIRE CC,ENVIRONMENT AND PLACE,HWAYS NETWORK MGT,PURCHASE OF IT EQUIPMENT,15/04/2024,11499526333,-83.53,AMAZON  202-3169578-82
OXFORDSHIRE CC,CHILDREN'S & EDUCATION,EYNSHAM,EQUIPMENT,15/04/2024,11499526467,38.91,HOME BARGAINS
OXFORDSHIRE CC,CHILDREN'S & EDUCATION,NTS UASC AGENCY,CATERING PROVISIONS,15/04/2024,11499526481,18.49,ALDI STORES 775-142
OXFORDSHIRE CC,CHILDREN'S & EDUCATION,NTS UASC AGENCY,DOMESTIC AND CLEANING EQUIPMENT,15/04/2024,11499526327,68.29,AMAZON  204-6829207-05
OXFORDSHIRE CC,CHILDREN'S & EDUCATION,WITNEY,CATERING PROVISIONS,15/04/2024,11499526335,23.48,SAINSBURYS S/MKTS
OXFORDSHIRE CC,PUBLIC HEALTH,CHILDREN IN CARE NON-STAFFING - NORTH,OTHER TRANSPORT ARRANGEMENTS,15/04/2024,11499524983,3.4,CHELTENHAM BOROUGH COU
OXFORDSHIRE CC,CHILDREN'S & EDUCATION,THRIVING FAMILY NORTH,CATERING PROVISIONS,15/04/2024,11499524851,25.84,AMAZON  204-7123417-49
OXFORDSHIRE CC,ADULTS,ASC INCOME TEAM,PAYMENT TO GOVERNMENT DEPARTMENTS,15/04/2024,11499524883,11,OXFORDSHIRE CC WEB1
OXFORDSHIRE CC,CHILDREN'S & EDUCATION,THAME E&A HOME,DAY ACTIVITIES,15/04/2024,11499525319,19.05,SAINSBURYS SUPERMA
OXFORDSHIRE CC,ADULTS,COUNTY PRINT FINSHRS,PURCHASE OF IT EQUIPMENT,15/04/2024,11499525369,"1,122.00",THRIIVER LIMITED
OXFORDSHIRE CC,CHILDREN'S & EDUCATION,EYNSHAM,HARDWARE AND CROCKERY,15/04/2024,11499526471,5.5,WICKES OXFORD
OXFORDSHIRE CC,CHILDREN'S & EDUCATION,DIDCOT MOVE-ON HOME,CATERING PROVISIONS,15/04/2024,11499526483,21.6,SAINSBURYS S/MKTS
OXFORDSHIRE CC,CHILDREN'S & EDUCATION,UASC 16&17,PAYMENTS TO TRANSPORT OPERATORS,15/04/2024,11499526329,36.65,SPLIT MY FARE
OXFORDSHIRE CC,CHILDREN'S & EDUCATION,WITNEY,VEHICLE FUEL,15/04/2024,11499526339,1.1,TESCO PFS 3418
OXFORDSHIRE CC,CHILDREN'S & EDUCATION,EYNSHAM,GENERAL MAINTENANCE,15/04/2024,11499526475,17.96,HOME BARGAINS
OXFORDSHIRE CC,CHILDREN'S & EDUCATION,"	LEAVING CARE NORTH",PAYMENTS TO TRANSPORT OPERATORS,15/04/2024,11499526311,70.7,BRIGHTON & HOVE BUSES
OXFORDSHIRE CC,ENVIRONMENT AND PLACE,HWAYS NETWORK MGT,IT SOFTWARE,15/04/2024,11499526331,-62.64,AMAZON  202-3169578-82
OXFORDSHIRE CC,CHILDREN'S & EDUCATION,WITNEY,ENTERTAINMENT EXPENSES,15/04/2024,11499526349,100,PAINTBALL HEROES
OXFORDSHIRE CC,RESOURCES,ICT OPERATIONS & MAI,IT SOFTWARE,15/04/2024,11499526517,28,FIGMA MONTHLY RENEWAL
OXFORDSHIRE CC,CHILDREN'S & EDUCATION,FAMILY SOLUTIONS PLUS NON-STAFF - NORTH,PAYMENTS TO TRANSPORT OPERATORS,15/04/2024,11499526543,49.1,WWW.GWR.COM
OXFORDSHIRE CC,PUBLIC HEALTH,CHILDREN IN CARE NON-STAFFING - NORTH,OTHER TRANSPORT ARRANGEMENTS,15/04/2024,11499524981,5,CHELTENHAM BOROUGH COU
OXFORDSHIRE CC,RESOURCES,ICT OPERATIONS & MAI,PURCHASE OF IT EQUIPMENT,15/04/2024,11499526511,"7,335.00",SAMSUNG UK
OXFORDSHIRE CC,RESOURCES,ICT OPERATIONS & MAI,PURCHASE OF IT EQUIPMENT,15/04/2024,11499526523,294.83,AMAZON  203-1842891-90
OXFORDSHIRE CC,CHILDREN'S & EDUCATION,EYNSHAM,HARDWARE AND CROCKERY,15/04/2024,11499526487,8,HOMEBASE
OXFORDSHIRE CC,CHILDREN'S & EDUCATION,DIDCOT MOVE-ON HOME,CATERING PROVISIONS,15/04/2024,11499525155,11.53,SAINSBURYS S/MKTS
OXFORDSHIRE CC,CHILDREN'S & EDUCATION,DIDCOT MOVE-ON HOME,CATERING PROVISIONS,15/04/2024,11499525159,35.2,SAINSBURYS S/MKTS
OXFORDSHIRE CC,CHILDREN'S & EDUCATION,DIDCOT MOVE-ON HOME,CATERING PROVISIONS,15/04/2024,11499525161,2.2,CO-OP FOOD
OXFORDSHIRE CC,CHILDREN'S & EDUCATION,"	LOOKED AFTER CITY 2",VEHICLE FUEL,15/04/2024,11499525065,12.28,WELCOME BREAK
OXFORDSHIRE CC,CHILDREN'S & EDUCATION,40 THE MOORS,CATERING PROVISIONS,15/04/2024,11499526561,2,SAINSBURYS S/MKTS
OXFORDSHIRE CC,RESOURCES,ICT OPERATIONS & MAI,IT SERVICES,15/04/2024,11499526577,20.71,"GITHUB, INC."
OXFORDSHIRE CC,CHILDREN'S & EDUCATION,"	OCCG GRANT",MATERIALS,15/04/2024,11499526615,7,THE RANGE
OXFORDSHIRE CC,CUSTOMER AND CULTURE,BICESTER LIBRARY,STATIONERY,15/04/2024,11499525229,1.75,BICESTER LOCAL
OXFORDSHIRE CC,CHILDREN'S & EDUCATION,"	MALTFIELD HOUSE",DRUGS AND MEDICAL SUPPLIES,15/04/2024,11499525145,21.76,SUPERDRUG STORES PLC
OXFORDSHIRE CC,CHILDREN'S & EDUCATION,DIDCOT MOVE-ON HOME,CATERING,15/04/2024,11499525165,51.4,DELIGHT 2
OXFORDSHIRE CC,CORPORATE CORE,"	COMMUNICATIONS","PUBLICITY, PROMOTIONS AND ADVERTISEMENT",15/04/2024,11499526557,500,FACEBK  P6R2T3G9Z2
OXFORDSHIRE CC,RESOURCES,ICT OPERATIONS & MAI,IT SERVICES,15/04/2024,11499526583,477.34,MIRO.COM
OXFORDSHIRE CC,CHILDREN'S & EDUCATION,HOUSE PROJECT,CATERING PROVISIONS,15/04/2024,11499526559,50.8,SAINSBURYS S/MKTS
OXFORDSHIRE CC,ADULTS,THAME E&A HOME,FURNITURE,15/04/2024,11499525709,166,DUNELM SOFT FURNISHIN
OXFORDSHIRE CC,ADULTS,CSS - ABINGDON,EQUIPMENT,15/04/2024,11499524455,9,B & Q 1156
OXFORDSHIRE CC,ADULTS,CSS - OXFORD,CATERING PROVISIONS,15/04/2024,11499524509,27.5,AMAZON  204-8542736-06
OXFORDSHIRE CC,ADULTS,CSS WANTAGE,ENTERTAINMENT EXPENSES,15/04/2024,11499525849,14.85,WWW.BETTER.ORG.UK
OXFORDSHIRE CC,CHILDREN'S & EDUCATION,EYNSHAM,HARDWARE AND CROCKERY,15/04/2024,11499524683,138.06,B&Q MARKETPLACE
OXFORDSHIRE CC,CHILDREN'S & EDUCATION,EET SERVICE,EDUCATIONAL AND VOCATIONAL TRAINING ,15/04/2024,11499525615,48,WWW.OPLEXCAREERS.COM
OXFORDSHIRE CC,ADULTS,THAME E&A HOME,FURNITURE,15/04/2024,11499525711,94,DUNELM SOFT FURNISHIN
OXFORDSHIRE CC,PUBLIC HEALTH,WITNEY,CATERING PROVISIONS,15/04/2024,11499524447,72.98,AMAZON  205-9355195-11
OXFORDSHIRE CC,ADULTS,CSS - ABINGDON,MATERIALS,15/04/2024,11499524457,160.5,B & Q 1156
OXFORDSHIRE CC,ADULTS,CSS - OXFORD,DAY ACTIVITIES,15/04/2024,11499524511,80,ZETTLE_ DELTAVIOLIN
OXFORDSHIRE CC,CUSTOMER AND CULTURE,"MARKETING, COMMUNICATIONS & ENGAGEMENT",SUBSCRIPTIONS,15/04/2024,11499526049,768.35,INTUIT LTD MAILCHIMP
OXFORDSHIRE CC,ADULTS,ADULTS AT RISK,HIRED AND CONTRACTED SERVICES,15/04/2024,11499526117,182.9,LCS CONTAINER SERVICES
OXFORDSHIRE CC,ENVIRONMENT AND PLACE,TVERC,PAYMENT TO GOVERNMENT DEPARTMENTS,15/04/2024,11499524549,3,LAND REGISTRY ECOM CCC
OXFORDSHIRE CC,CHILDREN'S & EDUCATION,FAMILY SOLUTIONS PLUS NON-STAFF � SOUTH,DAY ACTIVITIES,15/04/2024,11499525653,87,PARTHIAN READING
OXFORDSHIRE CC,ADULTS,THAME E&A HOME,VEHICLE FUEL,15/04/2024,11499525713,68.81,STADHAMPTON SF CONNECT
OXFORDSHIRE CC,ENVIRONMENT AND PLACE,EP BUSINESS SUPPORT UNIT,HIRE OF ACCOMMODATION AND FACILITIES,15/04/2024,11499526389,234,STRAND PALACE HOTEL  F
OXFORDSHIRE CC,CHILDREN'S & EDUCATION,DIDCOT MOVE-ON HOME,CATERING PROVISIONS,15/04/2024,11499526405,8.85,SAINSBURYS SMKT
OXFORDSHIRE CC,CHILDREN'S & EDUCATION,FSP NON-STAFFING - CENTRAL,"BOOKS, DVDS AND CDS",15/04/2024,11499526451,25.15,AMAZON  204-1243488-20
OXFORDSHIRE CC,ADULTS,CSS WALLINGFORD,CATERING PROVISIONS,15/04/2024,11499524391,6.2,WAITROSE 675
OXFORDSHIRE CC,ENVIRONMENT AND PLACE,TVERC,PAYMENT TO GOVERNMENT DEPARTMENTS,15/04/2024,11499524555,3,LAND REGISTRY ECOM CCC
OXFORDSHIRE CC,ADULTS,CSS - BANBURY,MATERIALS,15/04/2024,11499526291,95.48,AMAZON.CO.UK HP5T69844
OXFORDSHIRE CC,CUSTOMER AND CULTURE,HARD FM,PREMISES REPAIRS,15/04/2024,11499526279,73.5,WICKES OXFORD
OXFORDSHIRE CC,PUBLIC HEALTH,WITNEY,CATERING PROVISIONS,15/04/2024,11499524445,8.02,AMAZON  205-8244746-97
OXFORDSHIRE CC,CHILDREN'S & EDUCATION,"	MALTFIELD HOUSE",ADMIN FURNITURE,15/04/2024,11499526237,104.79,AMAZON  206-0224957-29
OXFORDSHIRE CC,RESOURCES,FRONTIER CAV EU PROJECT,OTHER TRANSPORT ARRANGEMENTS,15/04/2024,11499526635,12.33,DUBLIN AIRPORT - CSA
OXFORDSHIRE CC,CUSTOMER AND CULTURE,DIDOCT LIBRARY,CATERING EQUIPMENT,15/04/2024,11499525243,34.7,AMAZON  204-0305963-81
OXFORDSHIRE CC,ADULTS,CSS WALLINGFORD,MATERIALS,15/04/2024,11499526555,4.65,KP STATIONERS
OXFORDSHIRE CC,CHILDREN'S & EDUCATION,"	MALTFIELD HOUSE",CATERING PROVISIONS,15/04/2024,11499526239,4.99,AMAZON  206-7629436-89
OXFORDSHIRE CC,CORPORATE CORE,,STATIONERY,15/04/2024,11499526257,11.45,LYRECO UK LTD
OXFORDSHIRE CC,CHILDREN'S & EDUCATION,FAMILY SOLUTIONS PLUS NON-STAFF - NORTH,PAYMENTS TO TRANSPORT OPERATORS,15/04/2024,11499526381,26.99,TRAINLINE
OXFORDSHIRE CC,CHILDREN'S & EDUCATION,FAMILY SOLUTIONS PLUS NON-STAFF - NORTH,CATERING PROVISIONS,15/04/2024,11499526369,27.5,AMAZON  203-8672448-74
OXFORDSHIRE CC,CHILDREN'S & EDUCATION,EYNSHAM,CATERING,15/04/2024,11499524431,160.41,TESCO STORES 2008
OXFORDSHIRE CC,ENVIRONMENT AND PLACE,TVERC,PAYMENT TO GOVERNMENT DEPARTMENTS,15/04/2024,11499524553,3,LAND REGISTRY ECOM CCC
OXFORDSHIRE CC,ENVIRONMENT AND PLACE,TVERC,PAYMENT TO GOVERNMENT DEPARTMENTS,15/04/2024,11499524587,3,LAND REGISTRY ECOM CCC
OXFORDSHIRE CC,CHILDREN'S & EDUCATION,"	RIVERSIDE CENTRE",CATERING PROVISIONS,15/04/2024,11499526187,5.95,TESCO STORES 4377
OXFORDSHIRE CC,CHILDREN'S & EDUCATION,EYNSHAM,CATERING,15/04/2024,11499524433,15,MAYFIELDEGGS
OXFORDSHIRE CC,CHILDREN'S & EDUCATION,"	DISABILITIES TEAM-C",CATERING PROVISIONS,15/04/2024,11499524781,50,TESCO GIFT CARD
OXFORDSHIRE CC,ADULTS,ADULTS AT RISK,HIRE OF ACCOMMODATION AND FACILITIES,15/04/2024,11499526129,723,ATHENA OXFORD LTD
OXFORDSHIRE CC,ENVIRONMENT AND PLACE,TVERC,PAYMENT TO GOVERNMENT DEPARTMENTS,15/04/2024,11499524589,3,LAND REGISTRY ECOM CCC
OXFORDSHIRE CC,ENVIRONMENT AND PLACE,TVERC,PAYMENT TO GOVERNMENT DEPARTMENTS,15/04/2024,11499524607,3,LAND REGISTRY ECOM CCC
OXFORDSHIRE CC,CORPORATE CORE,,STATIONERY,15/04/2024,11499526247,19.01,LYRECO UK LTD
OXFORDSHIRE CC,CORPORATE CORE,,STATIONERY,15/04/2024,11499526265,3.65,LYRECO UK LTD
OXFORDSHIRE CC,CORPORATE CORE,,STATIONERY,15/04/2024,11499526251,26.46,LYRECO UK LTD
OXFORDSHIRE CC,ENVIRONMENT AND PLACE,TVERC,PAYMENT TO GOVERNMENT DEPARTMENTS,15/04/2024,11499524561,3,LAND REGISTRY ECOM CCC
OXFORDSHIRE CC,ENVIRONMENT AND PLACE,TVERC,PAYMENT TO GOVERNMENT DEPARTMENTS,15/04/2024,11499524575,3,LAND REGISTRY ECOM CCC
OXFORDSHIRE CC,CHILDREN'S & EDUCATION,CHILDREN IN CARE COUNCIL,CATERING PROVISIONS,15/04/2024,11499524773,364.9,SAINSBURY'S S/MKT
OXFORDSHIRE CC,ADULTS,ADULTS AT RISK,HIRE OF ACCOMMODATION AND FACILITIES,15/04/2024,11499526121,"1,000.00",ATHENA OXFORD LTD
OXFORDSHIRE CC,CHILDREN'S & EDUCATION,FSP NON-STAFFING - CENTRAL,HIRE OF ACCOMMODATION AND FACILITIES,15/04/2024,11499526131,205.99,TRAVELODGE
OXFORDSHIRE CC,RESOURCES,CENTRAL BUYING TEAM,"SUPPLIES, STATIONERY AND MATERIALS",15/04/2024,11499526169,234,WHITEPAPER.CO.UK
OXFORDSHIRE CC,ENVIRONMENT AND PLACE,TVERC,PAYMENT TO GOVERNMENT DEPARTMENTS,15/04/2024,11499524593,3,LAND REGISTRY ECOM CCC
OXFORDSHIRE CC,CHILDREN'S & EDUCATION,"	LOOKED AFTER CITY 2",CATERING PROVISIONS,15/04/2024,11499525391,1.4,M&S SIMPLY FOOD - SSP
OXFORDSHIRE CC,CUSTOMER AND CULTURE,BUSINESS INTELLECTUAL PROPERTY CENTRE,PAYMENTS TO TRANSPORT OPERATORS,15/04/2024,11499525473,11.41,TRAINLINE
OXFORDSHIRE CC,CUSTOMER AND CULTURE,OPERATIONS,MATERIALS,15/04/2024,11499525519,9.77,AMAZON  203-8357217-18
OXFORDSHIRE CC,ENVIRONMENT AND PLACE,TVERC,PAYMENT TO GOVERNMENT DEPARTMENTS,15/04/2024,11499524563,3,LAND REGISTRY ECOM CCC
OXFORDSHIRE CC,ENVIRONMENT AND PLACE,TVERC,PAYMENT TO GOVERNMENT DEPARTMENTS,15/04/2024,11499524579,3,LAND REGISTRY ECOM CCC
OXFORDSHIRE CC,CHILDREN'S & EDUCATION,CHILDREN IN CARE COUNCIL,CATERING PROVISIONS,15/04/2024,11499524777,5,SAINSBURYS S/MKTS
OXFORDSHIRE CC,CHILDREN'S & EDUCATION,THAME E&A HOME,CATERING PROVISIONS,15/04/2024,11499524799,228.16,TESCO STORES 2038
OXFORDSHIRE CC,ADULTS,CSS - OXFORD,CATERING PROVISIONS,15/04/2024,11499524611,6.87,ALDI STORES 775-142
OXFORDSHIRE CC,ENVIRONMENT AND PLACE,TVERC,PAYMENT TO GOVERNMENT DEPARTMENTS,15/04/2024,11499524585,3,LAND REGISTRY ECOM CCC
OXFORDSHIRE CC,ENVIRONMENT AND PLACE,TVERC,PAYMENT TO GOVERNMENT DEPARTMENTS,15/04/2024,11499524597,3,LAND REGISTRY ECOM CCC
OXFORDSHIRE CC,CHILDREN'S & EDUCATION,"	LOOKED AFTER CITY 2",OTHER TRANSPORT ARRANGEMENTS,15/04/2024,11499525395,2,OXFORD BUS COMPANY
OXFORDSHIRE CC,CHILDREN'S & EDUCATION,SI EQUIPMENT,DISABILITY AIDS AND EQUIPMENT,15/04/2024,11499525503,2.4,UPS LTD
OXFORDSHIRE CC,ENVIRONMENT AND PLACE,TVERC,PAYMENT TO GOVERNMENT DEPARTMENTS,15/04/2024,11499524527,3,LAND REGISTRY ECOM CCC
OXFORDSHIRE CC,ENVIRONMENT AND PLACE,TVERC,PAYMENT TO GOVERNMENT DEPARTMENTS,15/04/2024,11499524535,3,LAND REGISTRY ECOM CCC
OXFORDSHIRE CC,CHILDREN'S & EDUCATION,CHILDREN IN CARE COUNCIL,CATERING PROVISIONS,15/04/2024,11499524779,3.1,TESCO STORES 4780
OXFORDSHIRE CC,CHILDREN'S & EDUCATION,THAME E&A HOME,CATERING,15/04/2024,11499524803,34.55,MCDONALDS 917
OXFORDSHIRE CC,ADULTS,ADULTS AT RISK,HIRE OF ACCOMMODATION AND FACILITIES,15/04/2024,11499526127,"1,000.00",ATHENA OXFORD LTD
OXFORDSHIRE CC,CHILDREN'S & EDUCATION,EYNSHAM,HARDWARE AND CROCKERY,15/04/2024,11499526157,38.3,B&Q LTD
OXFORDSHIRE CC,ADULTS,CSS - OXFORD,CATERING PROVISIONS,15/04/2024,11499524617,41.56,ALDI STORES 775-142
OXFORDSHIRE CC,ENVIRONMENT AND PLACE,TVERC,PAYMENT TO GOVERNMENT DEPARTMENTS,15/04/2024,11499524601,3,LAND REGISTRY ECOM CCC
OXFORDSHIRE CC,CHILDREN'S & EDUCATION,THAME E&A HOME,CATERING PROVISIONS,15/04/2024,11499524625,10.8,ASDA STORES
OXFORDSHIRE CC,RESOURCES,ICT OPERATIONS & MAI,PURCHASE OF IT EQUIPMENT,15/04/2024,11499526513,"8,570.00",AMAZON  203-1106312-19
OXFORDSHIRE CC,CHILDREN'S & EDUCATION,THAME E&A HOME,CATERING PROVISIONS,15/04/2024,11499524805,-1.8,TESCO STORES 2038
OXFORDSHIRE CC,CHILDREN'S & EDUCATION,40 THE MOORS,CATERING PROVISIONS,15/04/2024,11499526529,165.95,SAINSBURYS.CO.UK
OXFORDSHIRE CC,RESOURCES,ICT OPERATIONS & MAI,MATERIALS,15/04/2024,11499526515,24.93,AMAZON  203-2146217-89
OXFORDSHIRE CC,CHILDREN'S & EDUCATION,FAMILY SOLUTIONS PLUS NON-STAFF - NORTH,HIRE OF ACCOMMODATION AND FACILITIES,15/04/2024,11499526541,643,PREMIER INN
OXFORDSHIRE CC,ENVIRONMENT AND PLACE,TVERC,PAYMENT TO GOVERNMENT DEPARTMENTS,15/04/2024,11499524569,3,LAND REGISTRY ECOM CCC
OXFORDSHIRE CC,ENVIRONMENT AND PLACE,TVERC,PAYMENT TO GOVERNMENT DEPARTMENTS,15/04/2024,11499524573,3,LAND REGISTRY ECOM CCC
OXFORDSHIRE CC,CHILDREN'S & EDUCATION,EYNSHAM,HARDWARE AND CROCKERY,15/04/2024,11499526161,162,B&Q LTD
OXFORDSHIRE CC,CHILDREN'S & EDUCATION,"	LEAVING CARE CITY 1",OTHER EXPENSES,15/04/2024,11499524653,132,DUNELM SOFTFURNISHINGS
OXFORDSHIRE CC,CHILDREN'S & EDUCATION,"	LEAVING CARE CITY 1",OTHER EXPENSES,15/04/2024,11499524679,20.94,AMAZON  202-3196789-26
OXFORDSHIRE CC,CHILDREN'S & EDUCATION,"	LEAVING CARE CITY 2",MATERIALS,15/04/2024,11499524737,340.3,THAMES WATER
OXFORDSHIRE CC,ENVIRONMENT AND PLACE,OCCG GRANT,MATERIALS,15/04/2024,11499525451,37,TIMPSON LTD
OXFORDSHIRE CC,CUSTOMER AND CULTURE,OPERATIONS,MATERIALS,15/04/2024,11499525513,17.56,AMAZON  203-0530832-39
OXFORDSHIRE CC,CHILDREN'S & EDUCATION,"	LOOKED AFTER CITY 2",PAYMENTS TO TRANSPORT OPERATORS,15/04/2024,11499525387,4.28,TRAINLINE
OXFORDSHIRE CC,ENVIRONMENT AND PLACE,OCCG GRANT,CATERING PROVISIONS,15/04/2024,11499525457,29.99,B&M 514 - DICOT
OXFORDSHIRE CC,CUSTOMER AND CULTURE,OPERATIONS,MATERIALS,15/04/2024,11499525515,118.5,AMAZON  203-0869729-43
OXFORDSHIRE CC,ADULTS,CSS WANTAGE,ENTERTAINMENT EXPENSES,15/04/2024,11499525853,19.5,WWW.BETTER.ORG.UK
OXFORDSHIRE CC,CHILDREN'S & EDUCATION,"	LEAVING CARE CITY 1",OTHER EXPENSES,15/04/2024,11499524663,20.09,AMAZON  202-2276817-49
OXFORDSHIRE CC,ENVIRONMENT AND PLACE,SCH&SOC CARE TRANSP,MATERIALS,15/04/2024,11499525869,8.99,AMAZON PRIME HP6CA1144
OXFORDSHIRE CC,ENVIRONMENT AND PLACE,TVERC,PAYMENT TO GOVERNMENT DEPARTMENTS,15/04/2024,11499524533,3,LAND REGISTRY ECOM CCC
OXFORDSHIRE CC,ENVIRONMENT AND PLACE,TVERC,PAYMENT TO GOVERNMENT DEPARTMENTS,15/04/2024,11499524541,3,LAND REGISTRY ECOM CCC
OXFORDSHIRE CC,CHILDREN'S & EDUCATION,"	LEAVING CARE CITY 1",OTHER EXPENSES,15/04/2024,11499524669,50.98,WF  UK4234923394
OXFORDSHIRE CC,CHILDREN'S & EDUCATION,"	LEAVING CARE CITY 1",OTHER EXPENSES,15/04/2024,11499524675,40,WWW.ARGOS.CO.UK
OXFORDSHIRE CC,CHILDREN'S & EDUCATION,"	LEAVING CARE CITY 2",CLOTHING AND UNIFORMS,15/04/2024,11499524735,104,PRIMARK 440
OXFORDSHIRE CC,CHILDREN'S & EDUCATION,FAMILY SOLUTIONS PLUS NON-STAFF - NORTH,PAYMENTS TO TRANSPORT OPERATORS,15/04/2024,11499526377,36.88,TRAINLINE
OXFORDSHIRE CC,PUBLIC HEALTH,WITNEY,ENTERTAINMENT EXPENSES,15/04/2024,11499524449,25,PAINTBALL HEROES
OXFORDSHIRE CC,CUSTOMER AND CULTURE,HARD FM,PREMISES REPAIRS,15/04/2024,11499524513,124.96,VAN DEMON
OXFORDSHIRE CC,ADULTS,CSS WITNEY,MANAGEMENT CONSULTANT FEES,15/04/2024,11499525783,102,WWW.YAEZ.COM
OXFORDSHIRE CC,ENVIRONMENT AND PLACE,TVERC,PAYMENT TO GOVERNMENT DEPARTMENTS,15/04/2024,11499524545,3,LAND REGISTRY ECOM CCC
OXFORDSHIRE CC,CHILDREN'S & EDUCATION,FAMILY SOLUTIONS PLUS NON-STAFF - NORTH,HIRE OF ACCOMMODATION AND FACILITIES,15/04/2024,11499526411,148,PREMIER INN
OXFORDSHIRE CC,CHILDREN'S & EDUCATION,EYNSHAM,GENERAL MAINTENANCE,15/04/2024,11499526459,73.73,CASSINGTON NURSERIES
OXFORDSHIRE CC,CORPORATE CORE,,STATIONERY,15/04/2024,11499526269,94.9,LYRECO UK LTD
OXFORDSHIRE CC,CHILDREN'S & EDUCATION,40 THE MOORS,OTHER MISC INC,15/04/2024,11499526281,34,SUMUP   BARNETS BARBER
OXFORDSHIRE CC,CHILDREN'S & EDUCATION,HOUSE PROJECT,PAYMENTS TO TRANSPORT OPERATORS,15/04/2024,11499526275,40.4,GWR DIDCOT PKWY TO
OXFORDSHIRE CC,CHILDREN'S & EDUCATION,HOUSE PROJECT,CATERING PROVISIONS,15/04/2024,11499526277,3.38,TODAYS LOCAL 01
OXFORDSHIRE CC,CHILDREN'S & EDUCATION,"	LOOKED AFTER NORTH",VEHICLE FUEL,15/04/2024,11499526293,20.01,MFG TOLLHOUSE
OXFORDSHIRE CC,CHILDREN'S & EDUCATION,FAMILY SOLUTIONS PLUS NON-STAFF � SOUTH,CATERING PROVISIONS,15/04/2024,11499525659,1.55,TESCO STORES 4377
OXFORDSHIRE CC,PUBLIC HEALTH,WITNEY,CATERING PROVISIONS,15/04/2024,11499524451,7.98,AMAZON  205-5736172-40
OXFORDSHIRE CC,SOCIAL AND COMMUNITY SERVICES,CSS - ABINGDON,CATERING PROVISIONS,15/04/2024,11499524481,20.99,AMAZON  203-3192354-57
OXFORDSHIRE CC,ENVIRONMENT AND PLACE,TVERC,PAYMENT TO GOVERNMENT DEPARTMENTS,15/04/2024,11499524529,3,LAND REGISTRY ECOM CCC
OXFORDSHIRE CC,ENVIRONMENT AND PLACE,TVERC,PAYMENT TO GOVERNMENT DEPARTMENTS,15/04/2024,11499524537,3,LAND REGISTRY ECOM CCC
OXFORDSHIRE CC,ENVIRONMENT AND PLACE,TVERC,PAYMENT TO GOVERNMENT DEPARTMENTS,15/04/2024,11499524547,3,LAND REGISTRY ECOM CCC
OXFORDSHIRE CC,ENVIRONMENT AND PLACE,TVERC,PAYMENT TO GOVERNMENT DEPARTMENTS,15/04/2024,11499524531,3,LAND REGISTRY ECOM CCC
OXFORDSHIRE CC,ENVIRONMENT AND PLACE,TVERC,PAYMENT TO GOVERNMENT DEPARTMENTS,15/04/2024,11499524539,3,LAND REGISTRY ECOM CCC
OXFORDSHIRE CC,ENVIRONMENT AND PLACE,TVERC,PAYMENT TO GOVERNMENT DEPARTMENTS,15/04/2024,11499524559,3,LAND REGISTRY ECOM CCC
OXFORDSHIRE CC,ADULTS,ADULTS AT RISK,HIRE OF ACCOMMODATION AND FACILITIES,15/04/2024,11499526123,"1,000.00",ATHENA OXFORD LTD
OXFORDSHIRE CC,CHILDREN'S & EDUCATION,"	LEAVING CARE SOUTH",OTHER TRANSPORT ARRANGEMENTS,15/04/2024,11499526145,96.1,GWR OXFORD TO
OXFORDSHIRE CC,CUSTOMER AND CULTURE,THAME LIBRARY,"NEWSPAPERS, PERIODICALS AND PUBLICATIONS",15/04/2024,11499526181,5.8,SAINSBURYS S/MKTS
OXFORDSHIRE CC,CORPORATE CORE,,STATIONERY,15/04/2024,11499526253,12.74,LYRECO UK LTD
OXFORDSHIRE CC,CUSTOMER AND CULTURE,THAME LIBRARY,"NEWSPAPERS, PERIODICALS AND PUBLICATIONS",15/04/2024,11499526183,7.5,SAINSBURYS S/MKTS
OXFORDSHIRE CC,CHILDREN'S & EDUCATION,"	LEAVING CARE CITY 2",CLOTHING AND UNIFORMS,12/04/2024,9687741818,76,PRIMARK 691
OXFORDSHIRE CC,CHILDREN'S & EDUCATION,CHILDREN IN CARE NON-STAFFING - CENTRL 1,PAYMENT TO GOVERNMENT DEPARTMENTS,12/04/2024,9687741834,105,OXFORDSHIRE CC WEB1
OXFORDSHIRE CC,CHILDREN'S & EDUCATION,"	LEAVING CARE CITY 2",VEHICLE FUEL,12/04/2024,9687741820,32.01,TESCO PAYAT PUMP 4156
OXFORDSHIRE CC,CHILDREN'S & EDUCATION,CHILDREN IN CARE NON-STAFFING - CENTRL 2,OTHER EXPENSES,12/04/2024,9687741838,20,TESCO GIFT CARD
OXFORDSHIRE CC,CHILDREN'S & EDUCATION,EYNSHAM,CATERING PROVISIONS,12/04/2024,9687741774,47.1,TESCO STORES 2008
OXFORDSHIRE CC,CHILDREN'S & EDUCATION,"	DISABILITIES TEAM-N",OTHER TRANSPORT ARRANGEMENTS,12/04/2024,9687741826,264.6,ITAL GROUP LIMITED
OXFORDSHIRE CC,CHILDREN'S & EDUCATION,SWINDON,ENTERTAINMENT EXPENSES,12/04/2024,9687741852,115.08,TENPIN.CO.UK
OXFORDSHIRE CC,CHILDREN'S & EDUCATION,CHILDREN IN CARE NON-STAFFING - NORTH,PAYMENTS TO TRANSPORT OPERATORS,12/04/2024,9687741830,34.33,TRAINLINE
OXFORDSHIRE CC,CUSTOMER AND CULTURE,HOLTON SITE,CATERING PROVISIONS,12/04/2024,9687741860,17.5,MILK AND MORE (RECUR
OXFORDSHIRE CC,ENVIRONMENT AND PLACE,EP BUSINESS SUPPORT UNIT,"SUPPLIES, STATIONERY AND MATERIALS",12/04/2024,9687742838,337.2,SAS EVENT AND ASSOCIAT
OXFORDSHIRE CC,CHILDREN'S & EDUCATION,FSP NON-STAFFING - CENTRAL,PAYMENT TO GOVERNMENT DEPARTMENTS,12/04/2024,9687742856,232,HMCTS CHILD ORDER
OXFORDSHIRE CC,ENVIRONMENT AND PLACE,NATURAL ENVIRONMENT,PROFESSIONAL SUBSCRIPTIONS,12/04/2024,9687742884,91,IPROW.CO.UK
OXFORDSHIRE CC,CHILDREN'S & EDUCATION,DIDCOT MOVE-ON HOME,CATERING PROVISIONS,12/04/2024,9687742876,6.85,SAINSBURYS S/MKTS
OXFORDSHIRE CC,CHILDREN'S & EDUCATION,40 THE MOORS,CLEANING MATERIALS,12/04/2024,9687741952,18.13,AMAZON  206-1906073-53
OXFORDSHIRE CC,CHILDREN'S & EDUCATION,40 THE MOORS,CLEANING MATERIALS,12/04/2024,9687741976,11.99,AMAZON  206-7788200-53
OXFORDSHIRE CC,CHILDREN'S & EDUCATION,40 THE MOORS,CLEANING MATERIALS,12/04/2024,9687741960,7.16,AMAZON  206-5352495-22
OXFORDSHIRE CC,CHILDREN'S & EDUCATION,40 THE MOORS,GENERAL REFUSE COLLECTION AND DISPOSAL,12/04/2024,9687741984,324,MCCARTHY MARLAND RECYC
OXFORDSHIRE CC,CHILDREN'S & EDUCATION,"	THRIVING FAMILY SOTH","PUBLICITY, PROMOTIONS AND ADVERTISEMENT",12/04/2024,9687741940,"1,440.00",WINTERBURN MEDIA LIMIT
OXFORDSHIRE CC,CHILDREN'S & EDUCATION,40 THE MOORS,STATIONERY,12/04/2024,9687741964,39.48,AMAZON  206-1716786-09
OXFORDSHIRE CC,CHILDREN'S & EDUCATION,"	LEAVING CARE SOUTH",OTHER TRANSPORT ARRANGEMENTS,12/04/2024,9687741992,8.9,M6 TOLL
OXFORDSHIRE CC,CHILDREN'S & EDUCATION,NTS UASC AGENCY,MATERIALS,12/04/2024,9687742862,19.94,WWW.ARGOS.CO.UK
OXFORDSHIRE CC,CHILDREN'S & EDUCATION,FSP NON-STAFFING - CENTRAL,HIRE OF ACCOMMODATION AND FACILITIES,12/04/2024,9687742852,595.95,TRAVELODGE
OXFORDSHIRE CC,CUSTOMER AND CULTURE,HISTORY SERVICE,CATERING,12/04/2024,9687742896,128.81,SAVONA
OXFORDSHIRE CC,CUSTOMER AND CULTURE,HISTORY SERVICE,CATERING,12/04/2024,9687742896,63.83,SAVONA
OXFORDSHIRE CC,CHILDREN'S & EDUCATION,NTS UASC AGENCY,MATERIALS,12/04/2024,9687742868,20.45,WWW.ARGOS.CO.UK
OXFORDSHIRE CC,CHILDREN'S & EDUCATION,FSP NON-STAFFING - CENTRAL,HIRE OF ACCOMMODATION AND FACILITIES,12/04/2024,9687742584,145.01,TRAVELODGE
OXFORDSHIRE CC,CUSTOMER AND CULTURE,THAME LIBRARY,"NEWSPAPERS, PERIODICALS AND PUBLICATIONS",12/04/2024,9687742626,5.8,SAINSBURYS S/MKTS
OXFORDSHIRE CC,ENVIRONMENT AND PLACE,OPERATIONAL DEVT & B,HIRE OF ACCOMMODATION AND FACILITIES,12/04/2024,9687742524,148,PREMIER INN
OXFORDSHIRE CC,CHILDREN'S & EDUCATION,40 THE MOORS,CATERING,12/04/2024,9687742562,35.65,NANDOS BICESTER
OXFORDSHIRE CC,ENVIRONMENT AND PLACE,OPERATIONAL DEVT & B,HIRE OF ACCOMMODATION AND FACILITIES,12/04/2024,9687742532,148,PREMIER INN
OXFORDSHIRE CC,CHILDREN'S & EDUCATION,"	LOOKED AFTER CITY 2",OTHER TRANSPORT ARRANGEMENTS,12/04/2024,9687742288,2,OXFORD BUS COMPANY
OXFORDSHIRE CC,CHILDREN'S & EDUCATION,40 THE MOORS,ENTERTAINMENT EXPENSES,12/04/2024,9687742546,17.76,VUE CINEMAS
OXFORDSHIRE CC,CHILDREN'S & EDUCATION,40 THE MOORS,ENTERTAINMENT EXPENSES,12/04/2024,9687742552,17.98,VUE ENTERTAINMENT LTD
OXFORDSHIRE CC,CHILDREN'S & EDUCATION,THAME E&A HOME,CATERING PROVISIONS,12/04/2024,9687742254,15.65,ASDA SUPERSTORE
OXFORDSHIRE CC,CHILDREN'S & EDUCATION,"	LOOKED AFTER CITY 2",OTHER TRANSPORT ARRANGEMENTS,12/04/2024,9687742278,2,STGCOACH/CTYLINK
OXFORDSHIRE CC,CHILDREN'S & EDUCATION,WITNEY,CATERING PROVISIONS,12/04/2024,9687742138,8.9,SAINSBURYS S/MKTS
OXFORDSHIRE CC,CHILDREN'S & EDUCATION,QUALITY ASSURANCE NORTH TEAM,PAYMENTS TO TRANSPORT OPERATORS,12/04/2024,9687743000,39.12,TRAINLINE
OXFORDSHIRE CC,ADULTS,CSS WITNEY,CATERING PROVISIONS,12/04/2024,9687742990,1.6,CO-OP GROUP 070582
OXFORDSHIRE CC,CHILDREN'S & EDUCATION,THAME E&A HOME,CATERING,12/04/2024,9687743012,18.2,COSTA COFFEE 43011096
OXFORDSHIRE CC,ADULTS,CSS WITNEY,MATERIALS,12/04/2024,9687742994,6.5,POUNDLAND LTD - 1912
OXFORDSHIRE CC,CHILDREN'S & EDUCATION,FAMILY SOLUTIONS PLUS NON-STAFF � SOUTH,CATERING PROVISIONS,12/04/2024,9687742412,15.9,CO-OPERATIVE FOOD
OXFORDSHIRE CC,ADULTS,CSS WITNEY,CATERING PROVISIONS,12/04/2024,9687742474,19.75,AMAZON  204-8001402-67
OXFORDSHIRE CC,ADULTS,CSS WITNEY,CATERING PROVISIONS,12/04/2024,9687742480,35.7,MILK AND MORE (RECUR
OXFORDSHIRE CC,CUSTOMER AND CULTURE,WALLINGFORD LIBRARY,CATERING PROVISIONS,12/04/2024,9687742724,7.35,WAITROSE 675
OXFORDSHIRE CC,CHILDREN'S & EDUCATION,UASC 16&17,DAY ACTIVITIES,12/04/2024,9687742774,13,ARGOS HEYFORD HILL
OXFORDSHIRE CC,CHILDREN'S & EDUCATION,UASC 16&17,MATERIALS,12/04/2024,9687742812,278.99,CYCLE KING
OXFORDSHIRE CC,CUSTOMER AND CULTURE,RFID PROJECT,ENTERTAINMENT EXPENSES,12/04/2024,9687742782,8,MAGDALEN COLLEGE
OXFORDSHIRE CC,CHILDREN'S & EDUCATION,UASC 16&17,MATERIALS,12/04/2024,9687742820,278.99,CYCLE KING
OXFORDSHIRE CC,CHILDREN'S & EDUCATION,THAME E&A HOME,MATERIALS,12/04/2024,9687743006,162.4,HOBBYCRAFT
OXFORDSHIRE CC,CORPORATE CORE,SOTERIA,HOSPITALITY EXPENSES,12/04/2024,9687743018,10.5,AEROP. ADOLFO SUAREZ M
OXFORDSHIRE CC,CUSTOMER AND CULTURE,COUNTY HALL,CATERING PROVISIONS,12/04/2024,9687742394,57.56,BOOKER LTD - 38584104
OXFORDSHIRE CC,CHILDREN'S & EDUCATION,UASC 16&17,DAY ACTIVITIES,12/04/2024,9687742768,278.99,CYCLE KING
OXFORDSHIRE CC,CUSTOMER AND CULTURE,THRIVING FAMILY NORTH,CATERING PROVISIONS,12/04/2024,9687742388,428.45,BOOKER LTD - 38584104
OXFORDSHIRE CC,CHILDREN'S & EDUCATION,UASC 16&17,DAY ACTIVITIES,12/04/2024,9687742760,278.99,CYCLE KING
OXFORDSHIRE CC,CHILDREN'S & EDUCATION,OTFC TEAM,CATERING PROVISIONS,12/04/2024,9687742796,3.5,SAINSBURYS S/MKTS
OXFORDSHIRE CC,ENVIRONMENT AND PLACE,EP BUSINESS SUPPORT UNIT,PAYMENTS TO TRANSPORT OPERATORS,12/04/2024,9687742834,82.43,TRAINLINE
OXFORDSHIRE CC,CHILDREN'S & EDUCATION,EET SERVICE,PURCHASE OF IT EQUIPMENT,12/04/2024,9687742402,195.02,AMAZON  206-8171679-28
OXFORDSHIRE CC,ADULTS,THAME E&A HOME,OTHER MISC INC,12/04/2024,9687742458,110.6,DUNELM SOFT FURNISHIN
OXFORDSHIRE CC,CHILDREN'S & EDUCATION,OTFC TEAM,CATERING,12/04/2024,9687742802,68.25,ZIZZI HENLEY
OXFORDSHIRE CC,ENVIRONMENT AND PLACE,NAT TRAILS GENERAL,HIRE OF ACCOMMODATION AND FACILITIES,12/04/2024,9687743060,47.01,TRAVELODGE
OXFORDSHIRE CC,CHILDREN'S & EDUCATION,PAUSE PROGRAMME,CATERING,12/04/2024,9687743074,7,SQ  WRAP N SHAKE
OXFORDSHIRE CC,CHILDREN'S & EDUCATION,"	LEAVING CARE CITY 1",CATERING PROVISIONS,12/04/2024,9687741878,4.45,COSTA BICESTER
OXFORDSHIRE CC,CHILDREN'S & EDUCATION,FAMILY SOLUTIONS PLUS NON-STAFF - NORTH,PAYMENTS TO TRANSPORT OPERATORS,12/04/2024,9687742920,425.2,RYANAIR
OXFORDSHIRE CC,CHILDREN'S & EDUCATION,CHILDREN IN CARE NON-STAFFING - NORTH,VEHICLE FUEL,12/04/2024,9687742954,33.43,EMPIRE PETROLEUM
OXFORDSHIRE CC,CHILDREN'S & EDUCATION,"	DIRECTOR'S OFFICE",HIRE OF ACCOMMODATION AND FACILITIES,12/04/2024,9687741934,"1,280.00",HILTON
OXFORDSHIRE CC,CHILDREN'S & EDUCATION,THAME E&A HOME,MATERIALS,12/04/2024,9687741906,7.99,TESCO SUBSCRIPTION
OXFORDSHIRE CC,CHILDREN'S & EDUCATION,"	MALTFIELD HOUSE",EQUIPMENT,12/04/2024,9687742636,23.59,AMZNMKTPLACE HP73F5JD4
OXFORDSHIRE CC,CORPORATE CORE,,STATIONERY,12/04/2024,9687742678,17.04,LYRECO UK LTD
OXFORDSHIRE CC,CHILDREN'S & EDUCATION,"	FPT CITY",MATERIALS,12/04/2024,9687742704,170.99,DEBENHAMS.COM
OXFORDSHIRE CC,CHILDREN'S & EDUCATION,"	LOOKED AFTER CITY 2",OTHER TRANSPORT ARRANGEMENTS,12/04/2024,9687742286,2,STGCOACH/CTYLINK
OXFORDSHIRE CC,CHILDREN'S & EDUCATION,"	LOOKED AFTER NORTH",CATERING,12/04/2024,9687742066,11.76,MCDONALDS 1424
OXFORDSHIRE CC,CHILDREN'S & EDUCATION,"	MALTFIELD HOUSE",CATERING PROVISIONS,12/04/2024,9687742642,33.45,LIDL GB WITNEY
OXFORDSHIRE CC,CORPORATE CORE,,STATIONERY,12/04/2024,9687742686,10.22,LYRECO UK LTD
OXFORDSHIRE CC,CHILDREN'S & EDUCATION,"	MALTFIELD HOUSE",STATIONERY,12/04/2024,9687742652,13.95,AMAZON  206-6906259-14
OXFORDSHIRE CC,ADULTS,CSS - BANBURY,CATERING PROVISIONS,12/04/2024,9687742710,5.94,AMAZON  204-8551530-76
OXFORDSHIRE CC,CHILDREN'S & EDUCATION,FAMILY SOLUTIONS PLUS NON-STAFF - NORTH,PAYMENTS TO TRANSPORT OPERATORS,12/04/2024,9687742694,48.49,TRAINLINE
OXFORDSHIRE CC,CORPORATE CORE,,STATIONERY,12/04/2024,9687742666,6.24,LYRECO UK LTD
OXFORDSHIRE CC,CHILDREN'S & EDUCATION,"	FPT CITY",MATERIALS,12/04/2024,9687742698,108.99,DEBENHAMS.COM
OXFORDSHIRE CC,CHILDREN'S & EDUCATION,EYNSHAM,CATERING PROVISIONS,12/04/2024,9687742174,12.54,SAINSBURYS S/MKTS
OXFORDSHIRE CC,CUSTOMER AND CULTURE,WANTAGE LIBRARY,DOMESTIC AND CLEANING EQUIPMENT,12/04/2024,9687742024,29.99,AMAZON.CO.UK HP8E17JW4
OXFORDSHIRE CC,CUSTOMER AND CULTURE,SAMUELSON HOUSE,CATERING PROVISIONS,12/04/2024,9687742072,53.55,MILK AND MORE (RECUR
OXFORDSHIRE CC,CHILDREN'S & EDUCATION,"	RESIDENTIAL STRATEGY",HIRE OF ACCOMMODATION AND FACILITIES,12/04/2024,9687742108,585,MILTON HILL CONFERENCE
OXFORDSHIRE CC,CHILDREN'S & EDUCATION,"	OCCG GRANT",CATERING,12/04/2024,9687742038,8.41,MCDONALDS
OXFORDSHIRE CC,ENVIRONMENT AND PLACE,FLEET OPERATIONS,CATERING PROVISIONS,12/04/2024,9687742080,20,MILK AND MORE (RECUR
OXFORDSHIRE CC,ADULTS,CSS - OXFORD,CATERING PROVISIONS,12/04/2024,9687742120,47.48,ALDI STORES 775-142
OXFORDSHIRE CC,CHILDREN'S & EDUCATION,"	OCCG GRANT",CATERING PROVISIONS,12/04/2024,9687742048,14.25,TESCO STORES 4377
OXFORDSHIRE CC,CHILDREN'S & EDUCATION,UASC POST 18,OTHER TRANSPORT ARRANGEMENTS,12/04/2024,9687742056,90,OXFORDBUS.CO.UK
OXFORDSHIRE CC,CHILDREN'S & EDUCATION,40 THE MOORS,OTHER EXPENSES,12/04/2024,9687741946,13.98,SUPERDRUG STORES PLC
OXFORDSHIRE CC,CHILDREN'S & EDUCATION,40 THE MOORS,CLEANING MATERIALS,12/04/2024,9687741972,19.6,AMAZON  206-2247688-92
OXFORDSHIRE CC,CHILDREN'S & EDUCATION,EYNSHAM,HARDWARE AND CROCKERY,12/04/2024,9687741614,32,B & Q 1156
OXFORDSHIRE CC,PUBLIC HEALTH,WITNEY,CATERING PROVISIONS,12/04/2024,9687741636,35.04,AMAZON  205-8381188-18
OXFORDSHIRE CC,PUBLIC HEALTH,WITNEY,CATERING PROVISIONS,12/04/2024,9687741626,34.81,AMAZON  205-7249189-44
OXFORDSHIRE CC,CHILDREN'S & EDUCATION,EYNSHAM,HARDWARE AND CROCKERY,12/04/2024,9687741616,27.99,HOMEBASE LTD
OXFORDSHIRE CC,ENVIRONMENT AND PLACE,TVERC,SUBSCRIPTIONS,12/04/2024,9687741648,250,PAYPAL  NATIONALBIO
OXFORDSHIRE CC,CHILDREN'S & EDUCATION,EYNSHAM,FURNITURE,12/04/2024,9687741620,70.32,B&M 515 - ABINGDON
OXFORDSHIRE CC,ENVIRONMENT AND PLACE,TVERC,SUBSCRIPTIONS,12/04/2024,9687741654,20,PAYPAL  NFBR
OXFORDSHIRE CC,ADULTS,CSS WALLINGFORD,STATIONERY,12/04/2024,9687741540,7.97,AMAZON  026-5622761-55
OXFORDSHIRE CC,PUBLIC HEALTH,WITNEY,CATERING PROVISIONS,12/04/2024,9687741630,18.48,SAINSBURYS S/MKTS
OXFORDSHIRE CC,ENVIRONMENT AND PLACE,TVERC,PAYMENT TO GOVERNMENT DEPARTMENTS,12/04/2024,9687741656,3,LAND REGISTRY ECOM CCC
OXFORDSHIRE CC,CHILDREN'S & EDUCATION,"	LOOKED AFTER CITY 2",OTHER TRANSPORT ARRANGEMENTS,12/04/2024,9687742270,2,ARRIVA THE SHIRES LIMI
OXFORDSHIRE CC,ENVIRONMENT AND PLACE,NAT TRAILS GENERAL,CATERING PROVISIONS,12/04/2024,9687742298,6,CO OPERATIVE FOOD
OXFORDSHIRE CC,CHILDREN'S & EDUCATION,THAME E&A HOME,CATERING,12/04/2024,9687742250,9.5,DONUT
OXFORDSHIRE CC,CHILDREN'S & EDUCATION,"	LOOKED AFTER CITY 2",OTHER TRANSPORT ARRANGEMENTS,12/04/2024,9687742272,2,OXFORD BUS COMPANY
OXFORDSHIRE CC,CHILDREN'S & EDUCATION,THAME E&A HOME,CATERING PROVISIONS,12/04/2024,9687741912,6.49,AMAZON  202-4855813-14
OXFORDSHIRE CC,CHILDREN'S & EDUCATION,THAME E&A HOME,OTHER EXPENSES,12/04/2024,9687741916,41,AMAZON  202-8452889-90
OXFORDSHIRE CC,CHILDREN'S & EDUCATION,THAME E&A HOME,CATERING PROVISIONS,12/04/2024,9687741896,25.99,AMAZON  202-4855813-14
OXFORDSHIRE CC,CHILDREN'S & EDUCATION,"	LEAVING CARE CITY 2",OTHER TRANSPORT ARRANGEMENTS,12/04/2024,9687742332,2,STGCOACH/CTYLINK
OXFORDSHIRE CC,ADULTS,CSS WITNEY,ENTERTAINMENT EXPENSES,12/04/2024,9687742308,9.9,WWW.BETTER.ORG.UK
OXFORDSHIRE CC,CHILDREN'S & EDUCATION,"	LEAVING CARE CITY 2",OTHER TRANSPORT ARRANGEMENTS,12/04/2024,9687742342,1.5,STGCOACH/CTYLINK
OXFORDSHIRE CC,ENVIRONMENT AND PLACE,WASTE MNGMNT GEN,MATERIALS,12/04/2024,9687742378,35.99,EBAY O 22-11418-89431
OXFORDSHIRE CC,RESOURCES,CAPABILITY & AMBITION FUND,OTHER TRANSPORT ARRANGEMENTS,12/04/2024,9687741872,8,OXFORD BUS COMPANY
OXFORDSHIRE CC,CHILDREN'S & EDUCATION,THAME E&A HOME,CATERING PROVISIONS,12/04/2024,9687741902,10.87,AMAZON  202-5082502-14
OXFORDSHIRE CC,ADULTS,CSS - OXFORD,CATERING PROVISIONS,12/04/2024,9687741922,3.38,ALDI STORES 775-142
OXFORDSHIRE CC,CHILDREN'S & EDUCATION,"	LEAVING CARE CITY 2",CATERING PROVISIONS,12/04/2024,9687742318,10.5,OLD BAKEHOUSE
OXFORDSHIRE CC,CHILDREN'S & EDUCATION,"	LEAVING CARE CITY 2",PAYMENTS TO TRANSPORT OPERATORS,12/04/2024,9687742326,116.4,GWR OXFORD TO
OXFORDSHIRE CC,CHILDREN'S & EDUCATION,THAME E&A HOME,CATERING PROVISIONS,12/04/2024,9687741886,13.99,AMAZON  202-3906065-81
OXFORDSHIRE CC,ENVIRONMENT AND PLACE,WASTE MNGMNT GEN,CATERING PROVISIONS,12/04/2024,9687742382,26.78,AMAZON  202-2660223-18
OXFORDSHIRE CC,CHILDREN'S & EDUCATION,FAMILY SOLUTIONS PLUS NON-STAFF - NORTH,PAYMENTS TO TRANSPORT OPERATORS,12/04/2024,9687742926,48.8,WWW.GWR.COM
OXFORDSHIRE CC,ADULTS,CSS - ABINGDON,POSTAGE AND DELIVERY,12/04/2024,9687742962,26.4,POST OFFICE COUNTER
OXFORDSHIRE CC,CUSTOMER AND CULTURE,MUSEUMS COLLECTIONS,CATERING PROVISIONS,12/04/2024,9687742902,4.6,MILK AND MORE (RECUR
OXFORDSHIRE CC,CHILDREN'S & EDUCATION,FAMILY SOLUTIONS PLUS NON-STAFF - NORTH,PAYMENTS TO TRANSPORT OPERATORS,12/04/2024,9687742936,-44.5,WWW.GWR.COM
OXFORDSHIRE CC,CUSTOMER AND CULTURE,REACTIVE MAINTENANCE,PREMISES REPAIRS,12/04/2024,9687742972,28.7,BREWERS BICESTER
OXFORDSHIRE CC,CUSTOMER AND CULTURE,OXFORDSHIRE MUSEUM,OTHER TRAINING COURSES AND QUALIFICATION,12/04/2024,9687742908,45,MUSEUMS ASCTN
OXFORDSHIRE CC,ADULTS,CSS WALLINGFORD,MATERIALS,12/04/2024,9687742984,51.74,AMAZON  026-7869219-78
OXFORDSHIRE CC,CHILDREN'S & EDUCATION,FAMILY SOLUTIONS PLUS NON-STAFF - NORTH,PAYMENTS TO TRANSPORT OPERATORS,12/04/2024,9687742944,-4.3,WWW.GWR.COM
OXFORDSHIRE CC,ENVIRONMENT AND PLACE,TVERC,PAYMENT TO GOVERNMENT DEPARTMENTS,12/04/2024,9687741678,3,LAND REGISTRY ECOM CCC
OXFORDSHIRE CC,ENVIRONMENT AND PLACE,TVERC,PAYMENT TO GOVERNMENT DEPARTMENTS,12/04/2024,9687741696,3,LAND REGISTRY ECOM CCC
OXFORDSHIRE CC,ENVIRONMENT AND PLACE,TVERC,PAYMENT TO GOVERNMENT DEPARTMENTS,12/04/2024,9687741662,3,LAND REGISTRY ECOM CCC
OXFORDSHIRE CC,ENVIRONMENT AND PLACE,TVERC,PAYMENT TO GOVERNMENT DEPARTMENTS,12/04/2024,9687741684,3,LAND REGISTRY ECOM CCC
OXFORDSHIRE CC,CHILDREN'S & EDUCATION,"	LEAVING CARE CITY 1",OTHER EXPENSES,12/04/2024,9687741706,699.05,WWW.ARGOS.CO.UK
OXFORDSHIRE CC,ENVIRONMENT AND PLACE,TVERC,PAYMENT TO GOVERNMENT DEPARTMENTS,12/04/2024,9687741672,3,LAND REGISTRY ECOM CCC
OXFORDSHIRE CC,ENVIRONMENT AND PLACE,TVERC,PAYMENT TO GOVERNMENT DEPARTMENTS,12/04/2024,9687741694,3,LAND REGISTRY ECOM CCC
OXFORDSHIRE CC,ENVIRONMENT AND PLACE,TVERC,PAYMENT TO GOVERNMENT DEPARTMENTS,12/04/2024,9687741666,3,LAND REGISTRY ECOM CCC
OXFORDSHIRE CC,ENVIRONMENT AND PLACE,TVERC,PAYMENT TO GOVERNMENT DEPARTMENTS,12/04/2024,9687741688,3,LAND REGISTRY ECOM CCC
OXFORDSHIRE CC,CHILDREN'S & EDUCATION,"	LEAVING CARE CITY 1",OTHER EXPENSES,12/04/2024,9687741712,365,WWW.ARGOS.CO.UK
OXFORDSHIRE CC,CHILDREN'S & EDUCATION,"	LOOKED AFTER CITY 2",OTHER TRANSPORT ARRANGEMENTS,12/04/2024,9687742264,2,ARRIVA THE SHIRES LIMI
OXFORDSHIRE CC,CORPORATE CORE,SOTERIA,OTHER TRANSPORT ARRANGEMENTS,12/04/2024,9687743024,20.94,UBER    TRIP
OXFORDSHIRE CC,CHILDREN'S & EDUCATION,KINGFISHER,CATERING,12/04/2024,9687742198,36.22,ZETTLE_ ART CAFE
OXFORDSHIRE CC,CHILDREN'S & EDUCATION,VIRTUAL SCHOOL POST 16 PPP,PURCHASE OF IT EQUIPMENT,12/04/2024,9687742156,380,VOUCHER EXPRESS
OXFORDSHIRE CC,CUSTOMER AND CULTURE,REGISTRAR,CATERING PROVISIONS,12/04/2024,9687742208,98.94,AMAZON  203-9848633-80
OXFORDSHIRE CC,ADULTS,FPT SOUTH/VALE,FURNITURE,12/04/2024,9687743068,230.95,WWW.ARGOS.CO.UK
OXFORDSHIRE CC,CHILDREN'S & EDUCATION,PAUSE PROGRAMME,CATERING PROVISIONS,12/04/2024,9687742162,2.5,CO-OPERATIVE FOOD
OXFORDSHIRE CC,CHILDREN'S & EDUCATION,KINGFISHER,CATERING PROVISIONS,12/04/2024,9687742190,9,MARKS&SPENCER PLC
OXFORDSHIRE CC,CHILDREN'S & EDUCATION,"	OCCG GRANT",BIRTHDAY ALLOWANCE,11/04/2024,9681827008,2,TESCO STORES 2994
OXFORDSHIRE CC,CHILDREN'S & EDUCATION,OXFORDSHIRE,CATERING PROVISIONS,11/04/2024,9681827052,5.24,TESCO STORES 2008
OXFORDSHIRE CC,ADULTS,CSS - OXFORD,MATERIALS,11/04/2024,9681827238,20.69,AMAZON  026-8509529-31
OXFORDSHIRE CC,CHILDREN'S & EDUCATION,VIRTUAL SCHOOL POST 16 PPP,PURCHASE OF IT EQUIPMENT,11/04/2024,9681827084,350,VOUCHER EXPRESS
OXFORDSHIRE CC,ENVIRONMENT AND PLACE,NAT TRAILS GENERAL,HEALTH AND SAFETY EQUIPMENT,11/04/2024,9681827204,56.45,WWW.LONDONPOWERTOOLS.C
OXFORDSHIRE CC,CHILDREN'S & EDUCATION,40 THE MOORS,DOMESTIC SUPPLIES,11/04/2024,9681826962,39.72,AMAZON  206-4965021-30
OXFORDSHIRE CC,CHILDREN'S & EDUCATION,40 THE MOORS,CLEANING MATERIALS,11/04/2024,9681826966,11.98,AMAZON  206-8614150-16
OXFORDSHIRE CC,CHILDREN'S & EDUCATION,"	LEAVING CARE SOUTH",OTHER TRANSPORT ARRANGEMENTS,11/04/2024,9681826986,78.45,OXFORDBUS.CO.UK
OXFORDSHIRE CC,CHILDREN'S & EDUCATION,EYNSHAM,CATERING,11/04/2024,9681827016,40.05,KFC
OXFORDSHIRE CC,CHILDREN'S & EDUCATION,"	LEAVING CARE SOUTH",MATERIALS,11/04/2024,9681826992,40,VOUCHER EXPRESS
OXFORDSHIRE CC,CUSTOMER AND CULTURE,OPERATIONS,"SUPPLIES, STATIONERY AND MATERIALS",11/04/2024,9681827060,11.37,AMAZON  205-6768891-42
OXFORDSHIRE CC,CHILDREN'S & EDUCATION,"	LAC PUPIL PREMIUM","SUPPLIES, STATIONERY AND MATERIALS",11/04/2024,9681827090,101.98,AMZNMKTPLACE HP5L22Z84
OXFORDSHIRE CC,CHILDREN'S & EDUCATION,OTFC TEAM,CATERING,11/04/2024,9681827556,1.45,WOKINGHAM FAMILY GOLF
OXFORDSHIRE CC,CHILDREN'S & EDUCATION,FAMILY SOLUTIONS PLUS NON-STAFF - NORTH,CATERING PROVISIONS,11/04/2024,9681827572,24.73,SAINSBURYS S/MKTS
OXFORDSHIRE CC,CHILDREN'S & EDUCATION,EYNSHAM,HARDWARE AND CROCKERY,11/04/2024,9681827610,48.68,B AND Q
OXFORDSHIRE CC,CHILDREN'S & EDUCATION,OTFC TEAM,CATERING PROVISIONS,11/04/2024,9681827566,5.3,CO-OP GROUP 310626
OXFORDSHIRE CC,CHILDREN'S & EDUCATION,40 THE MOORS,CATERING,11/04/2024,9681827600,198.95,SAINSBURYS.CO.UK
OXFORDSHIRE CC,CHILDREN'S & EDUCATION,OTFC TEAM,CATERING,11/04/2024,9681827560,1.8,WOKINGHAM FAMILY GOLF
OXFORDSHIRE CC,CHILDREN'S & EDUCATION,DIDCOT MOVE-ON HOME,CATERING PROVISIONS,11/04/2024,9681827580,29.25,SAINSBURYS SMKT
OXFORDSHIRE CC,CHILDREN'S & EDUCATION,EYNSHAM,CATERING PROVISIONS,11/04/2024,9681827614,114.8,HOME BARGAINS
OXFORDSHIRE CC,CHILDREN'S & EDUCATION,OTFC TEAM,ENTERTAINMENT EXPENSES,11/04/2024,9681827562,16.5,WOKINGHAM FAMILY GOLF
OXFORDSHIRE CC,CHILDREN'S & EDUCATION,DIDCOT MOVE-ON HOME,CATERING PROVISIONS,11/04/2024,9681827584,32.48,SAINSBURYS SMKT
OXFORDSHIRE CC,CHILDREN'S & EDUCATION,"	LEAVING CARE CITY 2",OTHER TRANSPORT ARRANGEMENTS,11/04/2024,9681827210,4.5,STGCOACH/CTYLINK
OXFORDSHIRE CC,CHILDREN'S & EDUCATION,"	LOOKED AFTER NORTH",OTHER TRANSPORT ARRANGEMENTS,11/04/2024,9681827028,13.9,WORCESTER STREET CAR P
OXFORDSHIRE CC,CUSTOMER AND CULTURE,HARD FM,PREMISES REPAIRS,11/04/2024,9681827100,36.1,B & Q 1156
OXFORDSHIRE CC,CHILDREN'S & EDUCATION,"	LEAVING CARE CITY 2",CATERING PROVISIONS,11/04/2024,9681827214,7.15,T R STORES
OXFORDSHIRE CC,ADULTS,THAME E&A HOME,OTHER MISC INC,11/04/2024,9681827272,149.2,HOMEBASE LTD 091
OXFORDSHIRE CC,CHILDREN'S & EDUCATION,"	LEAVING CARE CITY 1",OTHER TRANSPORT ARRANGEMENTS,11/04/2024,9681827038,2.4,UNION STREET CAR PARK
OXFORDSHIRE CC,CUSTOMER AND CULTURE,HARD FM,PREMISES REPAIRS,11/04/2024,9681827108,9.58,TOOLSTATION LTD
OXFORDSHIRE CC,CHILDREN'S & EDUCATION,FAMILY SOLUTIONS PLUS NON-STAFF - NORTH,PAYMENT TO GOVERNMENT DEPARTMENTS,11/04/2024,9681827430,33,OXFORDSHIRE CC WEB1
OXFORDSHIRE CC,ADULTS,CSS - BANBURY,MATERIALS,11/04/2024,9681827452,34.52,AMAZON.CO.UK HP9I88434
OXFORDSHIRE CC,CHILDREN'S & EDUCATION,FAMILY SOLUTIONS PLUS NON-STAFF - NORTH,POSTAGE AND DELIVERY,11/04/2024,9681827424,42,POST OFFICE COUNTER
OXFORDSHIRE CC,ADULTS,CSS - BANBURY,CATERING PROVISIONS,11/04/2024,9681827448,10.99,AMAZON  204-8878271-81
OXFORDSHIRE CC,ADULTS,CSS - BANBURY,CATERING PROVISIONS,11/04/2024,9681827476,14.96,AMAZON  202-5766000-04
OXFORDSHIRE CC,CUSTOMER AND CULTURE,HARD FM,PREMISES REPAIRS,11/04/2024,9681827116,-47.74,B & Q 1156
OXFORDSHIRE CC,CHILDREN'S & EDUCATION,THAME E&A HOME,MATERIALS,11/04/2024,9681827160,13.47,FUNLAND GIFT SHOP
OXFORDSHIRE CC,ADULTS,CSS WANTAGE,CATERING PROVISIONS,11/04/2024,9681827292,227.29,ASDA GROCERIES ONLINE
OXFORDSHIRE CC,CHILDREN'S & EDUCATION,"	LOOKED AFTER CITY 2",OTHER TRANSPORT ARRANGEMENTS,11/04/2024,9681827174,2,OXFORD BUS COMPANY
OXFORDSHIRE CC,CHILDREN'S & EDUCATION,FAMILY SOLUTIONS PLUS NON-STAFF - NORTH,PAYMENTS TO TRANSPORT OPERATORS,11/04/2024,9681827438,17.92,TRAINLINE
OXFORDSHIRE CC,ADULTS,CSS - BANBURY,CATERING PROVISIONS,11/04/2024,9681827460,3.55,CO-OPERATIVE FOOD
OXFORDSHIRE CC,CHILDREN'S & EDUCATION,"	LOOKED AFTER CITY 2",PAYMENTS TO TRANSPORT OPERATORS,11/04/2024,9681827182,8.41,TRAINLINE
OXFORDSHIRE CC,ADULTS,CSS WANTAGE,CATERING PROVISIONS,11/04/2024,9681827312,-1,ASDA GROCERIES ONLINE
OXFORDSHIRE CC,CHILDREN'S & EDUCATION,EYNSHAM,FURNITURE,11/04/2024,9681827378,595,IKEA LTD SHOP ONLINE
OXFORDSHIRE CC,ADULTS,CSS - BANBURY,CATERING PROVISIONS,11/04/2024,9681827444,2.85,AMAZON  204-6876592-91
OXFORDSHIRE CC,CHILDREN'S & EDUCATION,THAME E&A HOME,ENTERTAINMENT EXPENSES,11/04/2024,9681827168,80,FUNLAND AMUSEMENT PARK
OXFORDSHIRE CC,CUSTOMER AND CULTURE,KENNINGTON LIBRARY,EQUIPMENT,11/04/2024,9681827340,46.34,AMAZON  203-6660689-57
OXFORDSHIRE CC,ENVIRONMENT AND PLACE,ROW MAINT,EQUIPMENT,11/04/2024,9681827152,10.51,OXON FASTENING SYSTEMS
OXFORDSHIRE CC,CHILDREN'S & EDUCATION,"	LOOKED AFTER CITY 2",OTHER TRANSPORT ARRANGEMENTS,11/04/2024,9681827178,2,OXFORD BUS COMPANY
OXFORDSHIRE CC,ADULTS,CSS WANTAGE,CATERING PROVISIONS,11/04/2024,9681827304,-20.3,ASDA GROCERIES ONLINE
OXFORDSHIRE CC,CHILDREN'S & EDUCATION,"	LEAVING CARE SOUTH",CLOTHING AND UNIFORMS,11/04/2024,9681827358,69.99,SPORTSDIRECT
OXFORDSHIRE CC,CHILDREN'S & EDUCATION,HOUSE PROJECT,CATERING PROVISIONS,11/04/2024,9681827414,4.95,SAINSBURYS S/MKTS
OXFORDSHIRE CC,ADULTS,CSS - BANBURY,CATERING PROVISIONS,11/04/2024,9681827466,4.55,CO-OPERATIVE FOOD
OXFORDSHIRE CC,ENVIRONMENT AND PLACE,NAT TRAILS GENERAL,EQUIPMENT,11/04/2024,9681827190,556.88,GOPRO.COM
OXFORDSHIRE CC,CUSTOMER AND CULTURE,CENTRAL LIBRARY,HEALTH AND SAFETY EQUIPMENT,11/04/2024,9681827326,44,AMAZON  203-9948807-60
OXFORDSHIRE CC,ENVIRONMENT AND PLACE,TVERC,PAYMENT TO GOVERNMENT DEPARTMENTS,11/04/2024,9681826846,3,LAND REGISTRY ECOM CCC
OXFORDSHIRE CC,ENVIRONMENT AND PLACE,TVERC,PAYMENT TO GOVERNMENT DEPARTMENTS,11/04/2024,9681826854,3,LAND REGISTRY ECOM CCC
OXFORDSHIRE CC,ADULTS,CSS WANTAGE,CATERING PROVISIONS,11/04/2024,9681826788,4.73,AMAZON  203-1039666-50
OXFORDSHIRE CC,ENVIRONMENT AND PLACE,TVERC,PAYMENT TO GOVERNMENT DEPARTMENTS,11/04/2024,9681826822,3,LAND REGISTRY ECOM CCC
OXFORDSHIRE CC,CHILDREN'S & EDUCATION,KINGFISHER,TRAINING RELATED EXPENDITURE,11/04/2024,9681826812,431.04,GOVERNMENT EVENTS
OXFORDSHIRE CC,ENVIRONMENT AND PLACE,TVERC,PAYMENT TO GOVERNMENT DEPARTMENTS,11/04/2024,9681826844,3,LAND REGISTRY ECOM CCC
OXFORDSHIRE CC,ADULTS,CSS WANTAGE,CATERING PROVISIONS,11/04/2024,9681826794,5.9,SAINSBURYS S/MKTS
OXFORDSHIRE CC,ENVIRONMENT AND PLACE,TVERC,PAYMENT TO GOVERNMENT DEPARTMENTS,11/04/2024,9681826830,3,LAND REGISTRY ECOM CCC
OXFORDSHIRE CC,ADULTS,CSS WANTAGE,CATERING PROVISIONS,11/04/2024,9681826804,2.52,SAINSBURYS S/MKTS
OXFORDSHIRE CC,ENVIRONMENT AND PLACE,TVERC,PAYMENT TO GOVERNMENT DEPARTMENTS,11/04/2024,9681826836,3,LAND REGISTRY ECOM CCC
OXFORDSHIRE CC,CHILDREN'S & EDUCATION,"	LEAVING CARE SOUTH",OTHER TRANSPORT ARRANGEMENTS,11/04/2024,9681826978,8.9,M6 TOLL
OXFORDSHIRE CC,CHILDREN'S & EDUCATION,UASC 16&17,MATERIALS,11/04/2024,9681827002,84.65,CYCLE KING
OXFORDSHIRE CC,CHILDREN'S & EDUCATION,"	LEAVING CARE SOUTH",CATERING,11/04/2024,9681826982,12,CAFFE NERO   MANCHESTE
OXFORDSHIRE CC,CHILDREN'S & EDUCATION,"	AAC EQUIPMENT",MATERIALS,11/04/2024,9681827830,236,CLR WWW.ABILITY-WORLD
OXFORDSHIRE CC,ADULTS,CSS - ABINGDON,EQUIPMENT,11/04/2024,9681827870,358.8,PLASTOR
OXFORDSHIRE CC,CORPORATE CORE,SOTERIA,CATERING,11/04/2024,9681827820,5.3,PIZZA
OXFORDSHIRE CC,ADULTS,CSS - ABINGDON,CATERING PROVISIONS,11/04/2024,9681827862,28.8,TESCO STORES 2008
OXFORDSHIRE CC,CHILDREN'S & EDUCATION,SEND CASEWORK TEAM,POSTAGE AND DELIVERY,11/04/2024,9681827834,16.55,ROYAL MAIL GROUP LTD
OXFORDSHIRE CC,RESOURCES,EYNSHAM,CATERING,11/04/2024,9681827878,7.5,SQ  KINGSLEY | RE-FUEL
OXFORDSHIRE CC,RESOURCES,FRONTIER CAV EU PROJECT,MATERIALS,11/04/2024,9681827892,646.45,AMAZON  204-4216496-59
OXFORDSHIRE CC,ADULTS,THAME E&A HOME,OTHER MISC INC,11/04/2024,9681827284,1.8,TESCO STORES 2994
OXFORDSHIRE CC,ADULTS,THAME E&A HOME,CATERING PROVISIONS,11/04/2024,9681827278,3.5,TESCO STORES 2994
OXFORDSHIRE CC,CORPORATE CORE,,STATIONERY,11/04/2024,9681827392,397.66,LYRECO UK LTD
OXFORDSHIRE CC,CHILDREN'S & EDUCATION,40 THE MOORS,CLEANING MATERIALS,11/04/2024,9681826970,17.56,AMAZON  206-8614150-16
OXFORDSHIRE CC,CHILDREN'S & EDUCATION,OTFC TEAM,CATERING,11/04/2024,9681827540,11.25,WOKINGHAM FAMILY GOLF
OXFORDSHIRE CC,CORPORATE CORE,"	COMMUNICATIONS","PUBLICITY, PROMOTIONS AND ADVERTISEMENT",11/04/2024,9681827740,96.61,SNAP INC SNAP SNAP ADS
OXFORDSHIRE CC,CHILDREN'S & EDUCATION,"	LEAVING CARE CITY 2",CLOTHING AND UNIFORMS,11/04/2024,9681827764,-69.99,FOOTASYLUM LIMITED
OXFORDSHIRE CC,CHILDREN'S & EDUCATION,"	LEAVING CARE CITY 2",FURNITURE,11/04/2024,9681827754,72.45,WWW.ARGOS.CO.UK
OXFORDSHIRE CC,CHILDREN'S & EDUCATION,THAME E&A HOME,ENTERTAINMENT EXPENSES,11/04/2024,9681827778,26.6,HOLLYWOOD BOWL
OXFORDSHIRE CC,CHILDREN'S & EDUCATION,"	LEAVING CARE CITY 2",FURNITURE,11/04/2024,9681827756,97,MARKS&SPENCER PLC
OXFORDSHIRE CC,CHILDREN'S & EDUCATION,BULLINGDON PRISON,"SUPPLIES, STATIONERY AND MATERIALS",11/04/2024,9681827782,46.36,AMAZON  204-1005320-68
OXFORDSHIRE CC,ENVIRONMENT AND PLACE,HWAYS NETWORK MGT,PURCHASE OF IT EQUIPMENT,11/04/2024,9681827512,51.49,AMZNMKTPLACE HP3CJ0ZE4
OXFORDSHIRE CC,CORPORATE CORE,SOTERIA,CATERING,11/04/2024,9681827816,3.54,MADRE AMIGA
OXFORDSHIRE CC,ENVIRONMENT AND PLACE,HWAYS NETWORK MGT,PURCHASE OF IT EQUIPMENT,11/04/2024,9681827508,179.9,AMZNMKTPLACE HP6I55444
OXFORDSHIRE CC,CHILDREN'S & EDUCATION,FAMILY SOLUTIONS PLUS NON-STAFF � SOUTH,MATERIALS,11/04/2024,9681827536,70,WWW.ARGOS.CO.UK
OXFORDSHIRE CC,CHILDREN'S & EDUCATION,"	LEAVING CARE NORTH",PAYMENTS TO TRANSPORT OPERATORS,11/04/2024,9681827790,40.55,TRAINLINE
OXFORDSHIRE CC,CUSTOMER AND CULTURE,RFID PROJECT,CLOTHING AND UNIFORMS,11/04/2024,9681827526,18,CARTERTON COBBLERS
OXFORDSHIRE CC,CHILDREN'S & EDUCATION,OTFC TEAM,CATERING,11/04/2024,9681827546,7,WOKINGHAM FAMILY GOLF
OXFORDSHIRE CC,CORPORATE CORE,SOTERIA,OTHER TRANSPORT ARRANGEMENTS,11/04/2024,9681827808,8.84,METRO DE MADRID S.A.
OXFORDSHIRE CC,CHILDREN'S & EDUCATION,WITNEY,CATERING PROVISIONS,11/04/2024,9681827534,19.15,LIDL GB WITNEY
OXFORDSHIRE CC,CORPORATE CORE,,STATIONERY,11/04/2024,9681827404,-10.92,LYRECO UK LTD
OXFORDSHIRE CC,ADULTS,CSS WANTAGE,CATERING PROVISIONS,11/04/2024,9681826782,2,B&M 250 - WANTAGE
OXFORDSHIRE CC,ENVIRONMENT AND PLACE,NAT TRAILS GENERAL,HEALTH AND SAFETY EQUIPMENT,11/04/2024,9681827198,29.81,SAFETYSUPPL
OXFORDSHIRE CC,CHILDREN'S & EDUCATION,"	LEAVING CARE CITY 2",FURNITURE,11/04/2024,9681827746,129.65,ONLINE MIRROR FACTORY
OXFORDSHIRE CC,PUBLIC HEALTH,CHILDREN IN CARE NON-STAFFING - SOUTH,OTHER TRANSPORT ARRANGEMENTS,11/04/2024,9681826732,6,NEALE'S TAXIS LIMI
OXFORDSHIRE CC,CHILDREN'S & EDUCATION,EYNSHAM,FURNITURE,11/04/2024,9681826748,94.8,DUNELM SOFT FURNISHIN
OXFORDSHIRE CC,ADULTS,CSS WALLINGFORD,CATERING PROVISIONS,11/04/2024,9681826720,15.9,WAITROSE 675
OXFORDSHIRE CC,CHILDREN'S & EDUCATION,EYNSHAM,DRUGS AND MEDICAL SUPPLIES,11/04/2024,9681826752,1.5,CO-OPERATIVE FOOD
OXFORDSHIRE CC,PUBLIC HEALTH,CHILDREN IN CARE NON-STAFFING - SOUTH,PAYMENTS TO TRANSPORT OPERATORS,11/04/2024,9681826728,17.83,TRAINLINE
OXFORDSHIRE CC,ADULTS,CSS - ABINGDON,MATERIALS,11/04/2024,9681826766,17.91,LEWIS BAKER RETAIL LTD
OXFORDSHIRE CC,ADULTS,CSS - OXFORD,CATERING PROVISIONS,11/04/2024,9681826910,5.75,LIDL GB OXFORD
OXFORDSHIRE CC,CHILDREN'S & EDUCATION,40 THE MOORS,STATIONERY,11/04/2024,9681826958,10.86,AMAZON  206-4881066-48
OXFORDSHIRE CC,CHILDREN'S & EDUCATION,NTS UASC AGENCY,OTHER MISC INC,11/04/2024,9681827684,25.98,AMAZON  026-4868371-36
OXFORDSHIRE CC,RESOURCES,SOTERIA,MATERIALS,11/04/2024,9681826878,750,DECATHLON UK LIMITED
OXFORDSHIRE CC,CHILDREN'S & EDUCATION,DIDCOT MOVE-ON HOME,CATERING PROVISIONS,11/04/2024,9681826924,64.48,AMAZON  204-6289825-12
OXFORDSHIRE CC,CHILDREN'S & EDUCATION,FAMILY SOLUTIONS PLUS NON-STAFF - NORTH,PAYMENTS TO TRANSPORT OPERATORS,11/04/2024,9681827626,78.35,TRAINLINE
OXFORDSHIRE CC,CHILDREN'S & EDUCATION,NTS UASC AGENCY,DOMESTIC SUPPLIES,11/04/2024,9681827670,24.99,AMAZON  026-6363796-93
OXFORDSHIRE CC,ENVIRONMENT AND PLACE,TVERC,EQUIPMENT,11/04/2024,9681826860,5.94,AMAZON  205-8803993-10
OXFORDSHIRE CC,CUSTOMER AND CULTURE,COMMUNITY PARTNERSHIP TEAM,CATERING PROVISIONS,11/04/2024,9681826896,-2.5,TESCO STORES 2008
OXFORDSHIRE CC,CHILDREN'S & EDUCATION,40 THE MOORS,CLEANING MATERIALS,11/04/2024,9681826950,15.33,AMAZON  206-0894191-27
OXFORDSHIRE CC,CHILDREN'S & EDUCATION,FAMILY SOLUTIONS PLUS NON-STAFF - NORTH,PAYMENTS TO TRANSPORT OPERATORS,11/04/2024,9681827638,48.8,WWW.GWR.COM
OXFORDSHIRE CC,CHILDREN'S & EDUCATION,NTS UASC AGENCY,STATIONERY,11/04/2024,9681827674,5.35,AMAZON  026-2941277-02
OXFORDSHIRE CC,ADULTS,CSS - BANBURY,VEHICLE FUEL,11/04/2024,9681827656,82.56,TESCO PFS 3920
OXFORDSHIRE CC,CHILDREN'S & EDUCATION,40 THE MOORS,CATERING PROVISIONS,11/04/2024,9681827618,15.7,SAINSBURYS S/MKTS
OXFORDSHIRE CC,CHILDREN'S & EDUCATION,THAME E&A HOME,CATERING PROVISIONS,11/04/2024,9681827664,19.97,OXFORD PEARTREE KFC
OXFORDSHIRE CC,CHILDREN'S & EDUCATION,FIELDWORK UASC,OTHER TRANSPORT ARRANGEMENTS,11/04/2024,9681827692,4.5,STGCOACH/CTYLINK
OXFORDSHIRE CC,CUSTOMER AND CULTURE,COMMUNITY PARTNERSHIP TEAM,CATERING PROVISIONS,11/04/2024,9681826892,166.66,TESCO STORES 2008
OXFORDSHIRE CC,CHILDREN'S & EDUCATION,40 THE MOORS,CLEANING MATERIALS,11/04/2024,9681826944,109.2,AMAZON  206-1576552-89
OXFORDSHIRE CC,CHILDREN'S & EDUCATION,CHILDREN IN CARE NON-STAFFING - NORTH,MATERIALS,11/04/2024,9681826872,25,BUYATAB - ALDI
OXFORDSHIRE CC,ADULTS,CSS - OXFORD,EDUCATIONAL AND VOCATIONAL TRAINING ,10/04/2024,9676247818,792,ST THOMAS TRAINING LTD
OXFORDSHIRE CC,ADULTS,CSS - OXFORD,CATERING PROVISIONS,10/04/2024,9676247714,21.93,ALDI STORES 775-142
OXFORDSHIRE CC,CHILDREN'S & EDUCATION,THAME E&A HOME,ENTERTAINMENT EXPENSES,10/04/2024,9676247764,83.8,LASER QUEST MK
OXFORDSHIRE CC,RESOURCES,INCOME TEAM,PAYMENT TO GOVERNMENT DEPARTMENTS,10/04/2024,9676247784,455,WWW.MONEYCLAIM.GOV
OXFORDSHIRE CC,CHILDREN'S & EDUCATION,"	LEAVING CARE CITY 2",CATERING,10/04/2024,9676247804,12.57,MCDONALDS
OXFORDSHIRE CC,RESOURCES,CENTRAL BUYING TEAM,EDUCATIONAL AND VOCATIONAL TRAINING ,10/04/2024,9676247826,141,WWW.CIPS.ORG
OXFORDSHIRE CC,CHILDREN'S & EDUCATION,THAME E&A HOME,CATERING,10/04/2024,9676247778,43.75,SUBWAY 39124 XSCAPE
OXFORDSHIRE CC,CHILDREN'S & EDUCATION,"	LOOKED AFTER CITY 2",PAYMENT TO GOVERNMENT DEPARTMENTS,10/04/2024,9676247796,87.5,HM PASSPORT OFFICE
OXFORDSHIRE CC,ENVIRONMENT AND PLACE,ROW MAINT,EQUIPMENT,10/04/2024,9676247760,584.23,ALTITUDE SAFETY
OXFORDSHIRE CC,ADULTS,ASC INCOME TEAM,PAYMENT TO GOVERNMENT DEPARTMENTS,10/04/2024,9676247752,11,OXFORDSHIRE CC WEB1
OXFORDSHIRE CC,CHILDREN'S & EDUCATION,"	LEAVING CARE CITY 1",FURNITURE,10/04/2024,9676247724,329,AO RETAIL LIMITED
OXFORDSHIRE CC,CUSTOMER AND CULTURE,HARD FM,PREMISES REPAIRS,10/04/2024,9676247748,203.97,WWW.SCREWFIX.COM
OXFORDSHIRE CC,ADULTS,PAUSE PROGRAMME,POSTAGE AND DELIVERY,10/04/2024,9676247648,19.2,POST OFFICE COUNTER
OXFORDSHIRE CC,CHILDREN'S & EDUCATION,40 THE MOORS,CATERING PROVISIONS,10/04/2024,9676247678,29.5,TESCO STORES 2788
OXFORDSHIRE CC,CHILDREN'S & EDUCATION,"	LEAVING CARE CITY 1",CATERING PROVISIONS,10/04/2024,9676247698,15,TESCO GIFT CARD
OXFORDSHIRE CC,PUBLIC HEALTH,CHILDREN IN CARE NON-STAFFING - NORTH,OTHER TRANSPORT ARRANGEMENTS,10/04/2024,9676247640,8.9,M6 TOLL
OXFORDSHIRE CC,ADULTS,PAUSE PROGRAMME,MATERIALS,10/04/2024,9676247668,10.95,AMAZON.CO.UK HE9QO9YT4
OXFORDSHIRE CC,CHILDREN'S & EDUCATION,"	LEAVING CARE CITY 1",CATERING PROVISIONS,10/04/2024,9676247692,3.9,COSTA BICESTER
OXFORDSHIRE CC,CHILDREN'S & EDUCATION,"	LOOKED AFTER CITY 2",PAYMENT TO GOVERNMENT DEPARTMENTS,10/04/2024,9676247790,14.25,OXFORDSHIRE CC WEB1
OXFORDSHIRE CC,ADULTS,CSS - OXFORD,MATERIALS,10/04/2024,9676247812,15.98,AMAZON  026-8280215-15
OXFORDSHIRE CC,CUSTOMER AND CULTURE,MUSEUMS COLLECTIONS,MATERIALS,10/04/2024,9676248408,19.99,AMAZON  204-6855246-33
OXFORDSHIRE CC,CHILDREN'S & EDUCATION,KINGFISHER,MATERIALS,10/04/2024,9676248444,14.5,WWW.ARGOS.CO.UK
OXFORDSHIRE CC,ADULTS,CSS WALLINGFORD,STATIONERY,10/04/2024,9676247396,24.63,AMAZON  026-7079284-31
OXFORDSHIRE CC,ADULTS,CSS WANTAGE,CATERING PROVISIONS,10/04/2024,9676248418,11.84,SAINSBURYS S/MKTS
OXFORDSHIRE CC,CORPORATE CORE,SOTERIA,HOSPITALITY EXPENSES,10/04/2024,9676248382,8.84,TOPPINGS AND SALADS
OXFORDSHIRE CC,CHILDREN'S & EDUCATION,KINGFISHER,CATERING PROVISIONS,10/04/2024,9676248446,5.93,AMAZON  204-6964647-78
OXFORDSHIRE CC,PUBLIC HEALTH,CHILDREN IN CARE NON-STAFFING - SOUTH,PAYMENTS TO TRANSPORT OPERATORS,10/04/2024,9676247408,86.07,ET CAR HIRE
OXFORDSHIRE CC,CHILDREN'S & EDUCATION,"	OCCG GRANT",MATERIALS,10/04/2024,9676248472,18.65,TIMPSON LTD
OXFORDSHIRE CC,PUBLIC HEALTH,CHILDREN IN CARE NON-STAFFING - SOUTH,PAYMENTS TO TRANSPORT OPERATORS,10/04/2024,9676247422,128.35,EASYJET
OXFORDSHIRE CC,CORPORATE CORE,SOTERIA,CATERING,10/04/2024,9676248388,39.79,RESTAURANTE LA PENELA
OXFORDSHIRE CC,ADULTS,CSS WANTAGE,CATERING PROVISIONS,10/04/2024,9676248426,2.8,WAITROSE 153
OXFORDSHIRE CC,CHILDREN'S & EDUCATION,"	MALTFIELD HOUSE",VEHICLE FUEL,10/04/2024,9676248456,9.85,TESCO PFS 3418
OXFORDSHIRE CC,PUBLIC HEALTH,CHILDREN IN CARE NON-STAFFING - SOUTH,OTHER TRANSPORT ARRANGEMENTS,10/04/2024,9676247414,80.49,STANSTED AIRPORT
OXFORDSHIRE CC,CHILDREN'S & EDUCATION,KINGFISHER,MATERIALS,10/04/2024,9676248434,10,WWW.ARGOS.CO.UK
OXFORDSHIRE CC,ADULTS,CSS - ABINGDON,HARDWARE AND CROCKERY,10/04/2024,9676248464,12.64,TOOLSTATION LTD
OXFORDSHIRE CC,CORPORATE CORE,SOTERIA,CATERING PROVISIONS,10/04/2024,9676248394,1.26,MARKET MADRID-ORENSE
OXFORDSHIRE CC,PUBLIC HEALTH,CHILDREN IN CARE NON-STAFFING - SOUTH,PAYMENTS TO TRANSPORT OPERATORS,10/04/2024,9676247418,155.35,EASYJET
OXFORDSHIRE CC,CHILDREN'S & EDUCATION,FAMILY SOLUTIONS PLUS NON-STAFF � SOUTH,"SUPPLIES, STATIONERY AND MATERIALS",10/04/2024,9676247552,18.89,AMAZON  206-8334342-70
OXFORDSHIRE CC,PUBLIC HEALTH,CHILDREN IN CARE NON-STAFFING - SOUTH,HIRE OF ACCOMMODATION AND FACILITIES,10/04/2024,9676247434,95.99,PREMIER INN
OXFORDSHIRE CC,ADULTS,CSS - OXFORD,MATERIALS,10/04/2024,9676247470,9.82,AMAZON.CO.UK HE5RN2YD4
OXFORDSHIRE CC,CHILDREN'S & EDUCATION,MANAGEMENT RECHARGES,PAYMENTS TO VOLUNTARY BODIES,10/04/2024,9676247448,99,CVAA UK LTD
OXFORDSHIRE CC,ADULTS,CSS - OXFORD,DAY ACTIVITIES,10/04/2024,9676247474,26,POUNDLAND LTD - 1586
OXFORDSHIRE CC,PUBLIC HEALTH,CHILDREN IN CARE NON-STAFFING - SOUTH,PAYMENT TO GOVERNMENT DEPARTMENTS,10/04/2024,9676247428,38,GEN REGISTER OFFICE
OXFORDSHIRE CC,PUBLIC HEALTH,CHILDREN IN CARE NON-STAFFING - SOUTH,CLIENT LODGINGS AND ACCOMMODATION,10/04/2024,9676247432,84,PREMIER INN
OXFORDSHIRE CC,SOCIAL AND COMMUNITY SERVICES,CSS - ABINGDON,"SUPPLIES, STATIONERY AND MATERIALS",10/04/2024,9676247464,17.9,AMAZON.CO.UK HE4Z10W64
OXFORDSHIRE CC,ENVIRONMENT AND PLACE,TVERC,POSTAGE AND DELIVERY,10/04/2024,9676247492,7.59,ROYAL MAIL GROUP LTD
OXFORDSHIRE CC,CHILDREN'S & EDUCATION,"	DISABILITIES TEAM-C",PAYMENTS TO TRANSPORT OPERATORS,10/04/2024,9676247498,8.65,TRAINLINE
OXFORDSHIRE CC,CHILDREN'S & EDUCATION,CHILDREN IN CARE NON-STAFFING - CENTRL 1,PAYMENTS TO TRANSPORT OPERATORS,10/04/2024,9676247540,25.36,TRAINLINE
OXFORDSHIRE CC,CHILDREN'S & EDUCATION,EYNSHAM,CATERING,10/04/2024,9676247458,111.77,TESCO STORES 2008
OXFORDSHIRE CC,CHILDREN'S & EDUCATION,"	LEAVING CARE CITY 1",OTHER EXPENSES,10/04/2024,9676247514,700.5,PARADIGM HOUSING GROUP
OXFORDSHIRE CC,ADULTS,CSS - OXFORD,DAY ACTIVITIES,10/04/2024,9676247480,42.85,THEWORKS.CO.UK
OXFORDSHIRE CC,CUSTOMER AND CULTURE,HARD FM,PREMISES REPAIRS,10/04/2024,9676247484,57.26,TOOLSTATION LTD DROITW
OXFORDSHIRE CC,CHILDREN'S & EDUCATION,THAME E&A HOME,CATERING PROVISIONS,10/04/2024,9676247506,55.4,THAME BP SF CONNECT
OXFORDSHIRE CC,CHILDREN'S & EDUCATION,CHILDREN IN CARE NON-STAFFING - CENTRL 1,PAYMENT TO GOVERNMENT DEPARTMENTS,10/04/2024,9676247544,22,OXFORDSHIRE CC WEB1
OXFORDSHIRE CC,CHILDREN'S & EDUCATION,"	LEAVING CARE SOUTH",CATERING PROVISIONS,10/04/2024,9676247628,24.99,HOME BARGAINS
OXFORDSHIRE CC,CUSTOMER AND CULTURE,WANTAGE LIBRARY,GENERAL MAINTENANCE,10/04/2024,9676247568,274.8,WF EDUCATION GROUP LTD
OXFORDSHIRE CC,ADULTS,CSS - OXFORD,CATERING PROVISIONS,10/04/2024,9676247594,5.69,ALDI STORES 775-142
OXFORDSHIRE CC,CHILDREN'S & EDUCATION,"	MALTFIELD HOUSE",EQUIPMENT,10/04/2024,9676247922,24.84,AMAZON.CO.UK HP5PH9CP4
OXFORDSHIRE CC,CHILDREN'S & EDUCATION,"	MALTFIELD HOUSE",CATERING,10/04/2024,9676247914,25.96,AMAZON  206-0008071-02
OXFORDSHIRE CC,CORPORATE CORE,,STATIONERY,10/04/2024,9676247938,19.97,LYRECO UK LTD
OXFORDSHIRE CC,CORPORATE CORE,,STATIONERY,10/04/2024,9676247960,10.31,LYRECO UK LTD
OXFORDSHIRE CC,CHILDREN'S & EDUCATION,EYNSHAM,"SUPPLIES, STATIONERY AND MATERIALS",10/04/2024,9676247916,14.47,AMAZON  206-3145739-87
OXFORDSHIRE CC,CORPORATE CORE,,STATIONERY,10/04/2024,9676247944,10.19,LYRECO UK LTD
OXFORDSHIRE CC,CORPORATE CORE,,STATIONERY,10/04/2024,9676247966,59.08,LYRECO UK LTD
OXFORDSHIRE CC,CORPORATE CORE,,STATIONERY,10/04/2024,9676247950,4.18,LYRECO UK LTD
OXFORDSHIRE CC,CORPORATE CORE,,STATIONERY,10/04/2024,9676247930,2.78,LYRECO UK LTD
OXFORDSHIRE CC,CORPORATE CORE,,STATIONERY,10/04/2024,9676247952,96.84,LYRECO UK LTD
OXFORDSHIRE CC,ADULTS,CSS WITNEY,CATERING PROVISIONS,10/04/2024,9676247862,89.79,AMAZON  204-4146985-54
OXFORDSHIRE CC,CHILDREN'S & EDUCATION,FAMILY SOLUTIONS PLUS NON-STAFF � SOUTH,EQUIPMENT,10/04/2024,9676247836,3,ZETTLE_ BROOKES SPORTS
OXFORDSHIRE CC,CHILDREN'S & EDUCATION,FAMILY SOLUTIONS PLUS NON-STAFF � SOUTH,CATERING PROVISIONS,10/04/2024,9676247842,5,CENTRE FOR SPORT
OXFORDSHIRE CC,CUSTOMER AND CULTURE,COMMUNICATIONS,"PUBLICITY, PROMOTIONS AND ADVERTISEMENT",10/04/2024,9676247874,98.54,LINKEDIN ADS 100865561
OXFORDSHIRE CC,CUSTOMER AND CULTURE,THAME LIBRARY,"NEWSPAPERS, PERIODICALS AND PUBLICATIONS",10/04/2024,9676247902,5.8,SAINSBURYS S/MKTS
OXFORDSHIRE CC,CUSTOMER AND CULTURE,HOLTON SITE,MATERIALS,10/04/2024,9676247574,144,COOLERAID LTD
OXFORDSHIRE CC,CHILDREN'S & EDUCATION,"	RIVERSIDE CENTRE",HIRE OF ACCOMMODATION AND FACILITIES,10/04/2024,9676247602,70.95,GRAND HOTEL BLACKPOOL
OXFORDSHIRE CC,CHILDREN'S & EDUCATION,"	LEAVING CARE SOUTH",VEHICLE FUEL,10/04/2024,9676247634,46.8,BELLINGERS S.STN
OXFORDSHIRE CC,ENTERPRISEVC,,CAR LEASING - PRIVATE RENTALS,10/04/2024,9676248032,77.98,ENTERPRISE RENT-A-CAR
OXFORDSHIRE CC,ENTERPRISEVC,,CAR LEASING - PRIVATE RENTALS,10/04/2024,9676248050,86.63,ENTERPRISE RENT-A-CAR
OXFORDSHIRE CC,CHILDREN'S & EDUCATION,HOUSE PROJECT,OTHER TRANSPORT ARRANGEMENTS,10/04/2024,9676248074,2,OXFORD BUS COMPANY
OXFORDSHIRE CC,ENTERPRISEVC,,CAR LEASING - PRIVATE RENTALS,10/04/2024,9676248042,77.98,ENTERPRISE RENT-A-CAR
OXFORDSHIRE CC,CHILDREN'S & EDUCATION,HOUSE PROJECT,OTHER TRANSPORT ARRANGEMENTS,10/04/2024,9676248066,2,OXFORD BUS COMPANY
OXFORDSHIRE CC,ENTERPRISEVC,,CAR LEASING - PRIVATE RENTALS,10/04/2024,9676248044,78.55,ENTERPRISE RENT-A-CAR
OXFORDSHIRE CC,CHILDREN'S & EDUCATION,HOUSE PROJECT,OTHER TRANSPORT ARRANGEMENTS,10/04/2024,9676248070,2,OXFORD BUS COMPANY
OXFORDSHIRE CC,ENTERPRISEVC,,CAR LEASING - PRIVATE RENTALS,10/04/2024,9676248036,60.02,ENTERPRISE RENT-A-CAR
OXFORDSHIRE CC,CHILDREN'S & EDUCATION,HOUSE PROJECT,OTHER TRANSPORT ARRANGEMENTS,10/04/2024,9676248058,2,OXFORD BUS COMPANY
OXFORDSHIRE CC,CHILDREN'S & EDUCATION,HOUSE PROJECT,CATERING,10/04/2024,9676248080,4.8,COSTA COFFEE 43011919
OXFORDSHIRE CC,ADULTS,CSS - BANBURY,CATERING PROVISIONS,10/04/2024,9676248104,19.5,AMAZON  204-4350244-32
OXFORDSHIRE CC,ADULTS,CSS - BANBURY,CATERING PROVISIONS,10/04/2024,9676248130,21.98,AMAZON  204-4525023-89
OXFORDSHIRE CC,ADULTS,CSS - BANBURY,CATERING PROVISIONS,10/04/2024,9676248092,75.38,AMAZON  204-4341461-32
OXFORDSHIRE CC,ADULTS,CSS - BANBURY,CATERING PROVISIONS,10/04/2024,9676248116,12.6,AMAZON  204-4341461-32
OXFORDSHIRE CC,RESOURCES,ICT OPERATIONS & MAI,IT SERVICES,10/04/2024,9676248160,108,SQ  INTERNET CENTRAL L
OXFORDSHIRE CC,CHILDREN'S & EDUCATION,OTFC TEAM,OTHER TRANSPORT ARRANGEMENTS,10/04/2024,9676248184,5.3,OXPENS CAR PARK
OXFORDSHIRE CC,CHILDREN'S & EDUCATION,DIDCOT MOVE-ON HOME,FIXTURES & FITTINGS,10/04/2024,9676248214,7,B&M 514 - DICOT
OXFORDSHIRE CC,CHILDREN'S & EDUCATION,OTFC TEAM,CATERING,10/04/2024,9676248196,16.67,MCDONALDS
OXFORDSHIRE CC,CHILDREN'S & EDUCATION,WITNEY,CATERING PROVISIONS,10/04/2024,9676248170,4.9,SAINSBURYS S/MKTS
OXFORDSHIRE CC,CHILDREN'S & EDUCATION,WITNEY,CATERING PROVISIONS,10/04/2024,9676248176,4.79,WAITROSE 142
OXFORDSHIRE CC,ADULTS,CSS WITNEY,CATERING PROVISIONS,10/04/2024,9676248202,12.3,CO-OP GROUP 070582
OXFORDSHIRE CC,CUSTOMER AND CULTURE,HOLTON SITE,CLOTHING AND UNIFORMS,10/04/2024,9676247564,37.99,AMAZON  204-4511510-36
OXFORDSHIRE CC,ADULTS,CSS - BANBURY,CATERING PROVISIONS,10/04/2024,9676248098,8.99,AMAZON  204-4341461-32
OXFORDSHIRE CC,ADULTS,CSS - BANBURY,CATERING PROVISIONS,10/04/2024,9676248124,12.6,AMAZON  204-4341461-32
OXFORDSHIRE CC,ADULTS,CSS - BANBURY,CATERING PROVISIONS,10/04/2024,9676248110,12.5,TESCO STORES 2064
OXFORDSHIRE CC,CHILDREN'S & EDUCATION,CHILDREN IN CARE NON-STAFFING - SOUTH,CATERING PROVISIONS,10/04/2024,9676248164,13.63,SAINSBURYS S/MKTS
OXFORDSHIRE CC,CHILDREN'S & EDUCATION,OTFC TEAM,CATERING,10/04/2024,9676248190,10.3,TORTILLA OXFORD
OXFORDSHIRE CC,CHILDREN'S & EDUCATION,DIDCOT MOVE-ON HOME,CATERING PROVISIONS,10/04/2024,9676248226,7,SAINSBURYS S/MKTS
OXFORDSHIRE CC,CHILDREN'S & EDUCATION,DIDCOT MOVE-ON HOME,CATERING PROVISIONS,10/04/2024,9676248236,8.1,TESCO STORES 2008
OXFORDSHIRE CC,CUSTOMER AND CULTURE,TRANSPORT GENERAL,VEHICLES AND PLANT - REPAIRS AND MAIN,10/04/2024,9676247558,86.35,AMAZON  204-2770766-10
OXFORDSHIRE CC,ADULTS,PAUSE PROGRAMME,PAYMENTS TO TRANSPORT OPERATORS,10/04/2024,9676247654,9.06,TRAINLINE
OXFORDSHIRE CC,CHILDREN'S & EDUCATION,40 THE MOORS,CATERING PROVISIONS,10/04/2024,9676247682,19.52,SELECT CONVENIENCE & O
OXFORDSHIRE CC,ADULTS,PAUSE PROGRAMME,PAYMENTS TO TRANSPORT OPERATORS,10/04/2024,9676247660,9.06,TRAINLINE
OXFORDSHIRE CC,CHILDREN'S & EDUCATION,"	LEAVING CARE CITY 1",CATERING PROVISIONS,10/04/2024,9676247688,347.88,AMAZON  204-3916673-25
OXFORDSHIRE CC,CHILDREN'S & EDUCATION,THAME E&A HOME,ENTERTAINMENT EXPENSES,10/04/2024,9676247772,7.2,LASER QUEST MK
OXFORDSHIRE CC,CHILDREN'S & EDUCATION,"	LOOKED AFTER CITY 2",PAYMENT TO GOVERNMENT DEPARTMENTS,10/04/2024,9676247794,14.25,OXFORDSHIRE CC WEB1
OXFORDSHIRE CC,ENTERPRISEVC,,CAR LEASING - PRIVATE RENTALS,10/04/2024,9676247996,124.54,ENTERPRISE RENT-A-CAR
OXFORDSHIRE CC,ENTERPRISEVC,,CAR LEASING - PRIVATE RENTALS,10/04/2024,9676248020,125.98,ENTERPRISE RENT-A-CAR
OXFORDSHIRE CC,ENTERPRISEVC,,CAR LEASING - PRIVATE RENTALS,10/04/2024,9676247986,119.95,ENTERPRISE RENT-A-CAR
OXFORDSHIRE CC,ENTERPRISEVC,,CAR LEASING - PRIVATE RENTALS,10/04/2024,9676248006,48.89,ENTERPRISE RENT-A-CAR
OXFORDSHIRE CC,ENTERPRISEVC,,CAR LEASING - PRIVATE RENTALS,10/04/2024,9676248026,143.51,ENTERPRISE RENT-A-CAR
OXFORDSHIRE CC,ENTERPRISEVC,,CAR LEASING - PRIVATE RENTALS,10/04/2024,9676247980,181.73,ENTERPRISE RENT-A-CAR
OXFORDSHIRE CC,ENTERPRISEVC,,CAR LEASING - PRIVATE RENTALS,10/04/2024,9676248002,78.61,ENTERPRISE RENT-A-CAR
OXFORDSHIRE CC,CHILDREN'S & EDUCATION,FSP NON-STAFFING - CENTRAL,ENTERTAINMENT EXPENSES,10/04/2024,9676247886,16.3,HOLLYWOOD BOWL
OXFORDSHIRE CC,CHILDREN'S & EDUCATION,"	MALTFIELD HOUSE",CATERING PROVISIONS,10/04/2024,9676247908,37.1,SAINSBURYS S/MKTS
OXFORDSHIRE CC,CHILDREN'S & EDUCATION,"	LEAVING CARE SOUTH",CATERING,10/04/2024,9676247890,8.85,COSTA COFFEE 43010714
OXFORDSHIRE CC,CHILDREN'S & EDUCATION,FIELDWORK UASC,OTHER TRANSPORT ARRANGEMENTS,10/04/2024,9676248330,4.8,OXFORD BUS COMPANY
OXFORDSHIRE CC,CORPORATE CORE,"	COMMUNICATIONS","PUBLICITY, PROMOTIONS AND ADVERTISEMENT",10/04/2024,9676248368,99.72,SNAP INC SNAP SNAP ADS
OXFORDSHIRE CC,ADULTS,CSS WITNEY,CATERING PROVISIONS,10/04/2024,9676247868,33.99,AMAZON  204-3810635-29
OXFORDSHIRE CC,CHILDREN'S & EDUCATION,"	LEAVING CARE SOUTH",OTHER EXPENSES,10/04/2024,9676247896,30,TESCO GIFT CARD
OXFORDSHIRE CC,ENTERPRISEVC,,CAR LEASING - PRIVATE RENTALS,10/04/2024,9676247992,"1,941.07",ENTERPRISE RENT-A-CAR
OXFORDSHIRE CC,ENTERPRISEVC,,CAR LEASING - PRIVATE RENTALS,10/04/2024,9676248012,41.98,ENTERPRISE RENT-A-CAR
OXFORDSHIRE CC,ADULTS,CSS - BANBURY,CATERING PROVISIONS,10/04/2024,9676248086,46.95,AMAZON  204-0575824-89
OXFORDSHIRE CC,CORPORATE CORE,,STATIONERY,10/04/2024,9676247974,53.83,LYRECO UK LTD
OXFORDSHIRE CC,CHILDREN'S & EDUCATION,FAMILY SOLUTIONS PLUS NON-STAFF - NORTH,PAYMENTS TO TRANSPORT OPERATORS,10/04/2024,9676248306,48.8,WWW.GWR.COM
OXFORDSHIRE CC,ADULTS,CSS WALLINGFORD,MATERIALS,10/04/2024,9676248356,18.68,KP STATIONERS
OXFORDSHIRE CC,CHILDREN'S & EDUCATION,NTS UASC AGENCY,CATERING PROVISIONS,10/04/2024,9676248326,96,ASDA SUPERSTORE
OXFORDSHIRE CC,ADULTS,CSS - BANBURY,CATERING PROVISIONS,10/04/2024,9676248312,45.1,SAINSBURYS.CO.UK
OXFORDSHIRE CC,CUSTOMER AND CULTURE,REACTIVE MAINTENANCE,VEHICLE FUEL,10/04/2024,9676248338,97.01,SHELL WITNEY
OXFORDSHIRE CC,CHILDREN'S & EDUCATION,"	LEAVING CARE NORTH",CATERING,10/04/2024,9676248374,14.48,MCDONALDS
OXFORDSHIRE CC,CHILDREN'S & EDUCATION,THAME E&A HOME,TELEPHONE - EQUIPMENT,10/04/2024,9676248318,10,VESTA   VODAFONE TOPUP
OXFORDSHIRE CC,CHILDREN'S & EDUCATION,REACTIVE MAINTENANCE,PREMISES REPAIRS,10/04/2024,9676248344,166.08,BREWERS BICESTER
OXFORDSHIRE CC,CHILDREN'S & EDUCATION,DIDCOT MOVE-ON HOME,CATERING PROVISIONS,10/04/2024,9676248248,37.68,TESCO STORES 2008
OXFORDSHIRE CC,CHILDREN'S & EDUCATION,UASC 16&17,OTHER TRANSPORT ARRANGEMENTS,10/04/2024,9676248270,47.9,NATIONAL EXPRESS LIMIT
OXFORDSHIRE CC,CHILDREN'S & EDUCATION,CHILDREN IN CARE NON-STAFFING - NORTH,OTHER TRANSPORT ARRANGEMENTS,10/04/2024,9676248300,91.9,TRAINLINE
OXFORDSHIRE CC,CHILDREN'S & EDUCATION,FAMILY SOLUTIONS PLUS NON-STAFF - NORTH,GENERAL REFUSE COLLECTION AND DISPOSAL,10/04/2024,9676248252,30,WWW.MICKGEORGE.CO.UK
OXFORDSHIRE CC,CUSTOMER AND CULTURE,DEPARTMENTAL MANAGE,POSTAGE AND DELIVERY,10/04/2024,9676248278,14.58,ROYAL MAIL GROUP LTD
OXFORDSHIRE CC,CHILDREN'S & EDUCATION,DIDCOT MOVE-ON HOME,CATERING PROVISIONS,10/04/2024,9676248242,60,TESCO STORES 2008
OXFORDSHIRE CC,CHILDREN'S & EDUCATION,EYNSHAM,HARDWARE AND CROCKERY,10/04/2024,9676248288,26.15,B AND Q
OXFORDSHIRE CC,CHILDREN'S & EDUCATION,UASC 16&17,MEDICAL AND COUNSELLING FEES,10/04/2024,9676248264,19.3,THE LEYS PHARMACY WOOD
OXFORDSHIRE CC,ADULTS,CSS - ABINGDON,MATERIALS,09/04/2024,9671580792,89.8,AMAZON.CO.UK HE5J93K74
OXFORDSHIRE CC,ADULTS,CSS WANTAGE,ENTERTAINMENT EXPENSES,09/04/2024,9671580474,9.9,WWW.BETTER.ORG.UK
OXFORDSHIRE CC,CUSTOMER AND CULTURE,THAME LIBRARY,"NEWSPAPERS, PERIODICALS AND PUBLICATIONS",09/04/2024,9671580512,5.8,SAINSBURYS S/MKTS
OXFORDSHIRE CC,CHILDREN'S & EDUCATION,"	MALTFIELD HOUSE",MATERIALS,09/04/2024,9671580528,9,AMAZON.CO.UK HE4Y339O4
OXFORDSHIRE CC,CUSTOMER AND CULTURE,CENTRAL LIBRARY,HEALTH AND SAFETY EQUIPMENT,09/04/2024,9671580494,14.98,AMAZON  203-4725855-44
OXFORDSHIRE CC,RESOURCES,ICT OPERATIONS & MAI,IT SERVICES,09/04/2024,9671580604,49.46,AMAZON.CO.UK HE1KX4744
OXFORDSHIRE CC,ADULTS,CSS WITNEY,CATERING PROVISIONS,09/04/2024,9671580830,24.52,LIDL GB WITNEY
OXFORDSHIRE CC,CORPORATE CORE,SOTERIA,OTHER TRANSPORT ARRANGEMENTS,09/04/2024,9671580874,2,OXFORD BUS COMPANY
OXFORDSHIRE CC,CORPORATE CORE,SOTERIA,CATERING,09/04/2024,9671580890,11.1,PRET A MANGER
OXFORDSHIRE CC,CORPORATE CORE,SOTERIA,OTHER TRANSPORT ARRANGEMENTS,09/04/2024,9671580876,35,OXFORD BUS COMPANY
OXFORDSHIRE CC,CHILDREN'S & EDUCATION,PSYCHOLOGY SERVICE,EDUCATIONAL AND VOCATIONAL TRAINING ,09/04/2024,9671580898,150,SP SCHOOL WELLBEING
OXFORDSHIRE CC,CORPORATE CORE,"	COMMUNICATIONS","PUBLICITY, PROMOTIONS AND ADVERTISEMENT",09/04/2024,9671580850,97.85,SNAP INC SNAP SNAP ADS
OXFORDSHIRE CC,CHILDREN'S & EDUCATION,"	LEAVING CARE CITY 2",PAYMENTS TO TRANSPORT OPERATORS,09/04/2024,9671580866,4,STAGECOACH SERVICES
OXFORDSHIRE CC,CORPORATE CORE,SOTERIA,OTHER TRANSPORT ARRANGEMENTS,09/04/2024,9671580886,22.09,UBER    TRIP
OXFORDSHIRE CC,CHILDREN'S & EDUCATION,"	LEAVING CARE CITY 2",FURNITURE,09/04/2024,9671580860,142.99,AMAZON  204-9485610-34
OXFORDSHIRE CC,CORPORATE CORE,SOTERIA,HIRE OF ACCOMMODATION AND FACILITIES,09/04/2024,9671580880,330.26,LUZE CASTELLANA
OXFORDSHIRE CC,CHILDREN'S & EDUCATION,"	DISABILITIES TEAM-C",OTHER TRANSPORT ARRANGEMENTS,09/04/2024,9671580044,6.1,GOGREENT
OXFORDSHIRE CC,CHILDREN'S & EDUCATION,"	DISABILITIES TEAM-N",ENTERTAINMENT EXPENSES,09/04/2024,9671580054,52.1,TENPIN.CO.UK
OXFORDSHIRE CC,ADULTS,CSS BICESTER,MATERIALS,09/04/2024,9671580094,7.35,CARD FACTORY
OXFORDSHIRE CC,CHILDREN'S & EDUCATION,"	LEAVING CARE CITY 1",OTHER EXPENSES,09/04/2024,9671580026,44.06,AMAZON  202-4512182-66
OXFORDSHIRE CC,CHILDREN'S & EDUCATION,CHILDREN IN CARE NON-STAFFING - CENTRL 1,OTHER TRANSPORT ARRANGEMENTS,09/04/2024,9671580064,19,WWW.VIKINGCARS511.COM
OXFORDSHIRE CC,CHILDREN'S & EDUCATION,THAME E&A HOME,CATERING PROVISIONS,09/04/2024,9671580120,253.08,TESCO STORES 2038
OXFORDSHIRE CC,CHILDREN'S & EDUCATION,CHILDREN IN CARE NON-STAFFING - NORTH,PAYMENTS TO TRANSPORT OPERATORS,09/04/2024,9671580072,26.89,TRAINLINE
OXFORDSHIRE CC,ADULTS,CSS - OXFORD,CATERING PROVISIONS,09/04/2024,9671580126,1.59,ALDI STORES 775-142
OXFORDSHIRE CC,CHILDREN'S & EDUCATION,"	DISABILITIES TEAM-C",OTHER TRANSPORT ARRANGEMENTS,09/04/2024,9671580048,6.1,GOGREENT
OXFORDSHIRE CC,CHILDREN'S & EDUCATION,FAMILY HELP SOUTH,DAY ACTIVITIES,09/04/2024,9671580084,60.65,ABINGDON SNAKES AND LA
OXFORDSHIRE CC,CUSTOMER AND CULTURE,HARD FM,GENERAL MAINTENANCE,09/04/2024,9671580380,378,SQ  S & D SEALANTS LIM
OXFORDSHIRE CC,ADULTS,CSS WALLINGFORD,STATIONERY,09/04/2024,9671579854,7.96,AMAZON  026-0716051-45
OXFORDSHIRE CC,ADULTS,CSS WITNEY,CATERING PROVISIONS,09/04/2024,9671579820,6.98,AMAZON  206-8181215-82
OXFORDSHIRE CC,ADULTS,CSS WALLINGFORD,STATIONERY,09/04/2024,9671579834,17.77,AMAZON  026-3274114-61
OXFORDSHIRE CC,ADULTS,CSS WALLINGFORD,CATERING PROVISIONS,09/04/2024,9671579852,14.5,WAITROSE 675
OXFORDSHIRE CC,ADULTS,CSS WANTAGE,MATERIALS,09/04/2024,9671579946,26,WWW.ARGOS.CO.UK
OXFORDSHIRE CC,ADULTS,CSS WANTAGE,CATERING PROVISIONS,09/04/2024,9671579936,103.87,AMAZON  203-7282561-16
OXFORDSHIRE CC,CUSTOMER AND CULTURE,HARD FM,PREMISES REPAIRS,09/04/2024,9671579964,23.75,B & Q 1062
OXFORDSHIRE CC,ADULTS,CSS BICESTER,CATERING PROVISIONS,09/04/2024,9671580008,82.93,TESCO STORES 2162
OXFORDSHIRE CC,CUSTOMER AND CULTURE,HARD FM,PREMISES REPAIRS,09/04/2024,9671579970,5.95,NCP BANBURY MARLBOROUG
OXFORDSHIRE CC,CHILDREN'S & EDUCATION,"	LEAVING CARE CITY 1",OTHER EXPENSES,09/04/2024,9671580014,73.99,AMAZON  202-0423717-24
OXFORDSHIRE CC,ADULTS,CSS WANTAGE,CATERING PROVISIONS,09/04/2024,9671579940,102.87,ZETTLE_ MATHEWS AND SO
OXFORDSHIRE CC,ENVIRONMENT AND PLACE,TVERC,"SUPPLIES, STATIONERY AND MATERIALS",09/04/2024,9671579978,4.85,KUDOBOARD
OXFORDSHIRE CC,CHILDREN'S & EDUCATION,"	LEAVING CARE CITY 1",OTHER EXPENSES,09/04/2024,9671580020,665.69,ALLPAY  COTTSWAY HOUSI
OXFORDSHIRE CC,ADULTS,CSS - OXFORD,CATERING PROVISIONS,09/04/2024,9671579996,43.79,ALDI STORES 775-142
OXFORDSHIRE CC,ADULTS,CSS WANTAGE,CATERING PROVISIONS,09/04/2024,9671579928,29.98,AMAZON  203-1401531-18
OXFORDSHIRE CC,CHILDREN'S & EDUCATION,EYNSHAM,CATERING,09/04/2024,9671579872,1.75,CO-OPERATIVE FOOD
OXFORDSHIRE CC,CHILDREN'S & EDUCATION,EYNSHAM,DRUGS AND MEDICAL SUPPLIES,09/04/2024,9671579890,16.94,BOOTS UK ECOMM
OXFORDSHIRE CC,CHILDREN'S & EDUCATION,EYNSHAM,CATERING,09/04/2024,9671579874,8,CO-OPERATIVE FOOD
OXFORDSHIRE CC,ADULTS,CSS - ABINGDON,EQUIPMENT,09/04/2024,9671579900,16.73,AMAZON  205-8640952-58
OXFORDSHIRE CC,CHILDREN'S & EDUCATION,EYNSHAM,FURNITURE,09/04/2024,9671579868,75,DUNELM SOFTFURNISHINGS
OXFORDSHIRE CC,CHILDREN'S & EDUCATION,EYNSHAM,OTHER TRANSPORT ARRANGEMENTS,09/04/2024,9671579880,5,STGCOACH/CTYLINK
OXFORDSHIRE CC,ADULTS,CSS - ABINGDON,CATERING PROVISIONS,09/04/2024,9671579910,7.32,ALDI STORES
OXFORDSHIRE CC,CHILDREN'S & EDUCATION,EYNSHAM,CATERING,09/04/2024,9671579884,1.75,TESCO PFS 2488
OXFORDSHIRE CC,ADULTS,CSS - ABINGDON,CATERING PROVISIONS,09/04/2024,9671580906,27.1,ALDI STORES
OXFORDSHIRE CC,ADULTS,CSS - OXFORD,CATERING EQUIPMENT,09/04/2024,9671580418,19.47,AMAZON  026-7164851-03
OXFORDSHIRE CC,CUSTOMER AND CULTURE,HARD FM,PREMISES REPAIRS,09/04/2024,9671580384,78.18,BES LTD
OXFORDSHIRE CC,ADULTS,CSS - OXFORD,MATERIALS,09/04/2024,9671580424,27.88,ALDI STORES 775-142
OXFORDSHIRE CC,CHILDREN'S & EDUCATION,"	LEAVING CARE CITY 2",OTHER TRANSPORT ARRANGEMENTS,09/04/2024,9671580388,62,WWW.ANYVAN.COM
OXFORDSHIRE CC,CHILDREN'S & EDUCATION,"	THRIVING FAMILY SOTH",HIRE OF ACCOMMODATION AND FACILITIES,09/04/2024,9671580354,458,MARRIOTT
OXFORDSHIRE CC,ADULTS,COUNTY PRINT FINSHRS,RECRUTIMENT EXPENSES (EXCL. ADVERTISING),09/04/2024,9671580370,384,BRITISH ASSOCIATION
OXFORDSHIRE CC,ADULTS,CSS - OXFORD,DISABILITY AIDS AND EQUIPMENT,09/04/2024,9671580412,25.96,AMAZON  026-3185306-55
OXFORDSHIRE CC,CHILDREN'S & EDUCATION,FAMILY SOLUTIONS PLUS NON-STAFF � SOUTH,DAY ACTIVITIES,09/04/2024,9671580440,12,OXFORD BROOKES UNI
OXFORDSHIRE CC,CUSTOMER AND CULTURE,DEPARTMENTAL MANAGE,CATERING PROVISIONS,09/04/2024,9671580714,26.39,AMAZON  204-8609444-78
OXFORDSHIRE CC,CHILDREN'S & EDUCATION,OTFC TEAM,CATERING,09/04/2024,9671580640,36.35,NANDO'S
OXFORDSHIRE CC,CHILDREN'S & EDUCATION,DIDCOT MOVE-ON HOME,CATERING PROVISIONS,09/04/2024,9671580674,2.95,SAINSBURYS S/MKTS
OXFORDSHIRE CC,CHILDREN'S & EDUCATION,FAMILY SOLUTIONS PLUS NON-STAFF - NORTH,PAYMENTS TO TRANSPORT OPERATORS,09/04/2024,9671580648,20.27,TRAINLINE
OXFORDSHIRE CC,CHILDREN'S & EDUCATION,DIDCOT MOVE-ON HOME,MATERIALS,09/04/2024,9671580684,8.65,POUNDLAND LTD - 1949
OXFORDSHIRE CC,CHILDREN'S & EDUCATION,"BICESTER CC, LAUNTON RD",CATERING PROVISIONS,09/04/2024,9671580656,3.6,TESCO STORES 3143
OXFORDSHIRE CC,ADULTS,CSS WITNEY,CATERING PROVISIONS,09/04/2024,9671580668,22.08,CO-OP GROUP 070582
OXFORDSHIRE CC,CHILDREN'S & EDUCATION,OTFC TEAM,ENTERTAINMENT EXPENSES,09/04/2024,9671580634,8.8,BANNATYNE HC BANBURY
OXFORDSHIRE CC,CUSTOMER AND CULTURE,HARD FM,PREMISES REPAIRS,09/04/2024,9671580310,448.46,JEWSON LTD
OXFORDSHIRE CC,CHILDREN'S & EDUCATION,THAME E&A HOME,DAY ACTIVITIES,09/04/2024,9671580290,2,EDEN CENTRE
OXFORDSHIRE CC,CUSTOMER AND CULTURE,HARD FM,PREMISES REPAIRS,09/04/2024,9671580324,86.89,JEWSON LTD
OXFORDSHIRE CC,CHILDREN'S & EDUCATION,"	LEAVING CARE SOUTH",RESIDENTIAL ACTIVITIES,09/04/2024,9671580268,8.1,GAILS GUILDFORD
OXFORDSHIRE CC,CHILDREN'S & EDUCATION,THAME E&A HOME,DAY ACTIVITIES,09/04/2024,9671580296,33.67,HOLLYWOOD BOWL
OXFORDSHIRE CC,CHILDREN'S & EDUCATION,DIDCOT MOVE-ON HOME,CATERING PROVISIONS,09/04/2024,9671580338,26.05,ALDI 99 775
OXFORDSHIRE CC,CHILDREN'S & EDUCATION,"	LEAVING CARE SOUTH",OTHER TRANSPORT ARRANGEMENTS,09/04/2024,9671580274,4.3,RINGGO PARKING
OXFORDSHIRE CC,CUSTOMER AND CULTURE,HARD FM,PREMISES REPAIRS,09/04/2024,9671580304,131.09,B & Q 1156
OXFORDSHIRE CC,CHILDREN'S & EDUCATION,PAUSE PROGRAMME,DRUGS AND MEDICAL SUPPLIES,09/04/2024,9671580914,5.95,THE LEYS PHARMACY ROSE
OXFORDSHIRE CC,CHILDREN'S & EDUCATION,PAUSE PROGRAMME,DOMESTIC SUPPLIES,09/04/2024,9671580924,3,SAVERS HEALTH & BEAUTY
OXFORDSHIRE CC,CHILDREN'S & EDUCATION,PAUSE PROGRAMME,CATERING,09/04/2024,9671580920,16.14,J D WETHERSPOON PLC
OXFORDSHIRE CC,ADULTS,CSS - OXFORD,MATERIALS,09/04/2024,9671580136,31.2,ALDI STORES 775-142
OXFORDSHIRE CC,CHILDREN'S & EDUCATION,40 THE MOORS,OTHER EXPENSES,09/04/2024,9671580146,11.3,SAINSBURYS S/MKTS
OXFORDSHIRE CC,CHILDREN'S & EDUCATION,"	LOOKED AFTER NORTH",OTHER TRANSPORT ARRANGEMENTS,09/04/2024,9671580202,13,BASINGSTOKE AND DEANE
OXFORDSHIRE CC,CUSTOMER AND CULTURE,WITNEY LIBRARY,"NEWSPAPERS, PERIODICALS AND PUBLICATIONS",09/04/2024,9671580248,41.36,PPOINT_ NEWSLINK WITNE
OXFORDSHIRE CC,CHILDREN'S & EDUCATION,"	RESIDENTIAL STRATEGY",EDUCATIONAL AND VOCATIONAL TRAINING ,09/04/2024,9671580226,179.64,PROTRAININGS
OXFORDSHIRE CC,CHILDREN'S & EDUCATION,EYNSHAM,MATERIALS,09/04/2024,9671580190,36.76,AMZNMKTPLACE HE8MO1KS4
OXFORDSHIRE CC,CHILDREN'S & EDUCATION,"	MALTFIELD HOUSE",CATERING PROVISIONS,09/04/2024,9671580236,16.27,LIDL GB WITNEY
OXFORDSHIRE CC,PUBLIC HEALTH,CHILDREN IN CARE NON-STAFFING - NORTH,VEHICLE FUEL,09/04/2024,9671580154,45.46,W M MORRISON PETROL
OXFORDSHIRE CC,CHILDREN'S & EDUCATION,VULNERABLE LEARNERS,EDUCATIONAL AND VOCATIONAL TRAINING ,09/04/2024,9671580212,5,KINDERLY
OXFORDSHIRE CC,CORPORATE CORE,,STATIONERY,09/04/2024,9671580554,76.23,LYRECO UK LTD
OXFORDSHIRE CC,CHILDREN'S & EDUCATION,UASC 16&17,PAYMENTS TO TRANSPORT OPERATORS,09/04/2024,9671580580,32.91,TRAINLINE
OXFORDSHIRE CC,CORPORATE CORE,,STATIONERY,09/04/2024,9671580544,21.02,LYRECO UK LTD
OXFORDSHIRE CC,CHILDREN'S & EDUCATION,UASC 16&17,PAYMENTS TO TRANSPORT OPERATORS,09/04/2024,9671580576,20.44,BUSBUD
OXFORDSHIRE CC,CORPORATE CORE,,STATIONERY,09/04/2024,9671580562,23.35,LYRECO UK LTD
OXFORDSHIRE CC,CUSTOMER AND CULTURE,ANGLO SAXON EXHIBTION,DISABILITY AIDS AND EQUIPMENT,09/04/2024,9671580730,40.02,HD SUNFLOWER LTD
OXFORDSHIRE CC,ADULTS,CSS WALLINGFORD,MATERIALS,09/04/2024,9671580822,7.49,AMZNMKTPLACE HE5VE7SY4
OXFORDSHIRE CC,CHILDREN'S & EDUCATION,BANBURY CC,CATERING PROVISIONS,09/04/2024,9671580746,5.8,ALDI 10 775
OXFORDSHIRE CC,CHILDREN'S & EDUCATION,THAME E&A HOME,CATERING PROVISIONS,09/04/2024,9671580502,19.74,SAINSBURYS SUPERMA
OXFORDSHIRE CC,CHILDREN'S & EDUCATION,"	MALTFIELD HOUSE",EQUIPMENT,09/04/2024,9671580534,29.99,AMZNMKTPLACE HE7R21UP4
OXFORDSHIRE CC,ADULTS,CSS WANTAGE,CATERING PROVISIONS,09/04/2024,9671580478,4.85,SAINSBURYS S/MKTS
OXFORDSHIRE CC,CHILDREN'S & EDUCATION,"	MALTFIELD HOUSE",MATERIALS,09/04/2024,9671580522,23.1,AMZNMKTPLACE HE40X5KT4
OXFORDSHIRE CC,CHILDREN'S & EDUCATION,CHILDREN IN CARE NON-STAFFING - NORTH,PAYMENT TO GOVERNMENT DEPARTMENTS,09/04/2024,9671580592,53.5,HM PASSPORT OFFICE
OXFORDSHIRE CC,CHILDREN'S & EDUCATION,WITNEY,CATERING PROVISIONS,09/04/2024,9671580622,6.48,LIDL GB WITNEY
OXFORDSHIRE CC,ADULTS,CSS - ABINGDON,MATERIALS,09/04/2024,9671580774,44.9,AMAZON.CO.UK HE1RC6KH4
OXFORDSHIRE CC,ADULTS,CSS - ABINGDON,MATERIALS,09/04/2024,9671580784,89.8,AMAZON.CO.UK HE4JC6K14
OXFORDSHIRE CC,ADULTS,CSS - BANBURY,CATERING PROVISIONS,09/04/2024,9671580760,80.55,SAINSBURYS.CO.UK
OXFORDSHIRE CC,ADULTS,CSS - ABINGDON,CATERING PROVISIONS,09/04/2024,9671580802,37.4,TESCO STORES 2008
OXFORDSHIRE CC,ADULTS,CSS - ABINGDON,EQUIPMENT,09/04/2024,9671580810,73.99,AMAZON  204-0433805-31
OXFORDSHIRE CC,CUSTOMER AND CULTURE,ANGLO SAXON EXHIBTION,DISABILITY AIDS AND EQUIPMENT,08/04/2024,9663860706,59.92,AMAZON  202-4145728-66
OXFORDSHIRE CC,ADULTS,CSS - ABINGDON,EQUIPMENT,08/04/2024,9663859514,21.11,AMAZON  205-3632236-23
OXFORDSHIRE CC,CUSTOMER AND CULTURE,BOTLEY LIBRARY,"NEWSPAPERS, PERIODICALS AND PUBLICATIONS",08/04/2024,9663859562,10.8,MARTIN MCCOLL
